Workbook

Sheet Ödeme Karşilaştirmasi
B1: ÖDEME KARŞILAŞTIRMASI
B2: KREDİ TUTARI
B3: 150,000.00 ₺ | C3: SENARYO 1 | D3: SENARYO 2 | E3: SENARYO 3
B4: YIL CİNSİNDEN KREDİ DÖNEMİ | C4: 20 | D4: 30 | E4: 20
B5: ÖDEME SIKLIĞI | C5: Aylık | D5: Ayda iki kez | E5: Aylık
B6: YILLIK FAİZ ORANI | C6: 5.00% | D6: 5.00% | E6: 4.00%
B7: PLANLANAN ÖDEME | C7: =IFERROR(-PMT(S1Faiz/VLOOKUP(S1ÖdemeSikliği,LoanLookup[],5,FALSE),S1LoanPeriod*VLOOKUP(S1ÖdemeSikliği,LoanLookup[],5,FALSE),KrediTutari),"") -> 989.93 ₺ | D7: =IFERROR(-PMT(S2Faiz/VLOOKUP(S2ÖdemeSikliği,LoanLookup[],5,FALSE),S2LoanPeriod*VLOOKUP(S2ÖdemeSikliği,LoanLookup[],5,FALSE),KrediTutari),"") -> 402.44 ₺ | E7: =IFERROR(-PMT(S3Faiz/VLOOKUP(S3ÖdemeSikliği,LoanLookup[],5,FALSE),S3LoanPeriod*VLOOKUP(S3ÖdemeSikliği,LoanLookup[],5,FALSE),KrediTutari),"") -> 908.97 ₺
B8: TOPLAM ÖDEME | C8: =IFERROR(S1LoanPeriod*VLOOKUP(S1ÖdemeSikliği,LoanLookup[],5,FALSE),"") -> 240 | D8: =IFERROR(S2LoanPeriod*VLOOKUP(S2ÖdemeSikliği,LoanLookup[],5,FALSE),"") -> 720 | E8: =IFERROR(S3LoanPeriod*VLOOKUP(S3ÖdemeSikliği,LoanLookup[],5,FALSE),"") -> 240
B9: TOPLAM FAİZ | C9: =IFERROR((S1PlanlananÖdeme*S1ToplamÖdeme)-KrediTutari,"") -> 87,584.07 ₺ | D9: =IFERROR((S2PlanlananÖdeme*S2ToplamÖdeme)-KrediTutari,"") -> 139,753.76 ₺ | E9: =IFERROR((S3PlanlananÖdeme*S3ToplamÖdeme)-KrediTutari,"") -> 68,152.92 ₺
B10: Kredi Maliyeti | C10: =IFERROR(KrediTutari+S1ToplamFaiz,"") -> 237,584.07 ₺ | D10: =IFERROR(KrediTutari+S2ToplamFaiz,"") -> 289,753.76 ₺ | E10: =IFERROR(KrediTutari+S3ToplamFaiz,"") -> 218,152.92 ₺

Sheet Ödeme Plani
B1: ÖDEME PLANI
B2: Senaryo seçin | C2: SENARYO 1
C4: KREDİ SENARYOSU | G4: KREDİ ÖZETİ
C5: KREDİ BAŞLANGIÇ TARİHİ | E5: =TODAY() -> 2017-08-11 | G5: PLANLANAN ÖDEME | I5: =IFERROR(IF(Values_Entered,-PMT(Interest_Rate/VLOOKUP(Interval,LoanLookup[],5,FALSE),Loan_Years*VLOOKUP(Interval,LoanLookup[],5,FALSE),Kredi_Tutari),""),"") -> 989.93 ₺
C6: İSTEĞE BAĞLI EK ÖDEME | E6: 0.00 ₺ | G6: PLANLANAN ÖDEME SAYISI | I6: =IFERROR(IF(Values_Entered,Loan_Years*VLOOKUP(Interval,LoanLookup[],5,FALSE),""),"") -> 240
C7: KREDİ TUTARI | E7: =KrediTutari -> 150,000.00 ₺ | G7: YAPILAN ÖDEME SAYISI | I7: =IFERROR(IF(Values_Entered,Number_of_Payments,""),"") -> 240
C8: YIL CİNSİNDEN KREDİ DÖNEMİ | E8: =IFERROR(HLOOKUP(Senaryo,ÖdemeKarşilaştirmasi,2,FALSE),0) -> 20 | G8: TOPLAM ERKEN ÖDEMELER | I8: =IFERROR(IF(Values_Entered,SUMIF(Beg_Bal,">0",Extra_Pay),""),"") -> 0.00 ₺
C9: ÖDEME SIKLIĞI | E9: =IFERROR(HLOOKUP(Senaryo,ÖdemeKarşilaştirmasi,3,FALSE),0) -> Aylık | G9: TOPLAM FAİZ | I9: =IFERROR(IF(Values_Entered,SUMIF(Beg_Bal,">0",Int),""),"") -> 87,584.07 ₺
C10: YILLIK FAİZ | E10: =IFERROR(HLOOKUP(Senaryo,ÖdemeKarşilaştirmasi,4,FALSE),0) -> 5.00% | G10: KREDİ MALİYETİ | I10: =IFERROR(IF(Values_Entered,Scheduled_Monthly_Payment*Number_of_Payments,""),"") -> 237,584.07 ₺
B12: ÖDEME NO. | C12: ÖDEME TARİHİ | D12: AÇILIŞ BAKİYESİ | E12: PLANLANAN ÖDEME | F12: EK ÖDEME | G12: TOPLAM ÖDEME | H12: ANAPARA | I12: FAİZ | J12: KAPANIŞ BAKİYESİ | K12: BİRİKMELİ FAİZ
B13: =IF(Values_Entered,1,"") -> 1 | C13: =IF(Pay_Num<>"",Loan_Start,"") -> 2017-08-11 | D13: =IF(Values_Entered,Kredi_Tutari,"") -> 150,000.00 ₺ | E13: =IF(Pay_Num<>"",Scheduled_Monthly_Payment,"") -> 989.93 ₺ | F13: =IF(AND(Pay_Num<>"",Sched_Pay+Scheduled_Extra_Payments<Beg_Bal),Scheduled_Extra_Payments,IF(AND(Pay_Num<>"",Beg_Bal-Sched_Pay>0),Beg_Bal-Sched_Pay,IF(Pay_Num<>"",0,""))) -> 0 | G13: =IF(AND(Pay_Num<>"",Sched_Pay+Extra_Pay<Beg_Bal),Sched_Pay+Extra_Pay,IF(AND(Pay_Num<>"",scheduled_no_payments=1),Sched_Pay,IF(Pay_Num<>"",Beg_Bal,""))) -> 989.93 ₺ | H13: =IF(Pay_Num<>"",Total_Pay-Int,"") -> 364.93 ₺ | I13: =IF(Pay_Num<>"",Beg_Bal*(Interest_Rate/VLOOKUP(Interval,LoanLookup[],5,FALSE)),"") -> 625.00 ₺ | J13: =IF(AND(Pay_Num<>"",Sched_Pay+Extra_Pay<Beg_Bal),Beg_Bal-Princ,IF(Pay_Num<>"",0,"")) -> 149,635.07 ₺ | K13: =SUM($I$13:$I13) -> 625.00 ₺
B14: =IF(AND(Values_Entered,scheduled_no_payments<>1),B13+1,"") -> 2 | C14: =IF(Pay_Num<>"",DATE(YEAR(C13)+VLOOKUP(Interval,LoanLookup[],4,FALSE),MONTH(C13)+VLOOKUP(Interval,LoanLookup[],2,FALSE),DAY(C13)+VLOOKUP(Interval,LoanLookup[],3,FALSE)),"") -> 2017-09-11 | D14: =IF(Pay_Num<>"",J13,"") -> 149,635.07 ₺ | E14: =IF(Pay_Num<>"",Scheduled_Monthly_Payment,"") -> 989.93 ₺ | F14: =IF(scheduled_no_payments=1,"",IF(Sched_Pay+Scheduled_Extra_Payments<Beg_Bal,Scheduled_Extra_Payments,IF(AND(Pay_Num<>"",Beg_Bal-Sched_Pay>0),Beg_Bal-Sched_Pay,IF(Pay_Num<>"",0,"")))) -> 0 | G14: =IF(scheduled_no_payments=1,"",IF(Sched_Pay+Extra_Pay<Beg_Bal,Sched_Pay+Extra_Pay,IF(Pay_Num<>"",Beg_Bal,""))) -> 989.93 ₺ | H14: =IF(Pay_Num<>"",Total_Pay-Int,"") -> 366.45 ₺ | I14: =IF(Pay_Num<>"",Beg_Bal*(Interest_Rate/VLOOKUP(Interval,LoanLookup[],5,FALSE)),"") -> 623.48 ₺ | J14: =IF(scheduled_no_payments=1,"",IF(AND(Pay_Num<>"",Sched_Pay+Extra_Pay<Beg_Bal),Beg_Bal-Princ,IF(Pay_Num<>"",0,""))) -> 149,268.61 ₺ | K14: =IF(scheduled_no_payments=1,"",SUM($I$13:$I14)) -> 1,248.48 ₺
B15: =IF(AND(Values_Entered,scheduled_no_payments<>1),B14+1,"") -> 3 | C15: =IF(Pay_Num<>"",DATE(YEAR(C14)+VLOOKUP(Interval,LoanLookup[],4,FALSE),MONTH(C14)+VLOOKUP(Interval,LoanLookup[],2,FALSE),DAY(C14)+VLOOKUP(Interval,LoanLookup[],3,FALSE)),"") -> 2017-10-11 | D15: 149,268.61 ₺ | E15: =IF(Pay_Num<>"",Scheduled_Monthly_Payment,"") -> 989.93 ₺ | F15: =IF(scheduled_no_payments=1,"",IF(Sched_Pay+Scheduled_Extra_Payments<Beg_Bal,Scheduled_Extra_Payments,IF(AND(Pay_Num<>"",Beg_Bal-Sched_Pay>0),Beg_Bal-Sched_Pay,IF(Pay_Num<>"",0,"")))) -> 0 | G15: =IF(scheduled_no_payments=1,"",IF(Sched_Pay+Extra_Pay<Beg_Bal,Sched_Pay+Extra_Pay,IF(Pay_Num<>"",Beg_Bal,""))) -> 989.93 ₺ | H15: 367.98 ₺ | I15: =IF(Pay_Num<>"",Beg_Bal*(Interest_Rate/VLOOKUP(Interval,LoanLookup[],5,FALSE)),"") -> 621.95 ₺ | J15: =IF(scheduled_no_payments=1,"",IF(AND(Pay_Num<>"",Sched_Pay+Extra_Pay<Beg_Bal),Beg_Bal-Princ,IF(Pay_Num<>"",0,""))) -> 148,900.63 ₺ | K15: =IF(scheduled_no_payments=1,"",SUM($I$13:$I15)) -> 1,870.43 ₺
B16: =IF(AND(Values_Entered,scheduled_no_payments<>1),B15+1,"") -> 4 | C16: =IF(Pay_Num<>"",DATE(YEAR(C15)+VLOOKUP(Interval,LoanLookup[],4,FALSE),MONTH(C15)+VLOOKUP(Interval,LoanLookup[],2,FALSE),DAY(C15)+VLOOKUP(Interval,LoanLookup[],3,FALSE)),"") -> 2017-11-11 | D16: 148,900.63 ₺ | E16: =IF(Pay_Num<>"",Scheduled_Monthly_Payment,"") -> 989.93 ₺ | F16: =IF(scheduled_no_payments=1,"",IF(Sched_Pay+Scheduled_Extra_Payments<Beg_Bal,Scheduled_Extra_Payments,IF(AND(Pay_Num<>"",Beg_Bal-Sched_Pay>0),Beg_Bal-Sched_Pay,IF(Pay_Num<>"",0,"")))) -> 0 | G16: =IF(scheduled_no_payments=1,"",IF(Sched_Pay+Extra_Pay<Beg_Bal,Sched_Pay+Extra_Pay,IF(Pay_Num<>"",Beg_Bal,""))) -> 989.93 ₺ | H16: 369.51 ₺ | I16: =IF(Pay_Num<>"",Beg_Bal*(Interest_Rate/VLOOKUP(Interval,LoanLookup[],5,FALSE)),"") -> 620.42 ₺ | J16: =IF(scheduled_no_payments=1,"",IF(AND(Pay_Num<>"",Sched_Pay+Extra_Pay<Beg_Bal),Beg_Bal-Princ,IF(Pay_Num<>"",0,""))) -> 148,531.12 ₺ | K16: =IF(scheduled_no_payments=1,"",SUM($I$13:$I16)) -> 2,490.85 ₺
B17: =IF(AND(Values_Entered,scheduled_no_payments<>1),B16+1,"") -> 5 | C17: =IF(Pay_Num<>"",DATE(YEAR(C16)+VLOOKUP(Interval,LoanLookup[],4,FALSE),MONTH(C16)+VLOOKUP(Interval,LoanLookup[],2,FALSE),DAY(C16)+VLOOKUP(Interval,LoanLookup[],3,FALSE)),"") -> 2017-12-11 | D17: 148,531.12 ₺ | E17: 989.93 ₺ | F17: =IF(scheduled_no_payments=1,"",IF(Sched_Pay+Scheduled_Extra_Payments<Beg_Bal,Scheduled_Extra_Payments,IF(AND(Pay_Num<>"",Beg_Bal-Sched_Pay>0),Beg_Bal-Sched_Pay,IF(Pay_Num<>"",0,"")))) -> 0 | G17: =IF(scheduled_no_payments=1,"",IF(Sched_Pay+Extra_Pay<Beg_Bal,Sched_Pay+Extra_Pay,IF(Pay_Num<>"",Beg_Bal,""))) -> 989.93 ₺ | H17: 371.05 ₺ | I17: =IF(Pay_Num<>"",Beg_Bal*(Interest_Rate/VLOOKUP(Interval,LoanLookup[],5,FALSE)),"") -> 618.88 ₺ | J17: =IF(scheduled_no_payments=1,"",IF(AND(Pay_Num<>"",Sched_Pay+Extra_Pay<Beg_Bal),Beg_Bal-Princ,IF(Pay_Num<>"",0,""))) -> 148,160.06 ₺ | K17: =IF(scheduled_no_payments=1,"",SUM($I$13:$I17)) -> 3,109.73 ₺
B18: =IF(AND(Values_Entered,scheduled_no_payments<>1),B17+1,"") -> 6 | C18: =IF(Pay_Num<>"",DATE(YEAR(C17)+VLOOKUP(Interval,LoanLookup[],4,FALSE),MONTH(C17)+VLOOKUP(Interval,LoanLookup[],2,FALSE),DAY(C17)+VLOOKUP(Interval,LoanLookup[],3,FALSE)),"") -> 2018-01-11 | D18: 148,160.06 ₺ | E18: 989.93 ₺ | F18: =IF(scheduled_no_payments=1,"",IF(Sched_Pay+Scheduled_Extra_Payments<Beg_Bal,Scheduled_Extra_Payments,IF(AND(Pay_Num<>"",Beg_Bal-Sched_Pay>0),Beg_Bal-Sched_Pay,IF(Pay_Num<>"",0,"")))) -> 0 | G18: =IF(scheduled_no_payments=1,"",IF(Sched_Pay+Extra_Pay<Beg_Bal,Sched_Pay+Extra_Pay,IF(Pay_Num<>"",Beg_Bal,""))) -> 989.93 ₺ | H18: 372.60 ₺ | I18: =IF(Pay_Num<>"",Beg_Bal*(Interest_Rate/VLOOKUP(Interval,LoanLookup[],5,FALSE)),"") -> 617.33 ₺ | J18: =IF(scheduled_no_payments=1,"",IF(AND(Pay_Num<>"",Sched_Pay+Extra_Pay<Beg_Bal),Beg_Bal-Princ,IF(Pay_Num<>"",0,""))) -> 147,787.46 ₺ | K18: =IF(scheduled_no_payments=1,"",SUM($I$13:$I18)) -> 3,727.06 ₺
B19: =IF(AND(Values_Entered,scheduled_no_payments<>1),B18+1,"") -> 7 | C19: =IF(Pay_Num<>"",DATE(YEAR(C18)+VLOOKUP(Interval,LoanLookup[],4,FALSE),MONTH(C18)+VLOOKUP(Interval,LoanLookup[],2,FALSE),DAY(C18)+VLOOKUP(Interval,LoanLookup[],3,FALSE)),"") -> 2018-02-11 | D19: 147,787.46 ₺ | E19: 989.93 ₺ | F19: =IF(scheduled_no_payments=1,"",IF(Sched_Pay+Scheduled_Extra_Payments<Beg_Bal,Scheduled_Extra_Payments,IF(AND(Pay_Num<>"",Beg_Bal-Sched_Pay>0),Beg_Bal-Sched_Pay,IF(Pay_Num<>"",0,"")))) -> 0 | G19: =IF(scheduled_no_payments=1,"",IF(Sched_Pay+Extra_Pay<Beg_Bal,Sched_Pay+Extra_Pay,IF(Pay_Num<>"",Beg_Bal,""))) -> 989.93 ₺ | H19: 374.15 ₺ | I19: =IF(Pay_Num<>"",Beg_Bal*(Interest_Rate/VLOOKUP(Interval,LoanLookup[],5,FALSE)),"") -> 615.78 ₺ | J19: =IF(scheduled_no_payments=1,"",IF(AND(Pay_Num<>"",Sched_Pay+Extra_Pay<Beg_Bal),Beg_Bal-Princ,IF(Pay_Num<>"",0,""))) -> 147,413.31 ₺ | K19: =IF(scheduled_no_payments=1,"",SUM($I$13:$I19)) -> 4,342.85 ₺
B20: =IF(AND(Values_Entered,scheduled_no_payments<>1),B19+1,"") -> 8 | C20: =IF(Pay_Num<>"",DATE(YEAR(C19)+VLOOKUP(Interval,LoanLookup[],4,FALSE),MONTH(C19)+VLOOKUP(Interval,LoanLookup[],2,FALSE),DAY(C19)+VLOOKUP(Interval,LoanLookup[],3,FALSE)),"") -> 2018-03-11 | D20: 147,413.31 ₺ | E20: 989.93 ₺ | F20: =IF(scheduled_no_payments=1,"",IF(Sched_Pay+Scheduled_Extra_Payments<Beg_Bal,Scheduled_Extra_Payments,IF(AND(Pay_Num<>"",Beg_Bal-Sched_Pay>0),Beg_Bal-Sched_Pay,IF(Pay_Num<>"",0,"")))) -> 0 | G20: =IF(scheduled_no_payments=1,"",IF(Sched_Pay+Extra_Pay<Beg_Bal,Sched_Pay+Extra_Pay,IF(Pay_Num<>"",Beg_Bal,""))) -> 989.93 ₺ | H20: 375.71 ₺ | I20: =IF(Pay_Num<>"",Beg_Bal*(Interest_Rate/VLOOKUP(Interval,LoanLookup[],5,FALSE)),"") -> 614.22 ₺ | J20: =IF(scheduled_no_payments=1,"",IF(AND(Pay_Num<>"",Sched_Pay+Extra_Pay<Beg_Bal),Beg_Bal-Princ,IF(Pay_Num<>"",0,""))) -> 147,037.60 ₺ | K20: =IF(scheduled_no_payments=1,"",SUM($I$13:$I20)) -> 4,957.07 ₺
B21: =IF(AND(Values_Entered,scheduled_no_payments<>1),B20+1,"") -> 9 | C21: =IF(Pay_Num<>"",DATE(YEAR(C20)+VLOOKUP(Interval,LoanLookup[],4,FALSE),MONTH(C20)+VLOOKUP(Interval,LoanLookup[],2,FALSE),DAY(C20)+VLOOKUP(Interval,LoanLookup[],3,FALSE)),"") -> 2018-04-11 | D21: 147,037.60 ₺ | E21: 989.93 ₺ | F21: =IF(scheduled_no_payments=1,"",IF(Sched_Pay+Scheduled_Extra_Payments<Beg_Bal,Scheduled_Extra_Payments,IF(AND(Pay_Num<>"",Beg_Bal-Sched_Pay>0),Beg_Bal-Sched_Pay,IF(Pay_Num<>"",0,"")))) -> 0 | G21: =IF(scheduled_no_payments=1,"",IF(Sched_Pay+Extra_Pay<Beg_Bal,Sched_Pay+Extra_Pay,IF(Pay_Num<>"",Beg_Bal,""))) -> 989.93 ₺ | H21: 377.28 ₺ | I21: =IF(Pay_Num<>"",Beg_Bal*(Interest_Rate/VLOOKUP(Interval,LoanLookup[],5,FALSE)),"") -> 612.66 ₺ | J21: =IF(scheduled_no_payments=1,"",IF(AND(Pay_Num<>"",Sched_Pay+Extra_Pay<Beg_Bal),Beg_Bal-Princ,IF(Pay_Num<>"",0,""))) -> 146,660.32 ₺ | K21: =IF(scheduled_no_payments=1,"",SUM($I$13:$I21)) -> 5,569.72 ₺
B22: =IF(AND(Values_Entered,scheduled_no_payments<>1),B21+1,"") -> 10 | C22: =IF(Pay_Num<>"",DATE(YEAR(C21)+VLOOKUP(Interval,LoanLookup[],4,FALSE),MONTH(C21)+VLOOKUP(Interval,LoanLookup[],2,FALSE),DAY(C21)+VLOOKUP(Interval,LoanLookup[],3,FALSE)),"") -> 2018-05-11 | D22: 146,660.32 ₺ | E22: 989.93 ₺ | F22: =IF(scheduled_no_payments=1,"",IF(Sched_Pay+Scheduled_Extra_Payments<Beg_Bal,Scheduled_Extra_Payments,IF(AND(Pay_Num<>"",Beg_Bal-Sched_Pay>0),Beg_Bal-Sched_Pay,IF(Pay_Num<>"",0,"")))) -> 0 | G22: =IF(scheduled_no_payments=1,"",IF(Sched_Pay+Extra_Pay<Beg_Bal,Sched_Pay+Extra_Pay,IF(Pay_Num<>"",Beg_Bal,""))) -> 989.93 ₺ | H22: 378.85 ₺ | I22: =IF(Pay_Num<>"",Beg_Bal*(Interest_Rate/VLOOKUP(Interval,LoanLookup[],5,FALSE)),"") -> 611.08 ₺ | J22: =IF(scheduled_no_payments=1,"",IF(AND(Pay_Num<>"",Sched_Pay+Extra_Pay<Beg_Bal),Beg_Bal-Princ,IF(Pay_Num<>"",0,""))) -> 146,281.47 ₺ | K22: =IF(scheduled_no_payments=1,"",SUM($I$13:$I22)) -> 6,180.81 ₺
B23: =IF(AND(Values_Entered,scheduled_no_payments<>1),B22+1,"") -> 11 | C23: =IF(Pay_Num<>"",DATE(YEAR(C22)+VLOOKUP(Interval,LoanLookup[],4,FALSE),MONTH(C22)+VLOOKUP(Interval,LoanLookup[],2,FALSE),DAY(C22)+VLOOKUP(Interval,LoanLookup[],3,FALSE)),"") -> 2018-06-11 | D23: 146,281.47 ₺ | E23: 989.93 ₺ | F23: =IF(scheduled_no_payments=1,"",IF(Sched_Pay+Scheduled_Extra_Payments<Beg_Bal,Scheduled_Extra_Payments,IF(AND(Pay_Num<>"",Beg_Bal-Sched_Pay>0),Beg_Bal-Sched_Pay,IF(Pay_Num<>"",0,"")))) -> 0 | G23: =IF(scheduled_no_payments=1,"",IF(Sched_Pay+Extra_Pay<Beg_Bal,Sched_Pay+Extra_Pay,IF(Pay_Num<>"",Beg_Bal,""))) -> 989.93 ₺ | H23: 380.43 ₺ | I23: =IF(Pay_Num<>"",Beg_Bal*(Interest_Rate/VLOOKUP(Interval,LoanLookup[],5,FALSE)),"") -> 609.51 ₺ | J23: =IF(scheduled_no_payments=1,"",IF(AND(Pay_Num<>"",Sched_Pay+Extra_Pay<Beg_Bal),Beg_Bal-Princ,IF(Pay_Num<>"",0,""))) -> 145,901.05 ₺ | K23: =IF(scheduled_no_payments=1,"",SUM($I$13:$I23)) -> 6,790.32 ₺
B24: =IF(AND(Values_Entered,scheduled_no_payments<>1),B23+1,"") -> 12 | C24: =IF(Pay_Num<>"",DATE(YEAR(C23)+VLOOKUP(Interval,LoanLookup[],4,FALSE),MONTH(C23)+VLOOKUP(Interval,LoanLookup[],2,FALSE),DAY(C23)+VLOOKUP(Interval,LoanLookup[],3,FALSE)),"") -> 2018-07-11 | D24: 145,901.05 ₺ | E24: 989.93 ₺ | F24: =IF(scheduled_no_payments=1,"",IF(Sched_Pay+Scheduled_Extra_Payments<Beg_Bal,Scheduled_Extra_Payments,IF(AND(Pay_Num<>"",Beg_Bal-Sched_Pay>0),Beg_Bal-Sched_Pay,IF(Pay_Num<>"",0,"")))) -> 0 | G24: =IF(scheduled_no_payments=1,"",IF(Sched_Pay+Extra_Pay<Beg_Bal,Sched_Pay+Extra_Pay,IF(Pay_Num<>"",Beg_Bal,""))) -> 989.93 ₺ | H24: 382.01 ₺ | I24: =IF(Pay_Num<>"",Beg_Bal*(Interest_Rate/VLOOKUP(Interval,LoanLookup[],5,FALSE)),"") -> 607.92 ₺ | J24: =IF(scheduled_no_payments=1,"",IF(AND(Pay_Num<>"",Sched_Pay+Extra_Pay<Beg_Bal),Beg_Bal-Princ,IF(Pay_Num<>"",0,""))) -> 145,519.03 ₺ | K24: =IF(scheduled_no_payments=1,"",SUM($I$13:$I24)) -> 7,398.24 ₺
B25: =IF(AND(Values_Entered,scheduled_no_payments<>1),B24+1,"") -> 13 | C25: =IF(Pay_Num<>"",DATE(YEAR(C24)+VLOOKUP(Interval,LoanLookup[],4,FALSE),MONTH(C24)+VLOOKUP(Interval,LoanLookup[],2,FALSE),DAY(C24)+VLOOKUP(Interval,LoanLookup[],3,FALSE)),"") -> 2018-08-11 | D25: 145,519.03 ₺ | E25: 989.93 ₺ | F25: =IF(scheduled_no_payments=1,"",IF(Sched_Pay+Scheduled_Extra_Payments<Beg_Bal,Scheduled_Extra_Payments,IF(AND(Pay_Num<>"",Beg_Bal-Sched_Pay>0),Beg_Bal-Sched_Pay,IF(Pay_Num<>"",0,"")))) -> 0 | G25: =IF(scheduled_no_payments=1,"",IF(Sched_Pay+Extra_Pay<Beg_Bal,Sched_Pay+Extra_Pay,IF(Pay_Num<>"",Beg_Bal,""))) -> 989.93 ₺ | H25: 383.60 ₺ | I25: =IF(Pay_Num<>"",Beg_Bal*(Interest_Rate/VLOOKUP(Interval,LoanLookup[],5,FALSE)),"") -> 606.33 ₺ | J25: =IF(scheduled_no_payments=1,"",IF(AND(Pay_Num<>"",Sched_Pay+Extra_Pay<Beg_Bal),Beg_Bal-Princ,IF(Pay_Num<>"",0,""))) -> 145,135.43 ₺ | K25: =IF(scheduled_no_payments=1,"",SUM($I$13:$I25)) -> 8,004.57 ₺
B26: =IF(AND(Values_Entered,scheduled_no_payments<>1),B25+1,"") -> 14 | C26: =IF(Pay_Num<>"",DATE(YEAR(C25)+VLOOKUP(Interval,LoanLookup[],4,FALSE),MONTH(C25)+VLOOKUP(Interval,LoanLookup[],2,FALSE),DAY(C25)+VLOOKUP(Interval,LoanLookup[],3,FALSE)),"") -> 2018-09-11 | D26: 145,135.43 ₺ | E26: 989.93 ₺ | F26: =IF(scheduled_no_payments=1,"",IF(Sched_Pay+Scheduled_Extra_Payments<Beg_Bal,Scheduled_Extra_Payments,IF(AND(Pay_Num<>"",Beg_Bal-Sched_Pay>0),Beg_Bal-Sched_Pay,IF(Pay_Num<>"",0,"")))) -> 0 | G26: =IF(scheduled_no_payments=1,"",IF(Sched_Pay+Extra_Pay<Beg_Bal,Sched_Pay+Extra_Pay,IF(Pay_Num<>"",Beg_Bal,""))) -> 989.93 ₺ | H26: 385.20 ₺ | I26: =IF(Pay_Num<>"",Beg_Bal*(Interest_Rate/VLOOKUP(Interval,LoanLookup[],5,FALSE)),"") -> 604.73 ₺ | J26: =IF(scheduled_no_payments=1,"",IF(AND(Pay_Num<>"",Sched_Pay+Extra_Pay<Beg_Bal),Beg_Bal-Princ,IF(Pay_Num<>"",0,""))) -> 144,750.23 ₺ | K26: =IF(scheduled_no_payments=1,"",SUM($I$13:$I26)) -> 8,609.30 ₺
B27: =IF(AND(Values_Entered,scheduled_no_payments<>1),B26+1,"") -> 15 | C27: =IF(Pay_Num<>"",DATE(YEAR(C26)+VLOOKUP(Interval,LoanLookup[],4,FALSE),MONTH(C26)+VLOOKUP(Interval,LoanLookup[],2,FALSE),DAY(C26)+VLOOKUP(Interval,LoanLookup[],3,FALSE)),"") -> 2018-10-11 | D27: 144,750.23 ₺ | E27: 989.93 ₺ | F27: =IF(scheduled_no_payments=1,"",IF(Sched_Pay+Scheduled_Extra_Payments<Beg_Bal,Scheduled_Extra_Payments,IF(AND(Pay_Num<>"",Beg_Bal-Sched_Pay>0),Beg_Bal-Sched_Pay,IF(Pay_Num<>"",0,"")))) -> 0 | G27: =IF(scheduled_no_payments=1,"",IF(Sched_Pay+Extra_Pay<Beg_Bal,Sched_Pay+Extra_Pay,IF(Pay_Num<>"",Beg_Bal,""))) -> 989.93 ₺ | H27: 386.81 ₺ | I27: =IF(Pay_Num<>"",Beg_Bal*(Interest_Rate/VLOOKUP(Interval,LoanLookup[],5,FALSE)),"") -> 603.13 ₺ | J27: =IF(scheduled_no_payments=1,"",IF(AND(Pay_Num<>"",Sched_Pay+Extra_Pay<Beg_Bal),Beg_Bal-Princ,IF(Pay_Num<>"",0,""))) -> 144,363.42 ₺ | K27: =IF(scheduled_no_payments=1,"",SUM($I$13:$I27)) -> 9,212.42 ₺
B28: =IF(AND(Values_Entered,scheduled_no_payments<>1),B27+1,"") -> 16 | C28: =IF(Pay_Num<>"",DATE(YEAR(C27)+VLOOKUP(Interval,LoanLookup[],4,FALSE),MONTH(C27)+VLOOKUP(Interval,LoanLookup[],2,FALSE),DAY(C27)+VLOOKUP(Interval,LoanLookup[],3,FALSE)),"") -> 2018-11-11 | D28: 144,363.42 ₺ | E28: 989.93 ₺ | F28: =IF(scheduled_no_payments=1,"",IF(Sched_Pay+Scheduled_Extra_Payments<Beg_Bal,Scheduled_Extra_Payments,IF(AND(Pay_Num<>"",Beg_Bal-Sched_Pay>0),Beg_Bal-Sched_Pay,IF(Pay_Num<>"",0,"")))) -> 0 | G28: =IF(scheduled_no_payments=1,"",IF(Sched_Pay+Extra_Pay<Beg_Bal,Sched_Pay+Extra_Pay,IF(Pay_Num<>"",Beg_Bal,""))) -> 989.93 ₺ | H28: 388.42 ₺ | I28: =IF(Pay_Num<>"",Beg_Bal*(Interest_Rate/VLOOKUP(Interval,LoanLookup[],5,FALSE)),"") -> 601.51 ₺ | J28: =IF(scheduled_no_payments=1,"",IF(AND(Pay_Num<>"",Sched_Pay+Extra_Pay<Beg_Bal),Beg_Bal-Princ,IF(Pay_Num<>"",0,""))) -> 143,975.00 ₺ | K28: =IF(scheduled_no_payments=1,"",SUM($I$13:$I28)) -> 9,813.94 ₺
B29: =IF(AND(Values_Entered,scheduled_no_payments<>1),B28+1,"") -> 17 | C29: =IF(Pay_Num<>"",DATE(YEAR(C28)+VLOOKUP(Interval,LoanLookup[],4,FALSE),MONTH(C28)+VLOOKUP(Interval,LoanLookup[],2,FALSE),DAY(C28)+VLOOKUP(Interval,LoanLookup[],3,FALSE)),"") -> 2018-12-11 | D29: 143,975.00 ₺ | E29: 989.93 ₺ | F29: =IF(scheduled_no_payments=1,"",IF(Sched_Pay+Scheduled_Extra_Payments<Beg_Bal,Scheduled_Extra_Payments,IF(AND(Pay_Num<>"",Beg_Bal-Sched_Pay>0),Beg_Bal-Sched_Pay,IF(Pay_Num<>"",0,"")))) -> 0 | G29: =IF(scheduled_no_payments=1,"",IF(Sched_Pay+Extra_Pay<Beg_Bal,Sched_Pay+Extra_Pay,IF(Pay_Num<>"",Beg_Bal,""))) -> 989.93 ₺ | H29: 390.04 ₺ | I29: =IF(Pay_Num<>"",Beg_Bal*(Interest_Rate/VLOOKUP(Interval,LoanLookup[],5,FALSE)),"") -> 599.90 ₺ | J29: =IF(scheduled_no_payments=1,"",IF(AND(Pay_Num<>"",Sched_Pay+Extra_Pay<Beg_Bal),Beg_Bal-Princ,IF(Pay_Num<>"",0,""))) -> 143,584.96 ₺ | K29: =IF(scheduled_no_payments=1,"",SUM($I$13:$I29)) -> 10,413.83 ₺
B30: =IF(AND(Values_Entered,scheduled_no_payments<>1),B29+1,"") -> 18 | C30: =IF(Pay_Num<>"",DATE(YEAR(C29)+VLOOKUP(Interval,LoanLookup[],4,FALSE),MONTH(C29)+VLOOKUP(Interval,LoanLookup[],2,FALSE),DAY(C29)+VLOOKUP(Interval,LoanLookup[],3,FALSE)),"") -> 2019-01-11 | D30: 143,584.96 ₺ | E30: 989.93 ₺ | F30: =IF(scheduled_no_payments=1,"",IF(Sched_Pay+Scheduled_Extra_Payments<Beg_Bal,Scheduled_Extra_Payments,IF(AND(Pay_Num<>"",Beg_Bal-Sched_Pay>0),Beg_Bal-Sched_Pay,IF(Pay_Num<>"",0,"")))) -> 0 | G30: =IF(scheduled_no_payments=1,"",IF(Sched_Pay+Extra_Pay<Beg_Bal,Sched_Pay+Extra_Pay,IF(Pay_Num<>"",Beg_Bal,""))) -> 989.93 ₺ | H30: 391.66 ₺ | I30: =IF(Pay_Num<>"",Beg_Bal*(Interest_Rate/VLOOKUP(Interval,LoanLookup[],5,FALSE)),"") -> 598.27 ₺ | J30: =IF(scheduled_no_payments=1,"",IF(AND(Pay_Num<>"",Sched_Pay+Extra_Pay<Beg_Bal),Beg_Bal-Princ,IF(Pay_Num<>"",0,""))) -> 143,193.30 ₺ | K30: =IF(scheduled_no_payments=1,"",SUM($I$13:$I30)) -> 11,012.10 ₺
B31: =IF(AND(Values_Entered,scheduled_no_payments<>1),B30+1,"") -> 19 | C31: =IF(Pay_Num<>"",DATE(YEAR(C30)+VLOOKUP(Interval,LoanLookup[],4,FALSE),MONTH(C30)+VLOOKUP(Interval,LoanLookup[],2,FALSE),DAY(C30)+VLOOKUP(Interval,LoanLookup[],3,FALSE)),"") -> 2019-02-11 | D31: 143,193.30 ₺ | E31: 989.93 ₺ | F31: =IF(scheduled_no_payments=1,"",IF(Sched_Pay+Scheduled_Extra_Payments<Beg_Bal,Scheduled_Extra_Payments,IF(AND(Pay_Num<>"",Beg_Bal-Sched_Pay>0),Beg_Bal-Sched_Pay,IF(Pay_Num<>"",0,"")))) -> 0 | G31: =IF(scheduled_no_payments=1,"",IF(Sched_Pay+Extra_Pay<Beg_Bal,Sched_Pay+Extra_Pay,IF(Pay_Num<>"",Beg_Bal,""))) -> 989.93 ₺ | H31: 393.29 ₺ | I31: =IF(Pay_Num<>"",Beg_Bal*(Interest_Rate/VLOOKUP(Interval,LoanLookup[],5,FALSE)),"") -> 596.64 ₺ | J31: =IF(scheduled_no_payments=1,"",IF(AND(Pay_Num<>"",Sched_Pay+Extra_Pay<Beg_Bal),Beg_Bal-Princ,IF(Pay_Num<>"",0,""))) -> 142,800.00 ₺ | K31: =IF(scheduled_no_payments=1,"",SUM($I$13:$I31)) -> 11,608.74 ₺
B32: =IF(AND(Values_Entered,scheduled_no_payments<>1),B31+1,"") -> 20 | C32: =IF(Pay_Num<>"",DATE(YEAR(C31)+VLOOKUP(Interval,LoanLookup[],4,FALSE),MONTH(C31)+VLOOKUP(Interval,LoanLookup[],2,FALSE),DAY(C31)+VLOOKUP(Interval,LoanLookup[],3,FALSE)),"") -> 2019-03-11 | D32: 142,800.00 ₺ | E32: 989.93 ₺ | F32: =IF(scheduled_no_payments=1,"",IF(Sched_Pay+Scheduled_Extra_Payments<Beg_Bal,Scheduled_Extra_Payments,IF(AND(Pay_Num<>"",Beg_Bal-Sched_Pay>0),Beg_Bal-Sched_Pay,IF(Pay_Num<>"",0,"")))) -> 0 | G32: =IF(scheduled_no_payments=1,"",IF(Sched_Pay+Extra_Pay<Beg_Bal,Sched_Pay+Extra_Pay,IF(Pay_Num<>"",Beg_Bal,""))) -> 989.93 ₺ | H32: 394.93 ₺ | I32: =IF(Pay_Num<>"",Beg_Bal*(Interest_Rate/VLOOKUP(Interval,LoanLookup[],5,FALSE)),"") -> 595.00 ₺ | J32: =IF(scheduled_no_payments=1,"",IF(AND(Pay_Num<>"",Sched_Pay+Extra_Pay<Beg_Bal),Beg_Bal-Princ,IF(Pay_Num<>"",0,""))) -> 142,405.07 ₺ | K32: =IF(scheduled_no_payments=1,"",SUM($I$13:$I32)) -> 12,203.74 ₺
B33: =IF(AND(Values_Entered,scheduled_no_payments<>1),B32+1,"") -> 21 | C33: =IF(Pay_Num<>"",DATE(YEAR(C32)+VLOOKUP(Interval,LoanLookup[],4,FALSE),MONTH(C32)+VLOOKUP(Interval,LoanLookup[],2,FALSE),DAY(C32)+VLOOKUP(Interval,LoanLookup[],3,FALSE)),"") -> 2019-04-11 | D33: 142,405.07 ₺ | E33: 989.93 ₺ | F33: =IF(scheduled_no_payments=1,"",IF(Sched_Pay+Scheduled_Extra_Payments<Beg_Bal,Scheduled_Extra_Payments,IF(AND(Pay_Num<>"",Beg_Bal-Sched_Pay>0),Beg_Bal-Sched_Pay,IF(Pay_Num<>"",0,"")))) -> 0 | G33: =IF(scheduled_no_payments=1,"",IF(Sched_Pay+Extra_Pay<Beg_Bal,Sched_Pay+Extra_Pay,IF(Pay_Num<>"",Beg_Bal,""))) -> 989.93 ₺ | H33: 396.58 ₺ | I33: =IF(Pay_Num<>"",Beg_Bal*(Interest_Rate/VLOOKUP(Interval,LoanLookup[],5,FALSE)),"") -> 593.35 ₺ | J33: =IF(scheduled_no_payments=1,"",IF(AND(Pay_Num<>"",Sched_Pay+Extra_Pay<Beg_Bal),Beg_Bal-Princ,IF(Pay_Num<>"",0,""))) -> 142,008.49 ₺ | K33: =IF(scheduled_no_payments=1,"",SUM($I$13:$I33)) -> 12,797.10 ₺
B34: =IF(AND(Values_Entered,scheduled_no_payments<>1),B33+1,"") -> 22 | C34: =IF(Pay_Num<>"",DATE(YEAR(C33)+VLOOKUP(Interval,LoanLookup[],4,FALSE),MONTH(C33)+VLOOKUP(Interval,LoanLookup[],2,FALSE),DAY(C33)+VLOOKUP(Interval,LoanLookup[],3,FALSE)),"") -> 2019-05-11 | D34: 142,008.49 ₺ | E34: 989.93 ₺ | F34: =IF(scheduled_no_payments=1,"",IF(Sched_Pay+Scheduled_Extra_Payments<Beg_Bal,Scheduled_Extra_Payments,IF(AND(Pay_Num<>"",Beg_Bal-Sched_Pay>0),Beg_Bal-Sched_Pay,IF(Pay_Num<>"",0,"")))) -> 0 | G34: =IF(scheduled_no_payments=1,"",IF(Sched_Pay+Extra_Pay<Beg_Bal,Sched_Pay+Extra_Pay,IF(Pay_Num<>"",Beg_Bal,""))) -> 989.93 ₺ | H34: 398.23 ₺ | I34: =IF(Pay_Num<>"",Beg_Bal*(Interest_Rate/VLOOKUP(Interval,LoanLookup[],5,FALSE)),"") -> 591.70 ₺ | J34: =IF(scheduled_no_payments=1,"",IF(AND(Pay_Num<>"",Sched_Pay+Extra_Pay<Beg_Bal),Beg_Bal-Princ,IF(Pay_Num<>"",0,""))) -> 141,610.26 ₺ | K34: =IF(scheduled_no_payments=1,"",SUM($I$13:$I34)) -> 13,388.80 ₺
B35: =IF(AND(Values_Entered,scheduled_no_payments<>1),B34+1,"") -> 23 | C35: =IF(Pay_Num<>"",DATE(YEAR(C34)+VLOOKUP(Interval,LoanLookup[],4,FALSE),MONTH(C34)+VLOOKUP(Interval,LoanLookup[],2,FALSE),DAY(C34)+VLOOKUP(Interval,LoanLookup[],3,FALSE)),"") -> 2019-06-11 | D35: 141,610.26 ₺ | E35: 989.93 ₺ | F35: =IF(scheduled_no_payments=1,"",IF(Sched_Pay+Scheduled_Extra_Payments<Beg_Bal,Scheduled_Extra_Payments,IF(AND(Pay_Num<>"",Beg_Bal-Sched_Pay>0),Beg_Bal-Sched_Pay,IF(Pay_Num<>"",0,"")))) -> 0 | G35: =IF(scheduled_no_payments=1,"",IF(Sched_Pay+Extra_Pay<Beg_Bal,Sched_Pay+Extra_Pay,IF(Pay_Num<>"",Beg_Bal,""))) -> 989.93 ₺ | H35: 399.89 ₺ | I35: =IF(Pay_Num<>"",Beg_Bal*(Interest_Rate/VLOOKUP(Interval,LoanLookup[],5,FALSE)),"") -> 590.04 ₺ | J35: =IF(scheduled_no_payments=1,"",IF(AND(Pay_Num<>"",Sched_Pay+Extra_Pay<Beg_Bal),Beg_Bal-Princ,IF(Pay_Num<>"",0,""))) -> 141,210.37 ₺ | K35: =IF(scheduled_no_payments=1,"",SUM($I$13:$I35)) -> 13,978.84 ₺
B36: =IF(AND(Values_Entered,scheduled_no_payments<>1),B35+1,"") -> 24 | C36: =IF(Pay_Num<>"",DATE(YEAR(C35)+VLOOKUP(Interval,LoanLookup[],4,FALSE),MONTH(C35)+VLOOKUP(Interval,LoanLookup[],2,FALSE),DAY(C35)+VLOOKUP(Interval,LoanLookup[],3,FALSE)),"") -> 2019-07-11 | D36: 141,210.37 ₺ | E36: 989.93 ₺ | F36: =IF(scheduled_no_payments=1,"",IF(Sched_Pay+Scheduled_Extra_Payments<Beg_Bal,Scheduled_Extra_Payments,IF(AND(Pay_Num<>"",Beg_Bal-Sched_Pay>0),Beg_Bal-Sched_Pay,IF(Pay_Num<>"",0,"")))) -> 0 | G36: =IF(scheduled_no_payments=1,"",IF(Sched_Pay+Extra_Pay<Beg_Bal,Sched_Pay+Extra_Pay,IF(Pay_Num<>"",Beg_Bal,""))) -> 989.93 ₺ | H36: 401.56 ₺ | I36: =IF(Pay_Num<>"",Beg_Bal*(Interest_Rate/VLOOKUP(Interval,LoanLookup[],5,FALSE)),"") -> 588.38 ₺ | J36: =IF(scheduled_no_payments=1,"",IF(AND(Pay_Num<>"",Sched_Pay+Extra_Pay<Beg_Bal),Beg_Bal-Princ,IF(Pay_Num<>"",0,""))) -> 140,808.81 ₺ | K36: =IF(scheduled_no_payments=1,"",SUM($I$13:$I36)) -> 14,567.22 ₺
B37: =IF(AND(Values_Entered,scheduled_no_payments<>1),B36+1,"") -> 25 | C37: =IF(Pay_Num<>"",DATE(YEAR(C36)+VLOOKUP(Interval,LoanLookup[],4,FALSE),MONTH(C36)+VLOOKUP(Interval,LoanLookup[],2,FALSE),DAY(C36)+VLOOKUP(Interval,LoanLookup[],3,FALSE)),"") -> 2019-08-11 | D37: 140,808.81 ₺ | E37: 989.93 ₺ | F37: =IF(scheduled_no_payments=1,"",IF(Sched_Pay+Scheduled_Extra_Payments<Beg_Bal,Scheduled_Extra_Payments,IF(AND(Pay_Num<>"",Beg_Bal-Sched_Pay>0),Beg_Bal-Sched_Pay,IF(Pay_Num<>"",0,"")))) -> 0 | G37: =IF(scheduled_no_payments=1,"",IF(Sched_Pay+Extra_Pay<Beg_Bal,Sched_Pay+Extra_Pay,IF(Pay_Num<>"",Beg_Bal,""))) -> 989.93 ₺ | H37: 403.23 ₺ | I37: =IF(Pay_Num<>"",Beg_Bal*(Interest_Rate/VLOOKUP(Interval,LoanLookup[],5,FALSE)),"") -> 586.70 ₺ | J37: =IF(scheduled_no_payments=1,"",IF(AND(Pay_Num<>"",Sched_Pay+Extra_Pay<Beg_Bal),Beg_Bal-Princ,IF(Pay_Num<>"",0,""))) -> 140,405.58 ₺ | K37: =IF(scheduled_no_payments=1,"",SUM($I$13:$I37)) -> 15,153.92 ₺
B38: =IF(AND(Values_Entered,scheduled_no_payments<>1),B37+1,"") -> 26 | C38: =IF(Pay_Num<>"",DATE(YEAR(C37)+VLOOKUP(Interval,LoanLookup[],4,FALSE),MONTH(C37)+VLOOKUP(Interval,LoanLookup[],2,FALSE),DAY(C37)+VLOOKUP(Interval,LoanLookup[],3,FALSE)),"") -> 2019-09-11 | D38: 140,405.58 ₺ | E38: 989.93 ₺ | F38: =IF(scheduled_no_payments=1,"",IF(Sched_Pay+Scheduled_Extra_Payments<Beg_Bal,Scheduled_Extra_Payments,IF(AND(Pay_Num<>"",Beg_Bal-Sched_Pay>0),Beg_Bal-Sched_Pay,IF(Pay_Num<>"",0,"")))) -> 0 | G38: =IF(scheduled_no_payments=1,"",IF(Sched_Pay+Extra_Pay<Beg_Bal,Sched_Pay+Extra_Pay,IF(Pay_Num<>"",Beg_Bal,""))) -> 989.93 ₺ | H38: 404.91 ₺ | I38: =IF(Pay_Num<>"",Beg_Bal*(Interest_Rate/VLOOKUP(Interval,LoanLookup[],5,FALSE)),"") -> 585.02 ₺ | J38: =IF(scheduled_no_payments=1,"",IF(AND(Pay_Num<>"",Sched_Pay+Extra_Pay<Beg_Bal),Beg_Bal-Princ,IF(Pay_Num<>"",0,""))) -> 140,000.67 ₺ | K38: =IF(scheduled_no_payments=1,"",SUM($I$13:$I38)) -> 15,738.94 ₺
B39: =IF(AND(Values_Entered,scheduled_no_payments<>1),B38+1,"") -> 27 | C39: =IF(Pay_Num<>"",DATE(YEAR(C38)+VLOOKUP(Interval,LoanLookup[],4,FALSE),MONTH(C38)+VLOOKUP(Interval,LoanLookup[],2,FALSE),DAY(C38)+VLOOKUP(Interval,LoanLookup[],3,FALSE)),"") -> 2019-10-11 | D39: 140,000.67 ₺ | E39: 989.93 ₺ | F39: =IF(scheduled_no_payments=1,"",IF(Sched_Pay+Scheduled_Extra_Payments<Beg_Bal,Scheduled_Extra_Payments,IF(AND(Pay_Num<>"",Beg_Bal-Sched_Pay>0),Beg_Bal-Sched_Pay,IF(Pay_Num<>"",0,"")))) -> 0 | G39: =IF(scheduled_no_payments=1,"",IF(Sched_Pay+Extra_Pay<Beg_Bal,Sched_Pay+Extra_Pay,IF(Pay_Num<>"",Beg_Bal,""))) -> 989.93 ₺ | H39: 406.60 ₺ | I39: =IF(Pay_Num<>"",Beg_Bal*(Interest_Rate/VLOOKUP(Interval,LoanLookup[],5,FALSE)),"") -> 583.34 ₺ | J39: =IF(scheduled_no_payments=1,"",IF(AND(Pay_Num<>"",Sched_Pay+Extra_Pay<Beg_Bal),Beg_Bal-Princ,IF(Pay_Num<>"",0,""))) -> 139,594.07 ₺ | K39: =IF(scheduled_no_payments=1,"",SUM($I$13:$I39)) -> 16,322.28 ₺
B40: =IF(AND(Values_Entered,scheduled_no_payments<>1),B39+1,"") -> 28 | C40: =IF(Pay_Num<>"",DATE(YEAR(C39)+VLOOKUP(Interval,LoanLookup[],4,FALSE),MONTH(C39)+VLOOKUP(Interval,LoanLookup[],2,FALSE),DAY(C39)+VLOOKUP(Interval,LoanLookup[],3,FALSE)),"") -> 2019-11-11 | D40: 139,594.07 ₺ | E40: 989.93 ₺ | F40: =IF(scheduled_no_payments=1,"",IF(Sched_Pay+Scheduled_Extra_Payments<Beg_Bal,Scheduled_Extra_Payments,IF(AND(Pay_Num<>"",Beg_Bal-Sched_Pay>0),Beg_Bal-Sched_Pay,IF(Pay_Num<>"",0,"")))) -> 0 | G40: =IF(scheduled_no_payments=1,"",IF(Sched_Pay+Extra_Pay<Beg_Bal,Sched_Pay+Extra_Pay,IF(Pay_Num<>"",Beg_Bal,""))) -> 989.93 ₺ | H40: 408.29 ₺ | I40: =IF(Pay_Num<>"",Beg_Bal*(Interest_Rate/VLOOKUP(Interval,LoanLookup[],5,FALSE)),"") -> 581.64 ₺ | J40: =IF(scheduled_no_payments=1,"",IF(AND(Pay_Num<>"",Sched_Pay+Extra_Pay<Beg_Bal),Beg_Bal-Princ,IF(Pay_Num<>"",0,""))) -> 139,185.78 ₺ | K40: =IF(scheduled_no_payments=1,"",SUM($I$13:$I40)) -> 16,903.92 ₺
B41: =IF(AND(Values_Entered,scheduled_no_payments<>1),B40+1,"") -> 29 | C41: =IF(Pay_Num<>"",DATE(YEAR(C40)+VLOOKUP(Interval,LoanLookup[],4,FALSE),MONTH(C40)+VLOOKUP(Interval,LoanLookup[],2,FALSE),DAY(C40)+VLOOKUP(Interval,LoanLookup[],3,FALSE)),"") -> 2019-12-11 | D41: 139,185.78 ₺ | E41: 989.93 ₺ | F41: =IF(scheduled_no_payments=1,"",IF(Sched_Pay+Scheduled_Extra_Payments<Beg_Bal,Scheduled_Extra_Payments,IF(AND(Pay_Num<>"",Beg_Bal-Sched_Pay>0),Beg_Bal-Sched_Pay,IF(Pay_Num<>"",0,"")))) -> 0 | G41: =IF(scheduled_no_payments=1,"",IF(Sched_Pay+Extra_Pay<Beg_Bal,Sched_Pay+Extra_Pay,IF(Pay_Num<>"",Beg_Bal,""))) -> 989.93 ₺ | H41: 409.99 ₺ | I41: =IF(Pay_Num<>"",Beg_Bal*(Interest_Rate/VLOOKUP(Interval,LoanLookup[],5,FALSE)),"") -> 579.94 ₺ | J41: =IF(scheduled_no_payments=1,"",IF(AND(Pay_Num<>"",Sched_Pay+Extra_Pay<Beg_Bal),Beg_Bal-Princ,IF(Pay_Num<>"",0,""))) -> 138,775.79 ₺ | K41: =IF(scheduled_no_payments=1,"",SUM($I$13:$I41)) -> 17,483.86 ₺
B42: =IF(AND(Values_Entered,scheduled_no_payments<>1),B41+1,"") -> 30 | C42: =IF(Pay_Num<>"",DATE(YEAR(C41)+VLOOKUP(Interval,LoanLookup[],4,FALSE),MONTH(C41)+VLOOKUP(Interval,LoanLookup[],2,FALSE),DAY(C41)+VLOOKUP(Interval,LoanLookup[],3,FALSE)),"") -> 2020-01-11 | D42: 138,775.79 ₺ | E42: 989.93 ₺ | F42: =IF(scheduled_no_payments=1,"",IF(Sched_Pay+Scheduled_Extra_Payments<Beg_Bal,Scheduled_Extra_Payments,IF(AND(Pay_Num<>"",Beg_Bal-Sched_Pay>0),Beg_Bal-Sched_Pay,IF(Pay_Num<>"",0,"")))) -> 0 | G42: =IF(scheduled_no_payments=1,"",IF(Sched_Pay+Extra_Pay<Beg_Bal,Sched_Pay+Extra_Pay,IF(Pay_Num<>"",Beg_Bal,""))) -> 989.93 ₺ | H42: 411.70 ₺ | I42: =IF(Pay_Num<>"",Beg_Bal*(Interest_Rate/VLOOKUP(Interval,LoanLookup[],5,FALSE)),"") -> 578.23 ₺ | J42: =IF(scheduled_no_payments=1,"",IF(AND(Pay_Num<>"",Sched_Pay+Extra_Pay<Beg_Bal),Beg_Bal-Princ,IF(Pay_Num<>"",0,""))) -> 138,364.09 ₺ | K42: =IF(scheduled_no_payments=1,"",SUM($I$13:$I42)) -> 18,062.10 ₺
B43: =IF(AND(Values_Entered,scheduled_no_payments<>1),B42+1,"") -> 31 | C43: =IF(Pay_Num<>"",DATE(YEAR(C42)+VLOOKUP(Interval,LoanLookup[],4,FALSE),MONTH(C42)+VLOOKUP(Interval,LoanLookup[],2,FALSE),DAY(C42)+VLOOKUP(Interval,LoanLookup[],3,FALSE)),"") -> 2020-02-11 | D43: 138,364.09 ₺ | E43: 989.93 ₺ | F43: =IF(scheduled_no_payments=1,"",IF(Sched_Pay+Scheduled_Extra_Payments<Beg_Bal,Scheduled_Extra_Payments,IF(AND(Pay_Num<>"",Beg_Bal-Sched_Pay>0),Beg_Bal-Sched_Pay,IF(Pay_Num<>"",0,"")))) -> 0 | G43: =IF(scheduled_no_payments=1,"",IF(Sched_Pay+Extra_Pay<Beg_Bal,Sched_Pay+Extra_Pay,IF(Pay_Num<>"",Beg_Bal,""))) -> 989.93 ₺ | H43: 413.42 ₺ | I43: =IF(Pay_Num<>"",Beg_Bal*(Interest_Rate/VLOOKUP(Interval,LoanLookup[],5,FALSE)),"") -> 576.52 ₺ | J43: =IF(scheduled_no_payments=1,"",IF(AND(Pay_Num<>"",Sched_Pay+Extra_Pay<Beg_Bal),Beg_Bal-Princ,IF(Pay_Num<>"",0,""))) -> 137,950.67 ₺ | K43: =IF(scheduled_no_payments=1,"",SUM($I$13:$I43)) -> 18,638.61 ₺
B44: =IF(AND(Values_Entered,scheduled_no_payments<>1),B43+1,"") -> 32 | C44: =IF(Pay_Num<>"",DATE(YEAR(C43)+VLOOKUP(Interval,LoanLookup[],4,FALSE),MONTH(C43)+VLOOKUP(Interval,LoanLookup[],2,FALSE),DAY(C43)+VLOOKUP(Interval,LoanLookup[],3,FALSE)),"") -> 2020-03-11 | D44: 137,950.67 ₺ | E44: 989.93 ₺ | F44: =IF(scheduled_no_payments=1,"",IF(Sched_Pay+Scheduled_Extra_Payments<Beg_Bal,Scheduled_Extra_Payments,IF(AND(Pay_Num<>"",Beg_Bal-Sched_Pay>0),Beg_Bal-Sched_Pay,IF(Pay_Num<>"",0,"")))) -> 0 | G44: =IF(scheduled_no_payments=1,"",IF(Sched_Pay+Extra_Pay<Beg_Bal,Sched_Pay+Extra_Pay,IF(Pay_Num<>"",Beg_Bal,""))) -> 989.93 ₺ | H44: 415.14 ₺ | I44: =IF(Pay_Num<>"",Beg_Bal*(Interest_Rate/VLOOKUP(Interval,LoanLookup[],5,FALSE)),"") -> 574.79 ₺ | J44: =IF(scheduled_no_payments=1,"",IF(AND(Pay_Num<>"",Sched_Pay+Extra_Pay<Beg_Bal),Beg_Bal-Princ,IF(Pay_Num<>"",0,""))) -> 137,535.53 ₺ | K44: =IF(scheduled_no_payments=1,"",SUM($I$13:$I44)) -> 19,213.41 ₺
B45: =IF(AND(Values_Entered,scheduled_no_payments<>1),B44+1,"") -> 33 | C45: =IF(Pay_Num<>"",DATE(YEAR(C44)+VLOOKUP(Interval,LoanLookup[],4,FALSE),MONTH(C44)+VLOOKUP(Interval,LoanLookup[],2,FALSE),DAY(C44)+VLOOKUP(Interval,LoanLookup[],3,FALSE)),"") -> 2020-04-11 | D45: 137,535.53 ₺ | E45: 989.93 ₺ | F45: =IF(scheduled_no_payments=1,"",IF(Sched_Pay+Scheduled_Extra_Payments<Beg_Bal,Scheduled_Extra_Payments,IF(AND(Pay_Num<>"",Beg_Bal-Sched_Pay>0),Beg_Bal-Sched_Pay,IF(Pay_Num<>"",0,"")))) -> 0 | G45: =IF(scheduled_no_payments=1,"",IF(Sched_Pay+Extra_Pay<Beg_Bal,Sched_Pay+Extra_Pay,IF(Pay_Num<>"",Beg_Bal,""))) -> 989.93 ₺ | H45: 416.87 ₺ | I45: =IF(Pay_Num<>"",Beg_Bal*(Interest_Rate/VLOOKUP(Interval,LoanLookup[],5,FALSE)),"") -> 573.06 ₺ | J45: =IF(scheduled_no_payments=1,"",IF(AND(Pay_Num<>"",Sched_Pay+Extra_Pay<Beg_Bal),Beg_Bal-Princ,IF(Pay_Num<>"",0,""))) -> 137,118.66 ₺ | K45: =IF(scheduled_no_payments=1,"",SUM($I$13:$I45)) -> 19,786.47 ₺
B46: =IF(AND(Values_Entered,scheduled_no_payments<>1),B45+1,"") -> 34 | C46: =IF(Pay_Num<>"",DATE(YEAR(C45)+VLOOKUP(Interval,LoanLookup[],4,FALSE),MONTH(C45)+VLOOKUP(Interval,LoanLookup[],2,FALSE),DAY(C45)+VLOOKUP(Interval,LoanLookup[],3,FALSE)),"") -> 2020-05-11 | D46: 137,118.66 ₺ | E46: 989.93 ₺ | F46: =IF(scheduled_no_payments=1,"",IF(Sched_Pay+Scheduled_Extra_Payments<Beg_Bal,Scheduled_Extra_Payments,IF(AND(Pay_Num<>"",Beg_Bal-Sched_Pay>0),Beg_Bal-Sched_Pay,IF(Pay_Num<>"",0,"")))) -> 0 | G46: =IF(scheduled_no_payments=1,"",IF(Sched_Pay+Extra_Pay<Beg_Bal,Sched_Pay+Extra_Pay,IF(Pay_Num<>"",Beg_Bal,""))) -> 989.93 ₺ | H46: 418.61 ₺ | I46: =IF(Pay_Num<>"",Beg_Bal*(Interest_Rate/VLOOKUP(Interval,LoanLookup[],5,FALSE)),"") -> 571.33 ₺ | J46: =IF(scheduled_no_payments=1,"",IF(AND(Pay_Num<>"",Sched_Pay+Extra_Pay<Beg_Bal),Beg_Bal-Princ,IF(Pay_Num<>"",0,""))) -> 136,700.06 ₺ | K46: =IF(scheduled_no_payments=1,"",SUM($I$13:$I46)) -> 20,357.80 ₺
B47: =IF(AND(Values_Entered,scheduled_no_payments<>1),B46+1,"") -> 35 | C47: =IF(Pay_Num<>"",DATE(YEAR(C46)+VLOOKUP(Interval,LoanLookup[],4,FALSE),MONTH(C46)+VLOOKUP(Interval,LoanLookup[],2,FALSE),DAY(C46)+VLOOKUP(Interval,LoanLookup[],3,FALSE)),"") -> 2020-06-11 | D47: 136,700.06 ₺ | E47: 989.93 ₺ | F47: =IF(scheduled_no_payments=1,"",IF(Sched_Pay+Scheduled_Extra_Payments<Beg_Bal,Scheduled_Extra_Payments,IF(AND(Pay_Num<>"",Beg_Bal-Sched_Pay>0),Beg_Bal-Sched_Pay,IF(Pay_Num<>"",0,"")))) -> 0 | G47: =IF(scheduled_no_payments=1,"",IF(Sched_Pay+Extra_Pay<Beg_Bal,Sched_Pay+Extra_Pay,IF(Pay_Num<>"",Beg_Bal,""))) -> 989.93 ₺ | H47: 420.35 ₺ | I47: =IF(Pay_Num<>"",Beg_Bal*(Interest_Rate/VLOOKUP(Interval,LoanLookup[],5,FALSE)),"") -> 569.58 ₺ | J47: =IF(scheduled_no_payments=1,"",IF(AND(Pay_Num<>"",Sched_Pay+Extra_Pay<Beg_Bal),Beg_Bal-Princ,IF(Pay_Num<>"",0,""))) -> 136,279.71 ₺ | K47: =IF(scheduled_no_payments=1,"",SUM($I$13:$I47)) -> 20,927.38 ₺
B48: =IF(AND(Values_Entered,scheduled_no_payments<>1),B47+1,"") -> 36 | C48: =IF(Pay_Num<>"",DATE(YEAR(C47)+VLOOKUP(Interval,LoanLookup[],4,FALSE),MONTH(C47)+VLOOKUP(Interval,LoanLookup[],2,FALSE),DAY(C47)+VLOOKUP(Interval,LoanLookup[],3,FALSE)),"") -> 2020-07-11 | D48: 136,279.71 ₺ | E48: 989.93 ₺ | F48: =IF(scheduled_no_payments=1,"",IF(Sched_Pay+Scheduled_Extra_Payments<Beg_Bal,Scheduled_Extra_Payments,IF(AND(Pay_Num<>"",Beg_Bal-Sched_Pay>0),Beg_Bal-Sched_Pay,IF(Pay_Num<>"",0,"")))) -> 0 | G48: =IF(scheduled_no_payments=1,"",IF(Sched_Pay+Extra_Pay<Beg_Bal,Sched_Pay+Extra_Pay,IF(Pay_Num<>"",Beg_Bal,""))) -> 989.93 ₺ | H48: 422.10 ₺ | I48: =IF(Pay_Num<>"",Beg_Bal*(Interest_Rate/VLOOKUP(Interval,LoanLookup[],5,FALSE)),"") -> 567.83 ₺ | J48: =IF(scheduled_no_payments=1,"",IF(AND(Pay_Num<>"",Sched_Pay+Extra_Pay<Beg_Bal),Beg_Bal-Princ,IF(Pay_Num<>"",0,""))) -> 135,857.61 ₺ | K48: =IF(scheduled_no_payments=1,"",SUM($I$13:$I48)) -> 21,495.22 ₺
B49: =IF(AND(Values_Entered,scheduled_no_payments<>1),B48+1,"") -> 37 | C49: =IF(Pay_Num<>"",DATE(YEAR(C48)+VLOOKUP(Interval,LoanLookup[],4,FALSE),MONTH(C48)+VLOOKUP(Interval,LoanLookup[],2,FALSE),DAY(C48)+VLOOKUP(Interval,LoanLookup[],3,FALSE)),"") -> 2020-08-11 | D49: 135,857.61 ₺ | E49: 989.93 ₺ | F49: =IF(scheduled_no_payments=1,"",IF(Sched_Pay+Scheduled_Extra_Payments<Beg_Bal,Scheduled_Extra_Payments,IF(AND(Pay_Num<>"",Beg_Bal-Sched_Pay>0),Beg_Bal-Sched_Pay,IF(Pay_Num<>"",0,"")))) -> 0 | G49: =IF(scheduled_no_payments=1,"",IF(Sched_Pay+Extra_Pay<Beg_Bal,Sched_Pay+Extra_Pay,IF(Pay_Num<>"",Beg_Bal,""))) -> 989.93 ₺ | H49: 423.86 ₺ | I49: =IF(Pay_Num<>"",Beg_Bal*(Interest_Rate/VLOOKUP(Interval,LoanLookup[],5,FALSE)),"") -> 566.07 ₺ | J49: =IF(scheduled_no_payments=1,"",IF(AND(Pay_Num<>"",Sched_Pay+Extra_Pay<Beg_Bal),Beg_Bal-Princ,IF(Pay_Num<>"",0,""))) -> 135,433.75 ₺ | K49: =IF(scheduled_no_payments=1,"",SUM($I$13:$I49)) -> 22,061.29 ₺
B50: =IF(AND(Values_Entered,scheduled_no_payments<>1),B49+1,"") -> 38 | C50: =IF(Pay_Num<>"",DATE(YEAR(C49)+VLOOKUP(Interval,LoanLookup[],4,FALSE),MONTH(C49)+VLOOKUP(Interval,LoanLookup[],2,FALSE),DAY(C49)+VLOOKUP(Interval,LoanLookup[],3,FALSE)),"") -> 2020-09-11 | D50: 135,433.75 ₺ | E50: 989.93 ₺ | F50: =IF(scheduled_no_payments=1,"",IF(Sched_Pay+Scheduled_Extra_Payments<Beg_Bal,Scheduled_Extra_Payments,IF(AND(Pay_Num<>"",Beg_Bal-Sched_Pay>0),Beg_Bal-Sched_Pay,IF(Pay_Num<>"",0,"")))) -> 0 | G50: =IF(scheduled_no_payments=1,"",IF(Sched_Pay+Extra_Pay<Beg_Bal,Sched_Pay+Extra_Pay,IF(Pay_Num<>"",Beg_Bal,""))) -> 989.93 ₺ | H50: 425.63 ₺ | I50: =IF(Pay_Num<>"",Beg_Bal*(Interest_Rate/VLOOKUP(Interval,LoanLookup[],5,FALSE)),"") -> 564.31 ₺ | J50: =IF(scheduled_no_payments=1,"",IF(AND(Pay_Num<>"",Sched_Pay+Extra_Pay<Beg_Bal),Beg_Bal-Princ,IF(Pay_Num<>"",0,""))) -> 135,008.12 ₺ | K50: =IF(scheduled_no_payments=1,"",SUM($I$13:$I50)) -> 22,625.60 ₺
B51: =IF(AND(Values_Entered,scheduled_no_payments<>1),B50+1,"") -> 39 | C51: =IF(Pay_Num<>"",DATE(YEAR(C50)+VLOOKUP(Interval,LoanLookup[],4,FALSE),MONTH(C50)+VLOOKUP(Interval,LoanLookup[],2,FALSE),DAY(C50)+VLOOKUP(Interval,LoanLookup[],3,FALSE)),"") -> 2020-10-11 | D51: 135,008.12 ₺ | E51: 989.93 ₺ | F51: =IF(scheduled_no_payments=1,"",IF(Sched_Pay+Scheduled_Extra_Payments<Beg_Bal,Scheduled_Extra_Payments,IF(AND(Pay_Num<>"",Beg_Bal-Sched_Pay>0),Beg_Bal-Sched_Pay,IF(Pay_Num<>"",0,"")))) -> 0 | G51: =IF(scheduled_no_payments=1,"",IF(Sched_Pay+Extra_Pay<Beg_Bal,Sched_Pay+Extra_Pay,IF(Pay_Num<>"",Beg_Bal,""))) -> 989.93 ₺ | H51: 427.40 ₺ | I51: =IF(Pay_Num<>"",Beg_Bal*(Interest_Rate/VLOOKUP(Interval,LoanLookup[],5,FALSE)),"") -> 562.53 ₺ | J51: =IF(scheduled_no_payments=1,"",IF(AND(Pay_Num<>"",Sched_Pay+Extra_Pay<Beg_Bal),Beg_Bal-Princ,IF(Pay_Num<>"",0,""))) -> 134,580.72 ₺ | K51: =IF(scheduled_no_payments=1,"",SUM($I$13:$I51)) -> 23,188.13 ₺
B52: =IF(AND(Values_Entered,scheduled_no_payments<>1),B51+1,"") -> 40 | C52: =IF(Pay_Num<>"",DATE(YEAR(C51)+VLOOKUP(Interval,LoanLookup[],4,FALSE),MONTH(C51)+VLOOKUP(Interval,LoanLookup[],2,FALSE),DAY(C51)+VLOOKUP(Interval,LoanLookup[],3,FALSE)),"") -> 2020-11-11 | D52: 134,580.72 ₺ | E52: 989.93 ₺ | F52: =IF(scheduled_no_payments=1,"",IF(Sched_Pay+Scheduled_Extra_Payments<Beg_Bal,Scheduled_Extra_Payments,IF(AND(Pay_Num<>"",Beg_Bal-Sched_Pay>0),Beg_Bal-Sched_Pay,IF(Pay_Num<>"",0,"")))) -> 0 | G52: =IF(scheduled_no_payments=1,"",IF(Sched_Pay+Extra_Pay<Beg_Bal,Sched_Pay+Extra_Pay,IF(Pay_Num<>"",Beg_Bal,""))) -> 989.93 ₺ | H52: 429.18 ₺ | I52: =IF(Pay_Num<>"",Beg_Bal*(Interest_Rate/VLOOKUP(Interval,LoanLookup[],5,FALSE)),"") -> 560.75 ₺ | J52: =IF(scheduled_no_payments=1,"",IF(AND(Pay_Num<>"",Sched_Pay+Extra_Pay<Beg_Bal),Beg_Bal-Princ,IF(Pay_Num<>"",0,""))) -> 134,151.54 ₺ | K52: =IF(scheduled_no_payments=1,"",SUM($I$13:$I52)) -> 23,748.88 ₺
B53: =IF(AND(Values_Entered,scheduled_no_payments<>1),B52+1,"") -> 41 | C53: =IF(Pay_Num<>"",DATE(YEAR(C52)+VLOOKUP(Interval,LoanLookup[],4,FALSE),MONTH(C52)+VLOOKUP(Interval,LoanLookup[],2,FALSE),DAY(C52)+VLOOKUP(Interval,LoanLookup[],3,FALSE)),"") -> 2020-12-11 | D53: 134,151.54 ₺ | E53: 989.93 ₺ | F53: =IF(scheduled_no_payments=1,"",IF(Sched_Pay+Scheduled_Extra_Payments<Beg_Bal,Scheduled_Extra_Payments,IF(AND(Pay_Num<>"",Beg_Bal-Sched_Pay>0),Beg_Bal-Sched_Pay,IF(Pay_Num<>"",0,"")))) -> 0 | G53: =IF(scheduled_no_payments=1,"",IF(Sched_Pay+Extra_Pay<Beg_Bal,Sched_Pay+Extra_Pay,IF(Pay_Num<>"",Beg_Bal,""))) -> 989.93 ₺ | H53: 430.97 ₺ | I53: =IF(Pay_Num<>"",Beg_Bal*(Interest_Rate/VLOOKUP(Interval,LoanLookup[],5,FALSE)),"") -> 558.96 ₺ | J53: =IF(scheduled_no_payments=1,"",IF(AND(Pay_Num<>"",Sched_Pay+Extra_Pay<Beg_Bal),Beg_Bal-Princ,IF(Pay_Num<>"",0,""))) -> 133,720.57 ₺ | K53: =IF(scheduled_no_payments=1,"",SUM($I$13:$I53)) -> 24,307.85 ₺
B54: =IF(AND(Values_Entered,scheduled_no_payments<>1),B53+1,"") -> 42 | C54: =IF(Pay_Num<>"",DATE(YEAR(C53)+VLOOKUP(Interval,LoanLookup[],4,FALSE),MONTH(C53)+VLOOKUP(Interval,LoanLookup[],2,FALSE),DAY(C53)+VLOOKUP(Interval,LoanLookup[],3,FALSE)),"") -> 2021-01-11 | D54: 133,720.57 ₺ | E54: 989.93 ₺ | F54: =IF(scheduled_no_payments=1,"",IF(Sched_Pay+Scheduled_Extra_Payments<Beg_Bal,Scheduled_Extra_Payments,IF(AND(Pay_Num<>"",Beg_Bal-Sched_Pay>0),Beg_Bal-Sched_Pay,IF(Pay_Num<>"",0,"")))) -> 0 | G54: =IF(scheduled_no_payments=1,"",IF(Sched_Pay+Extra_Pay<Beg_Bal,Sched_Pay+Extra_Pay,IF(Pay_Num<>"",Beg_Bal,""))) -> 989.93 ₺ | H54: 432.76 ₺ | I54: =IF(Pay_Num<>"",Beg_Bal*(Interest_Rate/VLOOKUP(Interval,LoanLookup[],5,FALSE)),"") -> 557.17 ₺ | J54: =IF(scheduled_no_payments=1,"",IF(AND(Pay_Num<>"",Sched_Pay+Extra_Pay<Beg_Bal),Beg_Bal-Princ,IF(Pay_Num<>"",0,""))) -> 133,287.80 ₺ | K54: =IF(scheduled_no_payments=1,"",SUM($I$13:$I54)) -> 24,865.02 ₺
B55: =IF(AND(Values_Entered,scheduled_no_payments<>1),B54+1,"") -> 43 | C55: =IF(Pay_Num<>"",DATE(YEAR(C54)+VLOOKUP(Interval,LoanLookup[],4,FALSE),MONTH(C54)+VLOOKUP(Interval,LoanLookup[],2,FALSE),DAY(C54)+VLOOKUP(Interval,LoanLookup[],3,FALSE)),"") -> 2021-02-11 | D55: 133,287.80 ₺ | E55: 989.93 ₺ | F55: =IF(scheduled_no_payments=1,"",IF(Sched_Pay+Scheduled_Extra_Payments<Beg_Bal,Scheduled_Extra_Payments,IF(AND(Pay_Num<>"",Beg_Bal-Sched_Pay>0),Beg_Bal-Sched_Pay,IF(Pay_Num<>"",0,"")))) -> 0 | G55: =IF(scheduled_no_payments=1,"",IF(Sched_Pay+Extra_Pay<Beg_Bal,Sched_Pay+Extra_Pay,IF(Pay_Num<>"",Beg_Bal,""))) -> 989.93 ₺ | H55: 434.57 ₺ | I55: =IF(Pay_Num<>"",Beg_Bal*(Interest_Rate/VLOOKUP(Interval,LoanLookup[],5,FALSE)),"") -> 555.37 ₺ | J55: =IF(scheduled_no_payments=1,"",IF(AND(Pay_Num<>"",Sched_Pay+Extra_Pay<Beg_Bal),Beg_Bal-Princ,IF(Pay_Num<>"",0,""))) -> 132,853.24 ₺ | K55: =IF(scheduled_no_payments=1,"",SUM($I$13:$I55)) -> 25,420.38 ₺
B56: =IF(AND(Values_Entered,scheduled_no_payments<>1),B55+1,"") -> 44 | C56: =IF(Pay_Num<>"",DATE(YEAR(C55)+VLOOKUP(Interval,LoanLookup[],4,FALSE),MONTH(C55)+VLOOKUP(Interval,LoanLookup[],2,FALSE),DAY(C55)+VLOOKUP(Interval,LoanLookup[],3,FALSE)),"") -> 2021-03-11 | D56: 132,853.24 ₺ | E56: 989.93 ₺ | F56: =IF(scheduled_no_payments=1,"",IF(Sched_Pay+Scheduled_Extra_Payments<Beg_Bal,Scheduled_Extra_Payments,IF(AND(Pay_Num<>"",Beg_Bal-Sched_Pay>0),Beg_Bal-Sched_Pay,IF(Pay_Num<>"",0,"")))) -> 0 | G56: =IF(scheduled_no_payments=1,"",IF(Sched_Pay+Extra_Pay<Beg_Bal,Sched_Pay+Extra_Pay,IF(Pay_Num<>"",Beg_Bal,""))) -> 989.93 ₺ | H56: 436.38 ₺ | I56: =IF(Pay_Num<>"",Beg_Bal*(Interest_Rate/VLOOKUP(Interval,LoanLookup[],5,FALSE)),"") -> 553.56 ₺ | J56: =IF(scheduled_no_payments=1,"",IF(AND(Pay_Num<>"",Sched_Pay+Extra_Pay<Beg_Bal),Beg_Bal-Princ,IF(Pay_Num<>"",0,""))) -> 132,416.86 ₺ | K56: =IF(scheduled_no_payments=1,"",SUM($I$13:$I56)) -> 25,973.94 ₺
B57: =IF(AND(Values_Entered,scheduled_no_payments<>1),B56+1,"") -> 45 | C57: =IF(Pay_Num<>"",DATE(YEAR(C56)+VLOOKUP(Interval,LoanLookup[],4,FALSE),MONTH(C56)+VLOOKUP(Interval,LoanLookup[],2,FALSE),DAY(C56)+VLOOKUP(Interval,LoanLookup[],3,FALSE)),"") -> 2021-04-11 | D57: 132,416.86 ₺ | E57: 989.93 ₺ | F57: =IF(scheduled_no_payments=1,"",IF(Sched_Pay+Scheduled_Extra_Payments<Beg_Bal,Scheduled_Extra_Payments,IF(AND(Pay_Num<>"",Beg_Bal-Sched_Pay>0),Beg_Bal-Sched_Pay,IF(Pay_Num<>"",0,"")))) -> 0 | G57: =IF(scheduled_no_payments=1,"",IF(Sched_Pay+Extra_Pay<Beg_Bal,Sched_Pay+Extra_Pay,IF(Pay_Num<>"",Beg_Bal,""))) -> 989.93 ₺ | H57: 438.20 ₺ | I57: =IF(Pay_Num<>"",Beg_Bal*(Interest_Rate/VLOOKUP(Interval,LoanLookup[],5,FALSE)),"") -> 551.74 ₺ | J57: =IF(scheduled_no_payments=1,"",IF(AND(Pay_Num<>"",Sched_Pay+Extra_Pay<Beg_Bal),Beg_Bal-Princ,IF(Pay_Num<>"",0,""))) -> 131,978.66 ₺ | K57: =IF(scheduled_no_payments=1,"",SUM($I$13:$I57)) -> 26,525.67 ₺
B58: =IF(AND(Values_Entered,scheduled_no_payments<>1),B57+1,"") -> 46 | C58: =IF(Pay_Num<>"",DATE(YEAR(C57)+VLOOKUP(Interval,LoanLookup[],4,FALSE),MONTH(C57)+VLOOKUP(Interval,LoanLookup[],2,FALSE),DAY(C57)+VLOOKUP(Interval,LoanLookup[],3,FALSE)),"") -> 2021-05-11 | D58: 131,978.66 ₺ | E58: 989.93 ₺ | F58: =IF(scheduled_no_payments=1,"",IF(Sched_Pay+Scheduled_Extra_Payments<Beg_Bal,Scheduled_Extra_Payments,IF(AND(Pay_Num<>"",Beg_Bal-Sched_Pay>0),Beg_Bal-Sched_Pay,IF(Pay_Num<>"",0,"")))) -> 0 | G58: =IF(scheduled_no_payments=1,"",IF(Sched_Pay+Extra_Pay<Beg_Bal,Sched_Pay+Extra_Pay,IF(Pay_Num<>"",Beg_Bal,""))) -> 989.93 ₺ | H58: 440.02 ₺ | I58: =IF(Pay_Num<>"",Beg_Bal*(Interest_Rate/VLOOKUP(Interval,LoanLookup[],5,FALSE)),"") -> 549.91 ₺ | J58: =IF(scheduled_no_payments=1,"",IF(AND(Pay_Num<>"",Sched_Pay+Extra_Pay<Beg_Bal),Beg_Bal-Princ,IF(Pay_Num<>"",0,""))) -> 131,538.64 ₺ | K58: =IF(scheduled_no_payments=1,"",SUM($I$13:$I58)) -> 27,075.59 ₺
B59: =IF(AND(Values_Entered,scheduled_no_payments<>1),B58+1,"") -> 47 | C59: =IF(Pay_Num<>"",DATE(YEAR(C58)+VLOOKUP(Interval,LoanLookup[],4,FALSE),MONTH(C58)+VLOOKUP(Interval,LoanLookup[],2,FALSE),DAY(C58)+VLOOKUP(Interval,LoanLookup[],3,FALSE)),"") -> 2021-06-11 | D59: 131,538.64 ₺ | E59: 989.93 ₺ | F59: =IF(scheduled_no_payments=1,"",IF(Sched_Pay+Scheduled_Extra_Payments<Beg_Bal,Scheduled_Extra_Payments,IF(AND(Pay_Num<>"",Beg_Bal-Sched_Pay>0),Beg_Bal-Sched_Pay,IF(Pay_Num<>"",0,"")))) -> 0 | G59: =IF(scheduled_no_payments=1,"",IF(Sched_Pay+Extra_Pay<Beg_Bal,Sched_Pay+Extra_Pay,IF(Pay_Num<>"",Beg_Bal,""))) -> 989.93 ₺ | H59: 441.86 ₺ | I59: =IF(Pay_Num<>"",Beg_Bal*(Interest_Rate/VLOOKUP(Interval,LoanLookup[],5,FALSE)),"") -> 548.08 ₺ | J59: =IF(scheduled_no_payments=1,"",IF(AND(Pay_Num<>"",Sched_Pay+Extra_Pay<Beg_Bal),Beg_Bal-Princ,IF(Pay_Num<>"",0,""))) -> 131,096.78 ₺ | K59: =IF(scheduled_no_payments=1,"",SUM($I$13:$I59)) -> 27,623.66 ₺
B60: =IF(AND(Values_Entered,scheduled_no_payments<>1),B59+1,"") -> 48 | C60: =IF(Pay_Num<>"",DATE(YEAR(C59)+VLOOKUP(Interval,LoanLookup[],4,FALSE),MONTH(C59)+VLOOKUP(Interval,LoanLookup[],2,FALSE),DAY(C59)+VLOOKUP(Interval,LoanLookup[],3,FALSE)),"") -> 2021-07-11 | D60: 131,096.78 ₺ | E60: 989.93 ₺ | F60: =IF(scheduled_no_payments=1,"",IF(Sched_Pay+Scheduled_Extra_Payments<Beg_Bal,Scheduled_Extra_Payments,IF(AND(Pay_Num<>"",Beg_Bal-Sched_Pay>0),Beg_Bal-Sched_Pay,IF(Pay_Num<>"",0,"")))) -> 0 | G60: =IF(scheduled_no_payments=1,"",IF(Sched_Pay+Extra_Pay<Beg_Bal,Sched_Pay+Extra_Pay,IF(Pay_Num<>"",Beg_Bal,""))) -> 989.93 ₺ | H60: 443.70 ₺ | I60: =IF(Pay_Num<>"",Beg_Bal*(Interest_Rate/VLOOKUP(Interval,LoanLookup[],5,FALSE)),"") -> 546.24 ₺ | J60: =IF(scheduled_no_payments=1,"",IF(AND(Pay_Num<>"",Sched_Pay+Extra_Pay<Beg_Bal),Beg_Bal-Princ,IF(Pay_Num<>"",0,""))) -> 130,653.09 ₺ | K60: =IF(scheduled_no_payments=1,"",SUM($I$13:$I60)) -> 28,169.90 ₺
B61: =IF(AND(Values_Entered,scheduled_no_payments<>1),B60+1,"") -> 49 | C61: =IF(Pay_Num<>"",DATE(YEAR(C60)+VLOOKUP(Interval,LoanLookup[],4,FALSE),MONTH(C60)+VLOOKUP(Interval,LoanLookup[],2,FALSE),DAY(C60)+VLOOKUP(Interval,LoanLookup[],3,FALSE)),"") -> 2021-08-11 | D61: 130,653.09 ₺ | E61: 989.93 ₺ | F61: =IF(scheduled_no_payments=1,"",IF(Sched_Pay+Scheduled_Extra_Payments<Beg_Bal,Scheduled_Extra_Payments,IF(AND(Pay_Num<>"",Beg_Bal-Sched_Pay>0),Beg_Bal-Sched_Pay,IF(Pay_Num<>"",0,"")))) -> 0 | G61: =IF(scheduled_no_payments=1,"",IF(Sched_Pay+Extra_Pay<Beg_Bal,Sched_Pay+Extra_Pay,IF(Pay_Num<>"",Beg_Bal,""))) -> 989.93 ₺ | H61: 445.55 ₺ | I61: =IF(Pay_Num<>"",Beg_Bal*(Interest_Rate/VLOOKUP(Interval,LoanLookup[],5,FALSE)),"") -> 544.39 ₺ | J61: =IF(scheduled_no_payments=1,"",IF(AND(Pay_Num<>"",Sched_Pay+Extra_Pay<Beg_Bal),Beg_Bal-Princ,IF(Pay_Num<>"",0,""))) -> 130,207.54 ₺ | K61: =IF(scheduled_no_payments=1,"",SUM($I$13:$I61)) -> 28,714.29 ₺
B62: =IF(AND(Values_Entered,scheduled_no_payments<>1),B61+1,"") -> 50 | C62: =IF(Pay_Num<>"",DATE(YEAR(C61)+VLOOKUP(Interval,LoanLookup[],4,FALSE),MONTH(C61)+VLOOKUP(Interval,LoanLookup[],2,FALSE),DAY(C61)+VLOOKUP(Interval,LoanLookup[],3,FALSE)),"") -> 2021-09-11 | D62: 130,207.54 ₺ | E62: 989.93 ₺ | F62: =IF(scheduled_no_payments=1,"",IF(Sched_Pay+Scheduled_Extra_Payments<Beg_Bal,Scheduled_Extra_Payments,IF(AND(Pay_Num<>"",Beg_Bal-Sched_Pay>0),Beg_Bal-Sched_Pay,IF(Pay_Num<>"",0,"")))) -> 0 | G62: =IF(scheduled_no_payments=1,"",IF(Sched_Pay+Extra_Pay<Beg_Bal,Sched_Pay+Extra_Pay,IF(Pay_Num<>"",Beg_Bal,""))) -> 989.93 ₺ | H62: 447.40 ₺ | I62: =IF(Pay_Num<>"",Beg_Bal*(Interest_Rate/VLOOKUP(Interval,LoanLookup[],5,FALSE)),"") -> 542.53 ₺ | J62: =IF(scheduled_no_payments=1,"",IF(AND(Pay_Num<>"",Sched_Pay+Extra_Pay<Beg_Bal),Beg_Bal-Princ,IF(Pay_Num<>"",0,""))) -> 129,760.14 ₺ | K62: =IF(scheduled_no_payments=1,"",SUM($I$13:$I62)) -> 29,256.82 ₺
B63: =IF(AND(Values_Entered,scheduled_no_payments<>1),B62+1,"") -> 51 | C63: =IF(Pay_Num<>"",DATE(YEAR(C62)+VLOOKUP(Interval,LoanLookup[],4,FALSE),MONTH(C62)+VLOOKUP(Interval,LoanLookup[],2,FALSE),DAY(C62)+VLOOKUP(Interval,LoanLookup[],3,FALSE)),"") -> 2021-10-11 | D63: 129,760.14 ₺ | E63: 989.93 ₺ | F63: =IF(scheduled_no_payments=1,"",IF(Sched_Pay+Scheduled_Extra_Payments<Beg_Bal,Scheduled_Extra_Payments,IF(AND(Pay_Num<>"",Beg_Bal-Sched_Pay>0),Beg_Bal-Sched_Pay,IF(Pay_Num<>"",0,"")))) -> 0 | G63: =IF(scheduled_no_payments=1,"",IF(Sched_Pay+Extra_Pay<Beg_Bal,Sched_Pay+Extra_Pay,IF(Pay_Num<>"",Beg_Bal,""))) -> 989.93 ₺ | H63: 449.27 ₺ | I63: =IF(Pay_Num<>"",Beg_Bal*(Interest_Rate/VLOOKUP(Interval,LoanLookup[],5,FALSE)),"") -> 540.67 ₺ | J63: =IF(scheduled_no_payments=1,"",IF(AND(Pay_Num<>"",Sched_Pay+Extra_Pay<Beg_Bal),Beg_Bal-Princ,IF(Pay_Num<>"",0,""))) -> 129,310.87 ₺ | K63: =IF(scheduled_no_payments=1,"",SUM($I$13:$I63)) -> 29,797.49 ₺
B64: =IF(AND(Values_Entered,scheduled_no_payments<>1),B63+1,"") -> 52 | C64: =IF(Pay_Num<>"",DATE(YEAR(C63)+VLOOKUP(Interval,LoanLookup[],4,FALSE),MONTH(C63)+VLOOKUP(Interval,LoanLookup[],2,FALSE),DAY(C63)+VLOOKUP(Interval,LoanLookup[],3,FALSE)),"") -> 2021-11-11 | D64: 129,310.87 ₺ | E64: 989.93 ₺ | F64: =IF(scheduled_no_payments=1,"",IF(Sched_Pay+Scheduled_Extra_Payments<Beg_Bal,Scheduled_Extra_Payments,IF(AND(Pay_Num<>"",Beg_Bal-Sched_Pay>0),Beg_Bal-Sched_Pay,IF(Pay_Num<>"",0,"")))) -> 0 | G64: =IF(scheduled_no_payments=1,"",IF(Sched_Pay+Extra_Pay<Beg_Bal,Sched_Pay+Extra_Pay,IF(Pay_Num<>"",Beg_Bal,""))) -> 989.93 ₺ | H64: 451.14 ₺ | I64: =IF(Pay_Num<>"",Beg_Bal*(Interest_Rate/VLOOKUP(Interval,LoanLookup[],5,FALSE)),"") -> 538.80 ₺ | J64: =IF(scheduled_no_payments=1,"",IF(AND(Pay_Num<>"",Sched_Pay+Extra_Pay<Beg_Bal),Beg_Bal-Princ,IF(Pay_Num<>"",0,""))) -> 128,859.73 ₺ | K64: =IF(scheduled_no_payments=1,"",SUM($I$13:$I64)) -> 30,336.28 ₺
B65: =IF(AND(Values_Entered,scheduled_no_payments<>1),B64+1,"") -> 53 | C65: =IF(Pay_Num<>"",DATE(YEAR(C64)+VLOOKUP(Interval,LoanLookup[],4,FALSE),MONTH(C64)+VLOOKUP(Interval,LoanLookup[],2,FALSE),DAY(C64)+VLOOKUP(Interval,LoanLookup[],3,FALSE)),"") -> 2021-12-11 | D65: 128,859.73 ₺ | E65: 989.93 ₺ | F65: =IF(scheduled_no_payments=1,"",IF(Sched_Pay+Scheduled_Extra_Payments<Beg_Bal,Scheduled_Extra_Payments,IF(AND(Pay_Num<>"",Beg_Bal-Sched_Pay>0),Beg_Bal-Sched_Pay,IF(Pay_Num<>"",0,"")))) -> 0 | G65: =IF(scheduled_no_payments=1,"",IF(Sched_Pay+Extra_Pay<Beg_Bal,Sched_Pay+Extra_Pay,IF(Pay_Num<>"",Beg_Bal,""))) -> 989.93 ₺ | H65: 453.02 ₺ | I65: =IF(Pay_Num<>"",Beg_Bal*(Interest_Rate/VLOOKUP(Interval,LoanLookup[],5,FALSE)),"") -> 536.92 ₺ | J65: =IF(scheduled_no_payments=1,"",IF(AND(Pay_Num<>"",Sched_Pay+Extra_Pay<Beg_Bal),Beg_Bal-Princ,IF(Pay_Num<>"",0,""))) -> 128,406.72 ₺ | K65: =IF(scheduled_no_payments=1,"",SUM($I$13:$I65)) -> 30,873.20 ₺
B66: =IF(AND(Values_Entered,scheduled_no_payments<>1),B65+1,"") -> 54 | C66: =IF(Pay_Num<>"",DATE(YEAR(C65)+VLOOKUP(Interval,LoanLookup[],4,FALSE),MONTH(C65)+VLOOKUP(Interval,LoanLookup[],2,FALSE),DAY(C65)+VLOOKUP(Interval,LoanLookup[],3,FALSE)),"") -> 2022-01-11 | D66: 128,406.72 ₺ | E66: 989.93 ₺ | F66: =IF(scheduled_no_payments=1,"",IF(Sched_Pay+Scheduled_Extra_Payments<Beg_Bal,Scheduled_Extra_Payments,IF(AND(Pay_Num<>"",Beg_Bal-Sched_Pay>0),Beg_Bal-Sched_Pay,IF(Pay_Num<>"",0,"")))) -> 0 | G66: =IF(scheduled_no_payments=1,"",IF(Sched_Pay+Extra_Pay<Beg_Bal,Sched_Pay+Extra_Pay,IF(Pay_Num<>"",Beg_Bal,""))) -> 989.93 ₺ | H66: 454.91 ₺ | I66: =IF(Pay_Num<>"",Beg_Bal*(Interest_Rate/VLOOKUP(Interval,LoanLookup[],5,FALSE)),"") -> 535.03 ₺ | J66: =IF(scheduled_no_payments=1,"",IF(AND(Pay_Num<>"",Sched_Pay+Extra_Pay<Beg_Bal),Beg_Bal-Princ,IF(Pay_Num<>"",0,""))) -> 127,951.81 ₺ | K66: =IF(scheduled_no_payments=1,"",SUM($I$13:$I66)) -> 31,408.23 ₺
B67: =IF(AND(Values_Entered,scheduled_no_payments<>1),B66+1,"") -> 55 | C67: =IF(Pay_Num<>"",DATE(YEAR(C66)+VLOOKUP(Interval,LoanLookup[],4,FALSE),MONTH(C66)+VLOOKUP(Interval,LoanLookup[],2,FALSE),DAY(C66)+VLOOKUP(Interval,LoanLookup[],3,FALSE)),"") -> 2022-02-11 | D67: 127,951.81 ₺ | E67: 989.93 ₺ | F67: =IF(scheduled_no_payments=1,"",IF(Sched_Pay+Scheduled_Extra_Payments<Beg_Bal,Scheduled_Extra_Payments,IF(AND(Pay_Num<>"",Beg_Bal-Sched_Pay>0),Beg_Bal-Sched_Pay,IF(Pay_Num<>"",0,"")))) -> 0 | G67: =IF(scheduled_no_payments=1,"",IF(Sched_Pay+Extra_Pay<Beg_Bal,Sched_Pay+Extra_Pay,IF(Pay_Num<>"",Beg_Bal,""))) -> 989.93 ₺ | H67: 456.80 ₺ | I67: =IF(Pay_Num<>"",Beg_Bal*(Interest_Rate/VLOOKUP(Interval,LoanLookup[],5,FALSE)),"") -> 533.13 ₺ | J67: =IF(scheduled_no_payments=1,"",IF(AND(Pay_Num<>"",Sched_Pay+Extra_Pay<Beg_Bal),Beg_Bal-Princ,IF(Pay_Num<>"",0,""))) -> 127,495.01 ₺ | K67: =IF(scheduled_no_payments=1,"",SUM($I$13:$I67)) -> 31,941.36 ₺
B68: =IF(AND(Values_Entered,scheduled_no_payments<>1),B67+1,"") -> 56 | C68: =IF(Pay_Num<>"",DATE(YEAR(C67)+VLOOKUP(Interval,LoanLookup[],4,FALSE),MONTH(C67)+VLOOKUP(Interval,LoanLookup[],2,FALSE),DAY(C67)+VLOOKUP(Interval,LoanLookup[],3,FALSE)),"") -> 2022-03-11 | D68: 127,495.01 ₺ | E68: 989.93 ₺ | F68: =IF(scheduled_no_payments=1,"",IF(Sched_Pay+Scheduled_Extra_Payments<Beg_Bal,Scheduled_Extra_Payments,IF(AND(Pay_Num<>"",Beg_Bal-Sched_Pay>0),Beg_Bal-Sched_Pay,IF(Pay_Num<>"",0,"")))) -> 0 | G68: =IF(scheduled_no_payments=1,"",IF(Sched_Pay+Extra_Pay<Beg_Bal,Sched_Pay+Extra_Pay,IF(Pay_Num<>"",Beg_Bal,""))) -> 989.93 ₺ | H68: 458.70 ₺ | I68: =IF(Pay_Num<>"",Beg_Bal*(Interest_Rate/VLOOKUP(Interval,LoanLookup[],5,FALSE)),"") -> 531.23 ₺ | J68: =IF(scheduled_no_payments=1,"",IF(AND(Pay_Num<>"",Sched_Pay+Extra_Pay<Beg_Bal),Beg_Bal-Princ,IF(Pay_Num<>"",0,""))) -> 127,036.30 ₺ | K68: =IF(scheduled_no_payments=1,"",SUM($I$13:$I68)) -> 32,472.59 ₺
B69: =IF(AND(Values_Entered,scheduled_no_payments<>1),B68+1,"") -> 57 | C69: =IF(Pay_Num<>"",DATE(YEAR(C68)+VLOOKUP(Interval,LoanLookup[],4,FALSE),MONTH(C68)+VLOOKUP(Interval,LoanLookup[],2,FALSE),DAY(C68)+VLOOKUP(Interval,LoanLookup[],3,FALSE)),"") -> 2022-04-11 | D69: 127,036.30 ₺ | E69: 989.93 ₺ | F69: =IF(scheduled_no_payments=1,"",IF(Sched_Pay+Scheduled_Extra_Payments<Beg_Bal,Scheduled_Extra_Payments,IF(AND(Pay_Num<>"",Beg_Bal-Sched_Pay>0),Beg_Bal-Sched_Pay,IF(Pay_Num<>"",0,"")))) -> 0 | G69: =IF(scheduled_no_payments=1,"",IF(Sched_Pay+Extra_Pay<Beg_Bal,Sched_Pay+Extra_Pay,IF(Pay_Num<>"",Beg_Bal,""))) -> 989.93 ₺ | H69: 460.62 ₺ | I69: =IF(Pay_Num<>"",Beg_Bal*(Interest_Rate/VLOOKUP(Interval,LoanLookup[],5,FALSE)),"") -> 529.32 ₺ | J69: =IF(scheduled_no_payments=1,"",IF(AND(Pay_Num<>"",Sched_Pay+Extra_Pay<Beg_Bal),Beg_Bal-Princ,IF(Pay_Num<>"",0,""))) -> 126,575.69 ₺ | K69: =IF(scheduled_no_payments=1,"",SUM($I$13:$I69)) -> 33,001.90 ₺
B70: =IF(AND(Values_Entered,scheduled_no_payments<>1),B69+1,"") -> 58 | C70: =IF(Pay_Num<>"",DATE(YEAR(C69)+VLOOKUP(Interval,LoanLookup[],4,FALSE),MONTH(C69)+VLOOKUP(Interval,LoanLookup[],2,FALSE),DAY(C69)+VLOOKUP(Interval,LoanLookup[],3,FALSE)),"") -> 2022-05-11 | D70: 126,575.69 ₺ | E70: 989.93 ₺ | F70: =IF(scheduled_no_payments=1,"",IF(Sched_Pay+Scheduled_Extra_Payments<Beg_Bal,Scheduled_Extra_Payments,IF(AND(Pay_Num<>"",Beg_Bal-Sched_Pay>0),Beg_Bal-Sched_Pay,IF(Pay_Num<>"",0,"")))) -> 0 | G70: =IF(scheduled_no_payments=1,"",IF(Sched_Pay+Extra_Pay<Beg_Bal,Sched_Pay+Extra_Pay,IF(Pay_Num<>"",Beg_Bal,""))) -> 989.93 ₺ | H70: 462.53 ₺ | I70: =IF(Pay_Num<>"",Beg_Bal*(Interest_Rate/VLOOKUP(Interval,LoanLookup[],5,FALSE)),"") -> 527.40 ₺ | J70: =IF(scheduled_no_payments=1,"",IF(AND(Pay_Num<>"",Sched_Pay+Extra_Pay<Beg_Bal),Beg_Bal-Princ,IF(Pay_Num<>"",0,""))) -> 126,113.15 ₺ | K70: =IF(scheduled_no_payments=1,"",SUM($I$13:$I70)) -> 33,529.30 ₺
B71: =IF(AND(Values_Entered,scheduled_no_payments<>1),B70+1,"") -> 59 | C71: =IF(Pay_Num<>"",DATE(YEAR(C70)+VLOOKUP(Interval,LoanLookup[],4,FALSE),MONTH(C70)+VLOOKUP(Interval,LoanLookup[],2,FALSE),DAY(C70)+VLOOKUP(Interval,LoanLookup[],3,FALSE)),"") -> 2022-06-11 | D71: 126,113.15 ₺ | E71: 989.93 ₺ | F71: =IF(scheduled_no_payments=1,"",IF(Sched_Pay+Scheduled_Extra_Payments<Beg_Bal,Scheduled_Extra_Payments,IF(AND(Pay_Num<>"",Beg_Bal-Sched_Pay>0),Beg_Bal-Sched_Pay,IF(Pay_Num<>"",0,"")))) -> 0 | G71: =IF(scheduled_no_payments=1,"",IF(Sched_Pay+Extra_Pay<Beg_Bal,Sched_Pay+Extra_Pay,IF(Pay_Num<>"",Beg_Bal,""))) -> 989.93 ₺ | H71: 464.46 ₺ | I71: =IF(Pay_Num<>"",Beg_Bal*(Interest_Rate/VLOOKUP(Interval,LoanLookup[],5,FALSE)),"") -> 525.47 ₺ | J71: =IF(scheduled_no_payments=1,"",IF(AND(Pay_Num<>"",Sched_Pay+Extra_Pay<Beg_Bal),Beg_Bal-Princ,IF(Pay_Num<>"",0,""))) -> 125,648.69 ₺ | K71: =IF(scheduled_no_payments=1,"",SUM($I$13:$I71)) -> 34,054.78 ₺
B72: =IF(AND(Values_Entered,scheduled_no_payments<>1),B71+1,"") -> 60 | C72: =IF(Pay_Num<>"",DATE(YEAR(C71)+VLOOKUP(Interval,LoanLookup[],4,FALSE),MONTH(C71)+VLOOKUP(Interval,LoanLookup[],2,FALSE),DAY(C71)+VLOOKUP(Interval,LoanLookup[],3,FALSE)),"") -> 2022-07-11 | D72: 125,648.69 ₺ | E72: 989.93 ₺ | F72: =IF(scheduled_no_payments=1,"",IF(Sched_Pay+Scheduled_Extra_Payments<Beg_Bal,Scheduled_Extra_Payments,IF(AND(Pay_Num<>"",Beg_Bal-Sched_Pay>0),Beg_Bal-Sched_Pay,IF(Pay_Num<>"",0,"")))) -> 0 | G72: =IF(scheduled_no_payments=1,"",IF(Sched_Pay+Extra_Pay<Beg_Bal,Sched_Pay+Extra_Pay,IF(Pay_Num<>"",Beg_Bal,""))) -> 989.93 ₺ | H72: 466.40 ₺ | I72: =IF(Pay_Num<>"",Beg_Bal*(Interest_Rate/VLOOKUP(Interval,LoanLookup[],5,FALSE)),"") -> 523.54 ₺ | J72: =IF(scheduled_no_payments=1,"",IF(AND(Pay_Num<>"",Sched_Pay+Extra_Pay<Beg_Bal),Beg_Bal-Princ,IF(Pay_Num<>"",0,""))) -> 125,182.29 ₺ | K72: =IF(scheduled_no_payments=1,"",SUM($I$13:$I72)) -> 34,578.31 ₺
B73: =IF(AND(Values_Entered,scheduled_no_payments<>1),B72+1,"") -> 61 | C73: =IF(Pay_Num<>"",DATE(YEAR(C72)+VLOOKUP(Interval,LoanLookup[],4,FALSE),MONTH(C72)+VLOOKUP(Interval,LoanLookup[],2,FALSE),DAY(C72)+VLOOKUP(Interval,LoanLookup[],3,FALSE)),"") -> 2022-08-11 | D73: 125,182.29 ₺ | E73: 989.93 ₺ | F73: =IF(scheduled_no_payments=1,"",IF(Sched_Pay+Scheduled_Extra_Payments<Beg_Bal,Scheduled_Extra_Payments,IF(AND(Pay_Num<>"",Beg_Bal-Sched_Pay>0),Beg_Bal-Sched_Pay,IF(Pay_Num<>"",0,"")))) -> 0 | G73: =IF(scheduled_no_payments=1,"",IF(Sched_Pay+Extra_Pay<Beg_Bal,Sched_Pay+Extra_Pay,IF(Pay_Num<>"",Beg_Bal,""))) -> 989.93 ₺ | H73: 468.34 ₺ | I73: =IF(Pay_Num<>"",Beg_Bal*(Interest_Rate/VLOOKUP(Interval,LoanLookup[],5,FALSE)),"") -> 521.59 ₺ | J73: =IF(scheduled_no_payments=1,"",IF(AND(Pay_Num<>"",Sched_Pay+Extra_Pay<Beg_Bal),Beg_Bal-Princ,IF(Pay_Num<>"",0,""))) -> 124,713.95 ₺ | K73: =IF(scheduled_no_payments=1,"",SUM($I$13:$I73)) -> 35,099.90 ₺
B74: =IF(AND(Values_Entered,scheduled_no_payments<>1),B73+1,"") -> 62 | C74: =IF(Pay_Num<>"",DATE(YEAR(C73)+VLOOKUP(Interval,LoanLookup[],4,FALSE),MONTH(C73)+VLOOKUP(Interval,LoanLookup[],2,FALSE),DAY(C73)+VLOOKUP(Interval,LoanLookup[],3,FALSE)),"") -> 2022-09-11 | D74: 124,713.95 ₺ | E74: 989.93 ₺ | F74: =IF(scheduled_no_payments=1,"",IF(Sched_Pay+Scheduled_Extra_Payments<Beg_Bal,Scheduled_Extra_Payments,IF(AND(Pay_Num<>"",Beg_Bal-Sched_Pay>0),Beg_Bal-Sched_Pay,IF(Pay_Num<>"",0,"")))) -> 0 | G74: =IF(scheduled_no_payments=1,"",IF(Sched_Pay+Extra_Pay<Beg_Bal,Sched_Pay+Extra_Pay,IF(Pay_Num<>"",Beg_Bal,""))) -> 989.93 ₺ | H74: 470.29 ₺ | I74: =IF(Pay_Num<>"",Beg_Bal*(Interest_Rate/VLOOKUP(Interval,LoanLookup[],5,FALSE)),"") -> 519.64 ₺ | J74: =IF(scheduled_no_payments=1,"",IF(AND(Pay_Num<>"",Sched_Pay+Extra_Pay<Beg_Bal),Beg_Bal-Princ,IF(Pay_Num<>"",0,""))) -> 124,243.66 ₺ | K74: =IF(scheduled_no_payments=1,"",SUM($I$13:$I74)) -> 35,619.55 ₺
B75: =IF(AND(Values_Entered,scheduled_no_payments<>1),B74+1,"") -> 63 | C75: =IF(Pay_Num<>"",DATE(YEAR(C74)+VLOOKUP(Interval,LoanLookup[],4,FALSE),MONTH(C74)+VLOOKUP(Interval,LoanLookup[],2,FALSE),DAY(C74)+VLOOKUP(Interval,LoanLookup[],3,FALSE)),"") -> 2022-10-11 | D75: 124,243.66 ₺ | E75: 989.93 ₺ | F75: =IF(scheduled_no_payments=1,"",IF(Sched_Pay+Scheduled_Extra_Payments<Beg_Bal,Scheduled_Extra_Payments,IF(AND(Pay_Num<>"",Beg_Bal-Sched_Pay>0),Beg_Bal-Sched_Pay,IF(Pay_Num<>"",0,"")))) -> 0 | G75: =IF(scheduled_no_payments=1,"",IF(Sched_Pay+Extra_Pay<Beg_Bal,Sched_Pay+Extra_Pay,IF(Pay_Num<>"",Beg_Bal,""))) -> 989.93 ₺ | H75: 472.25 ₺ | I75: =IF(Pay_Num<>"",Beg_Bal*(Interest_Rate/VLOOKUP(Interval,LoanLookup[],5,FALSE)),"") -> 517.68 ₺ | J75: =IF(scheduled_no_payments=1,"",IF(AND(Pay_Num<>"",Sched_Pay+Extra_Pay<Beg_Bal),Beg_Bal-Princ,IF(Pay_Num<>"",0,""))) -> 123,771.41 ₺ | K75: =IF(scheduled_no_payments=1,"",SUM($I$13:$I75)) -> 36,137.23 ₺
B76: =IF(AND(Values_Entered,scheduled_no_payments<>1),B75+1,"") -> 64 | C76: =IF(Pay_Num<>"",DATE(YEAR(C75)+VLOOKUP(Interval,LoanLookup[],4,FALSE),MONTH(C75)+VLOOKUP(Interval,LoanLookup[],2,FALSE),DAY(C75)+VLOOKUP(Interval,LoanLookup[],3,FALSE)),"") -> 2022-11-11 | D76: 123,771.41 ₺ | E76: 989.93 ₺ | F76: =IF(scheduled_no_payments=1,"",IF(Sched_Pay+Scheduled_Extra_Payments<Beg_Bal,Scheduled_Extra_Payments,IF(AND(Pay_Num<>"",Beg_Bal-Sched_Pay>0),Beg_Bal-Sched_Pay,IF(Pay_Num<>"",0,"")))) -> 0 | G76: =IF(scheduled_no_payments=1,"",IF(Sched_Pay+Extra_Pay<Beg_Bal,Sched_Pay+Extra_Pay,IF(Pay_Num<>"",Beg_Bal,""))) -> 989.93 ₺ | H76: 474.22 ₺ | I76: =IF(Pay_Num<>"",Beg_Bal*(Interest_Rate/VLOOKUP(Interval,LoanLookup[],5,FALSE)),"") -> 515.71 ₺ | J76: =IF(scheduled_no_payments=1,"",IF(AND(Pay_Num<>"",Sched_Pay+Extra_Pay<Beg_Bal),Beg_Bal-Princ,IF(Pay_Num<>"",0,""))) -> 123,297.19 ₺ | K76: =IF(scheduled_no_payments=1,"",SUM($I$13:$I76)) -> 36,652.94 ₺
B77: =IF(AND(Values_Entered,scheduled_no_payments<>1),B76+1,"") -> 65 | C77: =IF(Pay_Num<>"",DATE(YEAR(C76)+VLOOKUP(Interval,LoanLookup[],4,FALSE),MONTH(C76)+VLOOKUP(Interval,LoanLookup[],2,FALSE),DAY(C76)+VLOOKUP(Interval,LoanLookup[],3,FALSE)),"") -> 2022-12-11 | D77: 123,297.19 ₺ | E77: 989.93 ₺ | F77: =IF(scheduled_no_payments=1,"",IF(Sched_Pay+Scheduled_Extra_Payments<Beg_Bal,Scheduled_Extra_Payments,IF(AND(Pay_Num<>"",Beg_Bal-Sched_Pay>0),Beg_Bal-Sched_Pay,IF(Pay_Num<>"",0,"")))) -> 0 | G77: =IF(scheduled_no_payments=1,"",IF(Sched_Pay+Extra_Pay<Beg_Bal,Sched_Pay+Extra_Pay,IF(Pay_Num<>"",Beg_Bal,""))) -> 989.93 ₺ | H77: 476.20 ₺ | I77: =IF(Pay_Num<>"",Beg_Bal*(Interest_Rate/VLOOKUP(Interval,LoanLookup[],5,FALSE)),"") -> 513.74 ₺ | J77: =IF(scheduled_no_payments=1,"",IF(AND(Pay_Num<>"",Sched_Pay+Extra_Pay<Beg_Bal),Beg_Bal-Princ,IF(Pay_Num<>"",0,""))) -> 122,821.00 ₺ | K77: =IF(scheduled_no_payments=1,"",SUM($I$13:$I77)) -> 37,166.68 ₺
B78: =IF(AND(Values_Entered,scheduled_no_payments<>1),B77+1,"") -> 66 | C78: =IF(Pay_Num<>"",DATE(YEAR(C77)+VLOOKUP(Interval,LoanLookup[],4,FALSE),MONTH(C77)+VLOOKUP(Interval,LoanLookup[],2,FALSE),DAY(C77)+VLOOKUP(Interval,LoanLookup[],3,FALSE)),"") -> 2023-01-11 | D78: =IF(Pay_Num<>"",J77,"") -> 122,821.00 ₺ | E78: 989.93 ₺ | F78: =IF(scheduled_no_payments=1,"",IF(Sched_Pay+Scheduled_Extra_Payments<Beg_Bal,Scheduled_Extra_Payments,IF(AND(Pay_Num<>"",Beg_Bal-Sched_Pay>0),Beg_Bal-Sched_Pay,IF(Pay_Num<>"",0,"")))) -> 0 | G78: =IF(scheduled_no_payments=1,"",IF(Sched_Pay+Extra_Pay<Beg_Bal,Sched_Pay+Extra_Pay,IF(Pay_Num<>"",Beg_Bal,""))) -> 989.93 ₺ | H78: =IF(Pay_Num<>"",Total_Pay-Int,"") -> 478.18 ₺ | I78: =IF(Pay_Num<>"",Beg_Bal*(Interest_Rate/VLOOKUP(Interval,LoanLookup[],5,FALSE)),"") -> 511.75 ₺ | J78: =IF(scheduled_no_payments=1,"",IF(AND(Pay_Num<>"",Sched_Pay+Extra_Pay<Beg_Bal),Beg_Bal-Princ,IF(Pay_Num<>"",0,""))) -> 122,342.82 ₺ | K78: =IF(scheduled_no_payments=1,"",SUM($I$13:$I78)) -> 37,678.43 ₺
B79: =IF(AND(Values_Entered,scheduled_no_payments<>1),B78+1,"") -> 67 | C79: =IF(Pay_Num<>"",DATE(YEAR(C78)+VLOOKUP(Interval,LoanLookup[],4,FALSE),MONTH(C78)+VLOOKUP(Interval,LoanLookup[],2,FALSE),DAY(C78)+VLOOKUP(Interval,LoanLookup[],3,FALSE)),"") -> 2023-02-11 | D79: 122,342.82 ₺ | E79: =IF(Pay_Num<>"",Scheduled_Monthly_Payment,"") -> 989.93 ₺ | F79: =IF(scheduled_no_payments=1,"",IF(Sched_Pay+Scheduled_Extra_Payments<Beg_Bal,Scheduled_Extra_Payments,IF(AND(Pay_Num<>"",Beg_Bal-Sched_Pay>0),Beg_Bal-Sched_Pay,IF(Pay_Num<>"",0,"")))) -> 0 | G79: =IF(scheduled_no_payments=1,"",IF(Sched_Pay+Extra_Pay<Beg_Bal,Sched_Pay+Extra_Pay,IF(Pay_Num<>"",Beg_Bal,""))) -> 989.93 ₺ | H79: 480.17 ₺ | I79: =IF(Pay_Num<>"",Beg_Bal*(Interest_Rate/VLOOKUP(Interval,LoanLookup[],5,FALSE)),"") -> 509.76 ₺ | J79: =IF(scheduled_no_payments=1,"",IF(AND(Pay_Num<>"",Sched_Pay+Extra_Pay<Beg_Bal),Beg_Bal-Princ,IF(Pay_Num<>"",0,""))) -> 121,862.64 ₺ | K79: =IF(scheduled_no_payments=1,"",SUM($I$13:$I79)) -> 38,188.20 ₺
B80: =IF(AND(Values_Entered,scheduled_no_payments<>1),B79+1,"") -> 68 | C80: =IF(Pay_Num<>"",DATE(YEAR(C79)+VLOOKUP(Interval,LoanLookup[],4,FALSE),MONTH(C79)+VLOOKUP(Interval,LoanLookup[],2,FALSE),DAY(C79)+VLOOKUP(Interval,LoanLookup[],3,FALSE)),"") -> 2023-03-11 | D80: 121,862.64 ₺ | E80: 989.93 ₺ | F80: =IF(scheduled_no_payments=1,"",IF(Sched_Pay+Scheduled_Extra_Payments<Beg_Bal,Scheduled_Extra_Payments,IF(AND(Pay_Num<>"",Beg_Bal-Sched_Pay>0),Beg_Bal-Sched_Pay,IF(Pay_Num<>"",0,"")))) -> 0 | G80: =IF(scheduled_no_payments=1,"",IF(Sched_Pay+Extra_Pay<Beg_Bal,Sched_Pay+Extra_Pay,IF(Pay_Num<>"",Beg_Bal,""))) -> 989.93 ₺ | H80: 482.17 ₺ | I80: =IF(Pay_Num<>"",Beg_Bal*(Interest_Rate/VLOOKUP(Interval,LoanLookup[],5,FALSE)),"") -> 507.76 ₺ | J80: =IF(scheduled_no_payments=1,"",IF(AND(Pay_Num<>"",Sched_Pay+Extra_Pay<Beg_Bal),Beg_Bal-Princ,IF(Pay_Num<>"",0,""))) -> 121,380.47 ₺ | K80: =IF(scheduled_no_payments=1,"",SUM($I$13:$I80)) -> 38,695.96 ₺
B81: =IF(AND(Values_Entered,scheduled_no_payments<>1),B80+1,"") -> 69 | C81: =IF(Pay_Num<>"",DATE(YEAR(C80)+VLOOKUP(Interval,LoanLookup[],4,FALSE),MONTH(C80)+VLOOKUP(Interval,LoanLookup[],2,FALSE),DAY(C80)+VLOOKUP(Interval,LoanLookup[],3,FALSE)),"") -> 2023-04-11 | D81: 121,380.47 ₺ | E81: 989.93 ₺ | F81: =IF(scheduled_no_payments=1,"",IF(Sched_Pay+Scheduled_Extra_Payments<Beg_Bal,Scheduled_Extra_Payments,IF(AND(Pay_Num<>"",Beg_Bal-Sched_Pay>0),Beg_Bal-Sched_Pay,IF(Pay_Num<>"",0,"")))) -> 0 | G81: =IF(scheduled_no_payments=1,"",IF(Sched_Pay+Extra_Pay<Beg_Bal,Sched_Pay+Extra_Pay,IF(Pay_Num<>"",Beg_Bal,""))) -> 989.93 ₺ | H81: 484.18 ₺ | I81: =IF(Pay_Num<>"",Beg_Bal*(Interest_Rate/VLOOKUP(Interval,LoanLookup[],5,FALSE)),"") -> 505.75 ₺ | J81: =IF(scheduled_no_payments=1,"",IF(AND(Pay_Num<>"",Sched_Pay+Extra_Pay<Beg_Bal),Beg_Bal-Princ,IF(Pay_Num<>"",0,""))) -> 120,896.29 ₺ | K81: =IF(scheduled_no_payments=1,"",SUM($I$13:$I81)) -> 39,201.71 ₺
B82: =IF(AND(Values_Entered,scheduled_no_payments<>1),B81+1,"") -> 70 | C82: =IF(Pay_Num<>"",DATE(YEAR(C81)+VLOOKUP(Interval,LoanLookup[],4,FALSE),MONTH(C81)+VLOOKUP(Interval,LoanLookup[],2,FALSE),DAY(C81)+VLOOKUP(Interval,LoanLookup[],3,FALSE)),"") -> 2023-05-11 | D82: 120,896.29 ₺ | E82: 989.93 ₺ | F82: =IF(scheduled_no_payments=1,"",IF(Sched_Pay+Scheduled_Extra_Payments<Beg_Bal,Scheduled_Extra_Payments,IF(AND(Pay_Num<>"",Beg_Bal-Sched_Pay>0),Beg_Bal-Sched_Pay,IF(Pay_Num<>"",0,"")))) -> 0 | G82: =IF(scheduled_no_payments=1,"",IF(Sched_Pay+Extra_Pay<Beg_Bal,Sched_Pay+Extra_Pay,IF(Pay_Num<>"",Beg_Bal,""))) -> 989.93 ₺ | H82: 486.20 ₺ | I82: =IF(Pay_Num<>"",Beg_Bal*(Interest_Rate/VLOOKUP(Interval,LoanLookup[],5,FALSE)),"") -> 503.73 ₺ | J82: =IF(scheduled_no_payments=1,"",IF(AND(Pay_Num<>"",Sched_Pay+Extra_Pay<Beg_Bal),Beg_Bal-Princ,IF(Pay_Num<>"",0,""))) -> 120,410.09 ₺ | K82: =IF(scheduled_no_payments=1,"",SUM($I$13:$I82)) -> 39,705.44 ₺
B83: =IF(AND(Values_Entered,scheduled_no_payments<>1),B82+1,"") -> 71 | C83: =IF(Pay_Num<>"",DATE(YEAR(C82)+VLOOKUP(Interval,LoanLookup[],4,FALSE),MONTH(C82)+VLOOKUP(Interval,LoanLookup[],2,FALSE),DAY(C82)+VLOOKUP(Interval,LoanLookup[],3,FALSE)),"") -> 2023-06-11 | D83: 120,410.09 ₺ | E83: 989.93 ₺ | F83: =IF(scheduled_no_payments=1,"",IF(Sched_Pay+Scheduled_Extra_Payments<Beg_Bal,Scheduled_Extra_Payments,IF(AND(Pay_Num<>"",Beg_Bal-Sched_Pay>0),Beg_Bal-Sched_Pay,IF(Pay_Num<>"",0,"")))) -> 0 | G83: =IF(scheduled_no_payments=1,"",IF(Sched_Pay+Extra_Pay<Beg_Bal,Sched_Pay+Extra_Pay,IF(Pay_Num<>"",Beg_Bal,""))) -> 989.93 ₺ | H83: 488.22 ₺ | I83: =IF(Pay_Num<>"",Beg_Bal*(Interest_Rate/VLOOKUP(Interval,LoanLookup[],5,FALSE)),"") -> 501.71 ₺ | J83: =IF(scheduled_no_payments=1,"",IF(AND(Pay_Num<>"",Sched_Pay+Extra_Pay<Beg_Bal),Beg_Bal-Princ,IF(Pay_Num<>"",0,""))) -> 119,921.87 ₺ | K83: =IF(scheduled_no_payments=1,"",SUM($I$13:$I83)) -> 40,207.15 ₺
B84: =IF(AND(Values_Entered,scheduled_no_payments<>1),B83+1,"") -> 72 | C84: =IF(Pay_Num<>"",DATE(YEAR(C83)+VLOOKUP(Interval,LoanLookup[],4,FALSE),MONTH(C83)+VLOOKUP(Interval,LoanLookup[],2,FALSE),DAY(C83)+VLOOKUP(Interval,LoanLookup[],3,FALSE)),"") -> 2023-07-11 | D84: 119,921.87 ₺ | E84: 989.93 ₺ | F84: =IF(scheduled_no_payments=1,"",IF(Sched_Pay+Scheduled_Extra_Payments<Beg_Bal,Scheduled_Extra_Payments,IF(AND(Pay_Num<>"",Beg_Bal-Sched_Pay>0),Beg_Bal-Sched_Pay,IF(Pay_Num<>"",0,"")))) -> 0 | G84: =IF(scheduled_no_payments=1,"",IF(Sched_Pay+Extra_Pay<Beg_Bal,Sched_Pay+Extra_Pay,IF(Pay_Num<>"",Beg_Bal,""))) -> 989.93 ₺ | H84: 490.26 ₺ | I84: =IF(Pay_Num<>"",Beg_Bal*(Interest_Rate/VLOOKUP(Interval,LoanLookup[],5,FALSE)),"") -> 499.67 ₺ | J84: =IF(scheduled_no_payments=1,"",IF(AND(Pay_Num<>"",Sched_Pay+Extra_Pay<Beg_Bal),Beg_Bal-Princ,IF(Pay_Num<>"",0,""))) -> 119,431.61 ₺ | K84: =IF(scheduled_no_payments=1,"",SUM($I$13:$I84)) -> 40,706.83 ₺
B85: =IF(AND(Values_Entered,scheduled_no_payments<>1),B84+1,"") -> 73 | C85: =IF(Pay_Num<>"",DATE(YEAR(C84)+VLOOKUP(Interval,LoanLookup[],4,FALSE),MONTH(C84)+VLOOKUP(Interval,LoanLookup[],2,FALSE),DAY(C84)+VLOOKUP(Interval,LoanLookup[],3,FALSE)),"") -> 2023-08-11 | D85: 119,431.61 ₺ | E85: 989.93 ₺ | F85: =IF(scheduled_no_payments=1,"",IF(Sched_Pay+Scheduled_Extra_Payments<Beg_Bal,Scheduled_Extra_Payments,IF(AND(Pay_Num<>"",Beg_Bal-Sched_Pay>0),Beg_Bal-Sched_Pay,IF(Pay_Num<>"",0,"")))) -> 0 | G85: =IF(scheduled_no_payments=1,"",IF(Sched_Pay+Extra_Pay<Beg_Bal,Sched_Pay+Extra_Pay,IF(Pay_Num<>"",Beg_Bal,""))) -> 989.93 ₺ | H85: 492.30 ₺ | I85: =IF(Pay_Num<>"",Beg_Bal*(Interest_Rate/VLOOKUP(Interval,LoanLookup[],5,FALSE)),"") -> 497.63 ₺ | J85: =IF(scheduled_no_payments=1,"",IF(AND(Pay_Num<>"",Sched_Pay+Extra_Pay<Beg_Bal),Beg_Bal-Princ,IF(Pay_Num<>"",0,""))) -> 118,939.30 ₺ | K85: =IF(scheduled_no_payments=1,"",SUM($I$13:$I85)) -> 41,204.46 ₺
B86: =IF(AND(Values_Entered,scheduled_no_payments<>1),B85+1,"") -> 74 | C86: =IF(Pay_Num<>"",DATE(YEAR(C85)+VLOOKUP(Interval,LoanLookup[],4,FALSE),MONTH(C85)+VLOOKUP(Interval,LoanLookup[],2,FALSE),DAY(C85)+VLOOKUP(Interval,LoanLookup[],3,FALSE)),"") -> 2023-09-11 | D86: 118,939.30 ₺ | E86: 989.93 ₺ | F86: =IF(scheduled_no_payments=1,"",IF(Sched_Pay+Scheduled_Extra_Payments<Beg_Bal,Scheduled_Extra_Payments,IF(AND(Pay_Num<>"",Beg_Bal-Sched_Pay>0),Beg_Bal-Sched_Pay,IF(Pay_Num<>"",0,"")))) -> 0 | G86: =IF(scheduled_no_payments=1,"",IF(Sched_Pay+Extra_Pay<Beg_Bal,Sched_Pay+Extra_Pay,IF(Pay_Num<>"",Beg_Bal,""))) -> 989.93 ₺ | H86: 494.35 ₺ | I86: =IF(Pay_Num<>"",Beg_Bal*(Interest_Rate/VLOOKUP(Interval,LoanLookup[],5,FALSE)),"") -> 495.58 ₺ | J86: =IF(scheduled_no_payments=1,"",IF(AND(Pay_Num<>"",Sched_Pay+Extra_Pay<Beg_Bal),Beg_Bal-Princ,IF(Pay_Num<>"",0,""))) -> 118,444.95 ₺ | K86: =IF(scheduled_no_payments=1,"",SUM($I$13:$I86)) -> 41,700.04 ₺
B87: =IF(AND(Values_Entered,scheduled_no_payments<>1),B86+1,"") -> 75 | C87: =IF(Pay_Num<>"",DATE(YEAR(C86)+VLOOKUP(Interval,LoanLookup[],4,FALSE),MONTH(C86)+VLOOKUP(Interval,LoanLookup[],2,FALSE),DAY(C86)+VLOOKUP(Interval,LoanLookup[],3,FALSE)),"") -> 2023-10-11 | D87: 118,444.95 ₺ | E87: 989.93 ₺ | F87: =IF(scheduled_no_payments=1,"",IF(Sched_Pay+Scheduled_Extra_Payments<Beg_Bal,Scheduled_Extra_Payments,IF(AND(Pay_Num<>"",Beg_Bal-Sched_Pay>0),Beg_Bal-Sched_Pay,IF(Pay_Num<>"",0,"")))) -> 0 | G87: =IF(scheduled_no_payments=1,"",IF(Sched_Pay+Extra_Pay<Beg_Bal,Sched_Pay+Extra_Pay,IF(Pay_Num<>"",Beg_Bal,""))) -> 989.93 ₺ | H87: 496.41 ₺ | I87: =IF(Pay_Num<>"",Beg_Bal*(Interest_Rate/VLOOKUP(Interval,LoanLookup[],5,FALSE)),"") -> 493.52 ₺ | J87: =IF(scheduled_no_payments=1,"",IF(AND(Pay_Num<>"",Sched_Pay+Extra_Pay<Beg_Bal),Beg_Bal-Princ,IF(Pay_Num<>"",0,""))) -> 117,948.54 ₺ | K87: =IF(scheduled_no_payments=1,"",SUM($I$13:$I87)) -> 42,193.56 ₺
B88: =IF(AND(Values_Entered,scheduled_no_payments<>1),B87+1,"") -> 76 | C88: =IF(Pay_Num<>"",DATE(YEAR(C87)+VLOOKUP(Interval,LoanLookup[],4,FALSE),MONTH(C87)+VLOOKUP(Interval,LoanLookup[],2,FALSE),DAY(C87)+VLOOKUP(Interval,LoanLookup[],3,FALSE)),"") -> 2023-11-11 | D88: 117,948.54 ₺ | E88: 989.93 ₺ | F88: =IF(scheduled_no_payments=1,"",IF(Sched_Pay+Scheduled_Extra_Payments<Beg_Bal,Scheduled_Extra_Payments,IF(AND(Pay_Num<>"",Beg_Bal-Sched_Pay>0),Beg_Bal-Sched_Pay,IF(Pay_Num<>"",0,"")))) -> 0 | G88: =IF(scheduled_no_payments=1,"",IF(Sched_Pay+Extra_Pay<Beg_Bal,Sched_Pay+Extra_Pay,IF(Pay_Num<>"",Beg_Bal,""))) -> 989.93 ₺ | H88: 498.48 ₺ | I88: =IF(Pay_Num<>"",Beg_Bal*(Interest_Rate/VLOOKUP(Interval,LoanLookup[],5,FALSE)),"") -> 491.45 ₺ | J88: =IF(scheduled_no_payments=1,"",IF(AND(Pay_Num<>"",Sched_Pay+Extra_Pay<Beg_Bal),Beg_Bal-Princ,IF(Pay_Num<>"",0,""))) -> 117,450.06 ₺ | K88: =IF(scheduled_no_payments=1,"",SUM($I$13:$I88)) -> 42,685.01 ₺
B89: =IF(AND(Values_Entered,scheduled_no_payments<>1),B88+1,"") -> 77 | C89: =IF(Pay_Num<>"",DATE(YEAR(C88)+VLOOKUP(Interval,LoanLookup[],4,FALSE),MONTH(C88)+VLOOKUP(Interval,LoanLookup[],2,FALSE),DAY(C88)+VLOOKUP(Interval,LoanLookup[],3,FALSE)),"") -> 2023-12-11 | D89: 117,450.06 ₺ | E89: 989.93 ₺ | F89: =IF(scheduled_no_payments=1,"",IF(Sched_Pay+Scheduled_Extra_Payments<Beg_Bal,Scheduled_Extra_Payments,IF(AND(Pay_Num<>"",Beg_Bal-Sched_Pay>0),Beg_Bal-Sched_Pay,IF(Pay_Num<>"",0,"")))) -> 0 | G89: =IF(scheduled_no_payments=1,"",IF(Sched_Pay+Extra_Pay<Beg_Bal,Sched_Pay+Extra_Pay,IF(Pay_Num<>"",Beg_Bal,""))) -> 989.93 ₺ | H89: 500.56 ₺ | I89: =IF(Pay_Num<>"",Beg_Bal*(Interest_Rate/VLOOKUP(Interval,LoanLookup[],5,FALSE)),"") -> 489.38 ₺ | J89: =IF(scheduled_no_payments=1,"",IF(AND(Pay_Num<>"",Sched_Pay+Extra_Pay<Beg_Bal),Beg_Bal-Princ,IF(Pay_Num<>"",0,""))) -> 116,949.50 ₺ | K89: =IF(scheduled_no_payments=1,"",SUM($I$13:$I89)) -> 43,174.39 ₺
B90: =IF(AND(Values_Entered,scheduled_no_payments<>1),B89+1,"") -> 78 | C90: =IF(Pay_Num<>"",DATE(YEAR(C89)+VLOOKUP(Interval,LoanLookup[],4,FALSE),MONTH(C89)+VLOOKUP(Interval,LoanLookup[],2,FALSE),DAY(C89)+VLOOKUP(Interval,LoanLookup[],3,FALSE)),"") -> 2024-01-11 | D90: 116,949.50 ₺ | E90: 989.93 ₺ | F90: =IF(scheduled_no_payments=1,"",IF(Sched_Pay+Scheduled_Extra_Payments<Beg_Bal,Scheduled_Extra_Payments,IF(AND(Pay_Num<>"",Beg_Bal-Sched_Pay>0),Beg_Bal-Sched_Pay,IF(Pay_Num<>"",0,"")))) -> 0 | G90: =IF(scheduled_no_payments=1,"",IF(Sched_Pay+Extra_Pay<Beg_Bal,Sched_Pay+Extra_Pay,IF(Pay_Num<>"",Beg_Bal,""))) -> 989.93 ₺ | H90: 502.64 ₺ | I90: =IF(Pay_Num<>"",Beg_Bal*(Interest_Rate/VLOOKUP(Interval,LoanLookup[],5,FALSE)),"") -> 487.29 ₺ | J90: =IF(scheduled_no_payments=1,"",IF(AND(Pay_Num<>"",Sched_Pay+Extra_Pay<Beg_Bal),Beg_Bal-Princ,IF(Pay_Num<>"",0,""))) -> 116,446.85 ₺ | K90: =IF(scheduled_no_payments=1,"",SUM($I$13:$I90)) -> 43,661.68 ₺
B91: =IF(AND(Values_Entered,scheduled_no_payments<>1),B90+1,"") -> 79 | C91: =IF(Pay_Num<>"",DATE(YEAR(C90)+VLOOKUP(Interval,LoanLookup[],4,FALSE),MONTH(C90)+VLOOKUP(Interval,LoanLookup[],2,FALSE),DAY(C90)+VLOOKUP(Interval,LoanLookup[],3,FALSE)),"") -> 2024-02-11 | D91: 116,446.85 ₺ | E91: 989.93 ₺ | F91: =IF(scheduled_no_payments=1,"",IF(Sched_Pay+Scheduled_Extra_Payments<Beg_Bal,Scheduled_Extra_Payments,IF(AND(Pay_Num<>"",Beg_Bal-Sched_Pay>0),Beg_Bal-Sched_Pay,IF(Pay_Num<>"",0,"")))) -> 0 | G91: =IF(scheduled_no_payments=1,"",IF(Sched_Pay+Extra_Pay<Beg_Bal,Sched_Pay+Extra_Pay,IF(Pay_Num<>"",Beg_Bal,""))) -> 989.93 ₺ | H91: 504.74 ₺ | I91: =IF(Pay_Num<>"",Beg_Bal*(Interest_Rate/VLOOKUP(Interval,LoanLookup[],5,FALSE)),"") -> 485.20 ₺ | J91: =IF(scheduled_no_payments=1,"",IF(AND(Pay_Num<>"",Sched_Pay+Extra_Pay<Beg_Bal),Beg_Bal-Princ,IF(Pay_Num<>"",0,""))) -> 115,942.12 ₺ | K91: =IF(scheduled_no_payments=1,"",SUM($I$13:$I91)) -> 44,146.87 ₺
B92: =IF(AND(Values_Entered,scheduled_no_payments<>1),B91+1,"") -> 80 | C92: =IF(Pay_Num<>"",DATE(YEAR(C91)+VLOOKUP(Interval,LoanLookup[],4,FALSE),MONTH(C91)+VLOOKUP(Interval,LoanLookup[],2,FALSE),DAY(C91)+VLOOKUP(Interval,LoanLookup[],3,FALSE)),"") -> 2024-03-11 | D92: 115,942.12 ₺ | E92: 989.93 ₺ | F92: =IF(scheduled_no_payments=1,"",IF(Sched_Pay+Scheduled_Extra_Payments<Beg_Bal,Scheduled_Extra_Payments,IF(AND(Pay_Num<>"",Beg_Bal-Sched_Pay>0),Beg_Bal-Sched_Pay,IF(Pay_Num<>"",0,"")))) -> 0 | G92: =IF(scheduled_no_payments=1,"",IF(Sched_Pay+Extra_Pay<Beg_Bal,Sched_Pay+Extra_Pay,IF(Pay_Num<>"",Beg_Bal,""))) -> 989.93 ₺ | H92: 506.84 ₺ | I92: =IF(Pay_Num<>"",Beg_Bal*(Interest_Rate/VLOOKUP(Interval,LoanLookup[],5,FALSE)),"") -> 483.09 ₺ | J92: =IF(scheduled_no_payments=1,"",IF(AND(Pay_Num<>"",Sched_Pay+Extra_Pay<Beg_Bal),Beg_Bal-Princ,IF(Pay_Num<>"",0,""))) -> 115,435.28 ₺ | K92: =IF(scheduled_no_payments=1,"",SUM($I$13:$I92)) -> 44,629.96 ₺
B93: =IF(AND(Values_Entered,scheduled_no_payments<>1),B92+1,"") -> 81 | C93: =IF(Pay_Num<>"",DATE(YEAR(C92)+VLOOKUP(Interval,LoanLookup[],4,FALSE),MONTH(C92)+VLOOKUP(Interval,LoanLookup[],2,FALSE),DAY(C92)+VLOOKUP(Interval,LoanLookup[],3,FALSE)),"") -> 2024-04-11 | D93: 115,435.28 ₺ | E93: 989.93 ₺ | F93: =IF(scheduled_no_payments=1,"",IF(Sched_Pay+Scheduled_Extra_Payments<Beg_Bal,Scheduled_Extra_Payments,IF(AND(Pay_Num<>"",Beg_Bal-Sched_Pay>0),Beg_Bal-Sched_Pay,IF(Pay_Num<>"",0,"")))) -> 0 | G93: =IF(scheduled_no_payments=1,"",IF(Sched_Pay+Extra_Pay<Beg_Bal,Sched_Pay+Extra_Pay,IF(Pay_Num<>"",Beg_Bal,""))) -> 989.93 ₺ | H93: 508.95 ₺ | I93: =IF(Pay_Num<>"",Beg_Bal*(Interest_Rate/VLOOKUP(Interval,LoanLookup[],5,FALSE)),"") -> 480.98 ₺ | J93: =IF(scheduled_no_payments=1,"",IF(AND(Pay_Num<>"",Sched_Pay+Extra_Pay<Beg_Bal),Beg_Bal-Princ,IF(Pay_Num<>"",0,""))) -> 114,926.32 ₺ | K93: =IF(scheduled_no_payments=1,"",SUM($I$13:$I93)) -> 45,110.94 ₺
B94: =IF(AND(Values_Entered,scheduled_no_payments<>1),B93+1,"") -> 82 | C94: =IF(Pay_Num<>"",DATE(YEAR(C93)+VLOOKUP(Interval,LoanLookup[],4,FALSE),MONTH(C93)+VLOOKUP(Interval,LoanLookup[],2,FALSE),DAY(C93)+VLOOKUP(Interval,LoanLookup[],3,FALSE)),"") -> 2024-05-11 | D94: 114,926.32 ₺ | E94: 989.93 ₺ | F94: =IF(scheduled_no_payments=1,"",IF(Sched_Pay+Scheduled_Extra_Payments<Beg_Bal,Scheduled_Extra_Payments,IF(AND(Pay_Num<>"",Beg_Bal-Sched_Pay>0),Beg_Bal-Sched_Pay,IF(Pay_Num<>"",0,"")))) -> 0 | G94: =IF(scheduled_no_payments=1,"",IF(Sched_Pay+Extra_Pay<Beg_Bal,Sched_Pay+Extra_Pay,IF(Pay_Num<>"",Beg_Bal,""))) -> 989.93 ₺ | H94: 511.07 ₺ | I94: =IF(Pay_Num<>"",Beg_Bal*(Interest_Rate/VLOOKUP(Interval,LoanLookup[],5,FALSE)),"") -> 478.86 ₺ | J94: =IF(scheduled_no_payments=1,"",IF(AND(Pay_Num<>"",Sched_Pay+Extra_Pay<Beg_Bal),Beg_Bal-Princ,IF(Pay_Num<>"",0,""))) -> 114,415.25 ₺ | K94: =IF(scheduled_no_payments=1,"",SUM($I$13:$I94)) -> 45,589.80 ₺
B95: =IF(AND(Values_Entered,scheduled_no_payments<>1),B94+1,"") -> 83 | C95: =IF(Pay_Num<>"",DATE(YEAR(C94)+VLOOKUP(Interval,LoanLookup[],4,FALSE),MONTH(C94)+VLOOKUP(Interval,LoanLookup[],2,FALSE),DAY(C94)+VLOOKUP(Interval,LoanLookup[],3,FALSE)),"") -> 2024-06-11 | D95: 114,415.25 ₺ | E95: 989.93 ₺ | F95: =IF(scheduled_no_payments=1,"",IF(Sched_Pay+Scheduled_Extra_Payments<Beg_Bal,Scheduled_Extra_Payments,IF(AND(Pay_Num<>"",Beg_Bal-Sched_Pay>0),Beg_Bal-Sched_Pay,IF(Pay_Num<>"",0,"")))) -> 0 | G95: =IF(scheduled_no_payments=1,"",IF(Sched_Pay+Extra_Pay<Beg_Bal,Sched_Pay+Extra_Pay,IF(Pay_Num<>"",Beg_Bal,""))) -> 989.93 ₺ | H95: 513.20 ₺ | I95: =IF(Pay_Num<>"",Beg_Bal*(Interest_Rate/VLOOKUP(Interval,LoanLookup[],5,FALSE)),"") -> 476.73 ₺ | J95: =IF(scheduled_no_payments=1,"",IF(AND(Pay_Num<>"",Sched_Pay+Extra_Pay<Beg_Bal),Beg_Bal-Princ,IF(Pay_Num<>"",0,""))) -> 113,902.04 ₺ | K95: =IF(scheduled_no_payments=1,"",SUM($I$13:$I95)) -> 46,066.53 ₺
B96: =IF(AND(Values_Entered,scheduled_no_payments<>1),B95+1,"") -> 84 | C96: =IF(Pay_Num<>"",DATE(YEAR(C95)+VLOOKUP(Interval,LoanLookup[],4,FALSE),MONTH(C95)+VLOOKUP(Interval,LoanLookup[],2,FALSE),DAY(C95)+VLOOKUP(Interval,LoanLookup[],3,FALSE)),"") -> 2024-07-11 | D96: 113,902.04 ₺ | E96: 989.93 ₺ | F96: =IF(scheduled_no_payments=1,"",IF(Sched_Pay+Scheduled_Extra_Payments<Beg_Bal,Scheduled_Extra_Payments,IF(AND(Pay_Num<>"",Beg_Bal-Sched_Pay>0),Beg_Bal-Sched_Pay,IF(Pay_Num<>"",0,"")))) -> 0 | G96: =IF(scheduled_no_payments=1,"",IF(Sched_Pay+Extra_Pay<Beg_Bal,Sched_Pay+Extra_Pay,IF(Pay_Num<>"",Beg_Bal,""))) -> 989.93 ₺ | H96: 515.34 ₺ | I96: =IF(Pay_Num<>"",Beg_Bal*(Interest_Rate/VLOOKUP(Interval,LoanLookup[],5,FALSE)),"") -> 474.59 ₺ | J96: =IF(scheduled_no_payments=1,"",IF(AND(Pay_Num<>"",Sched_Pay+Extra_Pay<Beg_Bal),Beg_Bal-Princ,IF(Pay_Num<>"",0,""))) -> 113,386.70 ₺ | K96: =IF(scheduled_no_payments=1,"",SUM($I$13:$I96)) -> 46,541.13 ₺
B97: =IF(AND(Values_Entered,scheduled_no_payments<>1),B96+1,"") -> 85 | C97: =IF(Pay_Num<>"",DATE(YEAR(C96)+VLOOKUP(Interval,LoanLookup[],4,FALSE),MONTH(C96)+VLOOKUP(Interval,LoanLookup[],2,FALSE),DAY(C96)+VLOOKUP(Interval,LoanLookup[],3,FALSE)),"") -> 2024-08-11 | D97: 113,386.70 ₺ | E97: 989.93 ₺ | F97: =IF(scheduled_no_payments=1,"",IF(Sched_Pay+Scheduled_Extra_Payments<Beg_Bal,Scheduled_Extra_Payments,IF(AND(Pay_Num<>"",Beg_Bal-Sched_Pay>0),Beg_Bal-Sched_Pay,IF(Pay_Num<>"",0,"")))) -> 0 | G97: =IF(scheduled_no_payments=1,"",IF(Sched_Pay+Extra_Pay<Beg_Bal,Sched_Pay+Extra_Pay,IF(Pay_Num<>"",Beg_Bal,""))) -> 989.93 ₺ | H97: 517.49 ₺ | I97: =IF(Pay_Num<>"",Beg_Bal*(Interest_Rate/VLOOKUP(Interval,LoanLookup[],5,FALSE)),"") -> 472.44 ₺ | J97: =IF(scheduled_no_payments=1,"",IF(AND(Pay_Num<>"",Sched_Pay+Extra_Pay<Beg_Bal),Beg_Bal-Princ,IF(Pay_Num<>"",0,""))) -> 112,869.21 ₺ | K97: =IF(scheduled_no_payments=1,"",SUM($I$13:$I97)) -> 47,013.57 ₺
B98: =IF(AND(Values_Entered,scheduled_no_payments<>1),B97+1,"") -> 86 | C98: =IF(Pay_Num<>"",DATE(YEAR(C97)+VLOOKUP(Interval,LoanLookup[],4,FALSE),MONTH(C97)+VLOOKUP(Interval,LoanLookup[],2,FALSE),DAY(C97)+VLOOKUP(Interval,LoanLookup[],3,FALSE)),"") -> 2024-09-11 | D98: 112,869.21 ₺ | E98: 989.93 ₺ | F98: =IF(scheduled_no_payments=1,"",IF(Sched_Pay+Scheduled_Extra_Payments<Beg_Bal,Scheduled_Extra_Payments,IF(AND(Pay_Num<>"",Beg_Bal-Sched_Pay>0),Beg_Bal-Sched_Pay,IF(Pay_Num<>"",0,"")))) -> 0 | G98: =IF(scheduled_no_payments=1,"",IF(Sched_Pay+Extra_Pay<Beg_Bal,Sched_Pay+Extra_Pay,IF(Pay_Num<>"",Beg_Bal,""))) -> 989.93 ₺ | H98: 519.65 ₺ | I98: =IF(Pay_Num<>"",Beg_Bal*(Interest_Rate/VLOOKUP(Interval,LoanLookup[],5,FALSE)),"") -> 470.29 ₺ | J98: =IF(scheduled_no_payments=1,"",IF(AND(Pay_Num<>"",Sched_Pay+Extra_Pay<Beg_Bal),Beg_Bal-Princ,IF(Pay_Num<>"",0,""))) -> 112,349.57 ₺ | K98: =IF(scheduled_no_payments=1,"",SUM($I$13:$I98)) -> 47,483.86 ₺
B99: =IF(AND(Values_Entered,scheduled_no_payments<>1),B98+1,"") -> 87 | C99: =IF(Pay_Num<>"",DATE(YEAR(C98)+VLOOKUP(Interval,LoanLookup[],4,FALSE),MONTH(C98)+VLOOKUP(Interval,LoanLookup[],2,FALSE),DAY(C98)+VLOOKUP(Interval,LoanLookup[],3,FALSE)),"") -> 2024-10-11 | D99: 112,349.57 ₺ | E99: 989.93 ₺ | F99: =IF(scheduled_no_payments=1,"",IF(Sched_Pay+Scheduled_Extra_Payments<Beg_Bal,Scheduled_Extra_Payments,IF(AND(Pay_Num<>"",Beg_Bal-Sched_Pay>0),Beg_Bal-Sched_Pay,IF(Pay_Num<>"",0,"")))) -> 0 | G99: =IF(scheduled_no_payments=1,"",IF(Sched_Pay+Extra_Pay<Beg_Bal,Sched_Pay+Extra_Pay,IF(Pay_Num<>"",Beg_Bal,""))) -> 989.93 ₺ | H99: 521.81 ₺ | I99: =IF(Pay_Num<>"",Beg_Bal*(Interest_Rate/VLOOKUP(Interval,LoanLookup[],5,FALSE)),"") -> 468.12 ₺ | J99: =IF(scheduled_no_payments=1,"",IF(AND(Pay_Num<>"",Sched_Pay+Extra_Pay<Beg_Bal),Beg_Bal-Princ,IF(Pay_Num<>"",0,""))) -> 111,827.76 ₺ | K99: =IF(scheduled_no_payments=1,"",SUM($I$13:$I99)) -> 47,951.98 ₺
B100: =IF(AND(Values_Entered,scheduled_no_payments<>1),B99+1,"") -> 88 | C100: =IF(Pay_Num<>"",DATE(YEAR(C99)+VLOOKUP(Interval,LoanLookup[],4,FALSE),MONTH(C99)+VLOOKUP(Interval,LoanLookup[],2,FALSE),DAY(C99)+VLOOKUP(Interval,LoanLookup[],3,FALSE)),"") -> 2024-11-11 | D100: 111,827.76 ₺ | E100: 989.93 ₺ | F100: =IF(scheduled_no_payments=1,"",IF(Sched_Pay+Scheduled_Extra_Payments<Beg_Bal,Scheduled_Extra_Payments,IF(AND(Pay_Num<>"",Beg_Bal-Sched_Pay>0),Beg_Bal-Sched_Pay,IF(Pay_Num<>"",0,"")))) -> 0 | G100: =IF(scheduled_no_payments=1,"",IF(Sched_Pay+Extra_Pay<Beg_Bal,Sched_Pay+Extra_Pay,IF(Pay_Num<>"",Beg_Bal,""))) -> 989.93 ₺ | H100: 523.98 ₺ | I100: =IF(Pay_Num<>"",Beg_Bal*(Interest_Rate/VLOOKUP(Interval,LoanLookup[],5,FALSE)),"") -> 465.95 ₺ | J100: =IF(scheduled_no_payments=1,"",IF(AND(Pay_Num<>"",Sched_Pay+Extra_Pay<Beg_Bal),Beg_Bal-Princ,IF(Pay_Num<>"",0,""))) -> 111,303.77 ₺ | K100: =IF(scheduled_no_payments=1,"",SUM($I$13:$I100)) -> 48,417.93 ₺
B101: =IF(AND(Values_Entered,scheduled_no_payments<>1),B100+1,"") -> 89 | C101: =IF(Pay_Num<>"",DATE(YEAR(C100)+VLOOKUP(Interval,LoanLookup[],4,FALSE),MONTH(C100)+VLOOKUP(Interval,LoanLookup[],2,FALSE),DAY(C100)+VLOOKUP(Interval,LoanLookup[],3,FALSE)),"") -> 2024-12-11 | D101: 111,303.77 ₺ | E101: 989.93 ₺ | F101: =IF(scheduled_no_payments=1,"",IF(Sched_Pay+Scheduled_Extra_Payments<Beg_Bal,Scheduled_Extra_Payments,IF(AND(Pay_Num<>"",Beg_Bal-Sched_Pay>0),Beg_Bal-Sched_Pay,IF(Pay_Num<>"",0,"")))) -> 0 | G101: =IF(scheduled_no_payments=1,"",IF(Sched_Pay+Extra_Pay<Beg_Bal,Sched_Pay+Extra_Pay,IF(Pay_Num<>"",Beg_Bal,""))) -> 989.93 ₺ | H101: 526.17 ₺ | I101: =IF(Pay_Num<>"",Beg_Bal*(Interest_Rate/VLOOKUP(Interval,LoanLookup[],5,FALSE)),"") -> 463.77 ₺ | J101: =IF(scheduled_no_payments=1,"",IF(AND(Pay_Num<>"",Sched_Pay+Extra_Pay<Beg_Bal),Beg_Bal-Princ,IF(Pay_Num<>"",0,""))) -> 110,777.61 ₺ | K101: =IF(scheduled_no_payments=1,"",SUM($I$13:$I101)) -> 48,881.70 ₺
B102: =IF(AND(Values_Entered,scheduled_no_payments<>1),B101+1,"") -> 90 | C102: =IF(Pay_Num<>"",DATE(YEAR(C101)+VLOOKUP(Interval,LoanLookup[],4,FALSE),MONTH(C101)+VLOOKUP(Interval,LoanLookup[],2,FALSE),DAY(C101)+VLOOKUP(Interval,LoanLookup[],3,FALSE)),"") -> 2025-01-11 | D102: 110,777.61 ₺ | E102: 989.93 ₺ | F102: =IF(scheduled_no_payments=1,"",IF(Sched_Pay+Scheduled_Extra_Payments<Beg_Bal,Scheduled_Extra_Payments,IF(AND(Pay_Num<>"",Beg_Bal-Sched_Pay>0),Beg_Bal-Sched_Pay,IF(Pay_Num<>"",0,"")))) -> 0 | G102: =IF(scheduled_no_payments=1,"",IF(Sched_Pay+Extra_Pay<Beg_Bal,Sched_Pay+Extra_Pay,IF(Pay_Num<>"",Beg_Bal,""))) -> 989.93 ₺ | H102: 528.36 ₺ | I102: =IF(Pay_Num<>"",Beg_Bal*(Interest_Rate/VLOOKUP(Interval,LoanLookup[],5,FALSE)),"") -> 461.57 ₺ | J102: =IF(scheduled_no_payments=1,"",IF(AND(Pay_Num<>"",Sched_Pay+Extra_Pay<Beg_Bal),Beg_Bal-Princ,IF(Pay_Num<>"",0,""))) -> 110,249.25 ₺ | K102: =IF(scheduled_no_payments=1,"",SUM($I$13:$I102)) -> 49,343.27 ₺
B103: =IF(AND(Values_Entered,scheduled_no_payments<>1),B102+1,"") -> 91 | C103: =IF(Pay_Num<>"",DATE(YEAR(C102)+VLOOKUP(Interval,LoanLookup[],4,FALSE),MONTH(C102)+VLOOKUP(Interval,LoanLookup[],2,FALSE),DAY(C102)+VLOOKUP(Interval,LoanLookup[],3,FALSE)),"") -> 2025-02-11 | D103: 110,249.25 ₺ | E103: 989.93 ₺ | F103: =IF(scheduled_no_payments=1,"",IF(Sched_Pay+Scheduled_Extra_Payments<Beg_Bal,Scheduled_Extra_Payments,IF(AND(Pay_Num<>"",Beg_Bal-Sched_Pay>0),Beg_Bal-Sched_Pay,IF(Pay_Num<>"",0,"")))) -> 0 | G103: =IF(scheduled_no_payments=1,"",IF(Sched_Pay+Extra_Pay<Beg_Bal,Sched_Pay+Extra_Pay,IF(Pay_Num<>"",Beg_Bal,""))) -> 989.93 ₺ | H103: 530.56 ₺ | I103: =IF(Pay_Num<>"",Beg_Bal*(Interest_Rate/VLOOKUP(Interval,LoanLookup[],5,FALSE)),"") -> 459.37 ₺ | J103: =IF(scheduled_no_payments=1,"",IF(AND(Pay_Num<>"",Sched_Pay+Extra_Pay<Beg_Bal),Beg_Bal-Princ,IF(Pay_Num<>"",0,""))) -> 109,718.68 ₺ | K103: =IF(scheduled_no_payments=1,"",SUM($I$13:$I103)) -> 49,802.64 ₺
B104: =IF(AND(Values_Entered,scheduled_no_payments<>1),B103+1,"") -> 92 | C104: =IF(Pay_Num<>"",DATE(YEAR(C103)+VLOOKUP(Interval,LoanLookup[],4,FALSE),MONTH(C103)+VLOOKUP(Interval,LoanLookup[],2,FALSE),DAY(C103)+VLOOKUP(Interval,LoanLookup[],3,FALSE)),"") -> 2025-03-11 | D104: 109,718.68 ₺ | E104: 989.93 ₺ | F104: =IF(scheduled_no_payments=1,"",IF(Sched_Pay+Scheduled_Extra_Payments<Beg_Bal,Scheduled_Extra_Payments,IF(AND(Pay_Num<>"",Beg_Bal-Sched_Pay>0),Beg_Bal-Sched_Pay,IF(Pay_Num<>"",0,"")))) -> 0 | G104: =IF(scheduled_no_payments=1,"",IF(Sched_Pay+Extra_Pay<Beg_Bal,Sched_Pay+Extra_Pay,IF(Pay_Num<>"",Beg_Bal,""))) -> 989.93 ₺ | H104: 532.77 ₺ | I104: =IF(Pay_Num<>"",Beg_Bal*(Interest_Rate/VLOOKUP(Interval,LoanLookup[],5,FALSE)),"") -> 457.16 ₺ | J104: =IF(scheduled_no_payments=1,"",IF(AND(Pay_Num<>"",Sched_Pay+Extra_Pay<Beg_Bal),Beg_Bal-Princ,IF(Pay_Num<>"",0,""))) -> 109,185.91 ₺ | K104: =IF(scheduled_no_payments=1,"",SUM($I$13:$I104)) -> 50,259.80 ₺
B105: =IF(AND(Values_Entered,scheduled_no_payments<>1),B104+1,"") -> 93 | C105: =IF(Pay_Num<>"",DATE(YEAR(C104)+VLOOKUP(Interval,LoanLookup[],4,FALSE),MONTH(C104)+VLOOKUP(Interval,LoanLookup[],2,FALSE),DAY(C104)+VLOOKUP(Interval,LoanLookup[],3,FALSE)),"") -> 2025-04-11 | D105: 109,185.91 ₺ | E105: 989.93 ₺ | F105: =IF(scheduled_no_payments=1,"",IF(Sched_Pay+Scheduled_Extra_Payments<Beg_Bal,Scheduled_Extra_Payments,IF(AND(Pay_Num<>"",Beg_Bal-Sched_Pay>0),Beg_Bal-Sched_Pay,IF(Pay_Num<>"",0,"")))) -> 0 | G105: =IF(scheduled_no_payments=1,"",IF(Sched_Pay+Extra_Pay<Beg_Bal,Sched_Pay+Extra_Pay,IF(Pay_Num<>"",Beg_Bal,""))) -> 989.93 ₺ | H105: 534.99 ₺ | I105: =IF(Pay_Num<>"",Beg_Bal*(Interest_Rate/VLOOKUP(Interval,LoanLookup[],5,FALSE)),"") -> 454.94 ₺ | J105: =IF(scheduled_no_payments=1,"",IF(AND(Pay_Num<>"",Sched_Pay+Extra_Pay<Beg_Bal),Beg_Bal-Princ,IF(Pay_Num<>"",0,""))) -> 108,650.92 ₺ | K105: =IF(scheduled_no_payments=1,"",SUM($I$13:$I105)) -> 50,714.74 ₺
B106: =IF(AND(Values_Entered,scheduled_no_payments<>1),B105+1,"") -> 94 | C106: =IF(Pay_Num<>"",DATE(YEAR(C105)+VLOOKUP(Interval,LoanLookup[],4,FALSE),MONTH(C105)+VLOOKUP(Interval,LoanLookup[],2,FALSE),DAY(C105)+VLOOKUP(Interval,LoanLookup[],3,FALSE)),"") -> 2025-05-11 | D106: 108,650.92 ₺ | E106: 989.93 ₺ | F106: =IF(scheduled_no_payments=1,"",IF(Sched_Pay+Scheduled_Extra_Payments<Beg_Bal,Scheduled_Extra_Payments,IF(AND(Pay_Num<>"",Beg_Bal-Sched_Pay>0),Beg_Bal-Sched_Pay,IF(Pay_Num<>"",0,"")))) -> 0 | G106: =IF(scheduled_no_payments=1,"",IF(Sched_Pay+Extra_Pay<Beg_Bal,Sched_Pay+Extra_Pay,IF(Pay_Num<>"",Beg_Bal,""))) -> 989.93 ₺ | H106: 537.22 ₺ | I106: =IF(Pay_Num<>"",Beg_Bal*(Interest_Rate/VLOOKUP(Interval,LoanLookup[],5,FALSE)),"") -> 452.71 ₺ | J106: =IF(scheduled_no_payments=1,"",IF(AND(Pay_Num<>"",Sched_Pay+Extra_Pay<Beg_Bal),Beg_Bal-Princ,IF(Pay_Num<>"",0,""))) -> 108,113.70 ₺ | K106: =IF(scheduled_no_payments=1,"",SUM($I$13:$I106)) -> 51,167.46 ₺
B107: =IF(AND(Values_Entered,scheduled_no_payments<>1),B106+1,"") -> 95 | C107: =IF(Pay_Num<>"",DATE(YEAR(C106)+VLOOKUP(Interval,LoanLookup[],4,FALSE),MONTH(C106)+VLOOKUP(Interval,LoanLookup[],2,FALSE),DAY(C106)+VLOOKUP(Interval,LoanLookup[],3,FALSE)),"") -> 2025-06-11 | D107: 108,113.70 ₺ | E107: 989.93 ₺ | F107: =IF(scheduled_no_payments=1,"",IF(Sched_Pay+Scheduled_Extra_Payments<Beg_Bal,Scheduled_Extra_Payments,IF(AND(Pay_Num<>"",Beg_Bal-Sched_Pay>0),Beg_Bal-Sched_Pay,IF(Pay_Num<>"",0,"")))) -> 0 | G107: =IF(scheduled_no_payments=1,"",IF(Sched_Pay+Extra_Pay<Beg_Bal,Sched_Pay+Extra_Pay,IF(Pay_Num<>"",Beg_Bal,""))) -> 989.93 ₺ | H107: 539.46 ₺ | I107: =IF(Pay_Num<>"",Beg_Bal*(Interest_Rate/VLOOKUP(Interval,LoanLookup[],5,FALSE)),"") -> 450.47 ₺ | J107: =IF(scheduled_no_payments=1,"",IF(AND(Pay_Num<>"",Sched_Pay+Extra_Pay<Beg_Bal),Beg_Bal-Princ,IF(Pay_Num<>"",0,""))) -> 107,574.24 ₺ | K107: =IF(scheduled_no_payments=1,"",SUM($I$13:$I107)) -> 51,617.93 ₺
B108: =IF(AND(Values_Entered,scheduled_no_payments<>1),B107+1,"") -> 96 | C108: =IF(Pay_Num<>"",DATE(YEAR(C107)+VLOOKUP(Interval,LoanLookup[],4,FALSE),MONTH(C107)+VLOOKUP(Interval,LoanLookup[],2,FALSE),DAY(C107)+VLOOKUP(Interval,LoanLookup[],3,FALSE)),"") -> 2025-07-11 | D108: 107,574.24 ₺ | E108: 989.93 ₺ | F108: =IF(scheduled_no_payments=1,"",IF(Sched_Pay+Scheduled_Extra_Payments<Beg_Bal,Scheduled_Extra_Payments,IF(AND(Pay_Num<>"",Beg_Bal-Sched_Pay>0),Beg_Bal-Sched_Pay,IF(Pay_Num<>"",0,"")))) -> 0 | G108: =IF(scheduled_no_payments=1,"",IF(Sched_Pay+Extra_Pay<Beg_Bal,Sched_Pay+Extra_Pay,IF(Pay_Num<>"",Beg_Bal,""))) -> 989.93 ₺ | H108: 541.71 ₺ | I108: =IF(Pay_Num<>"",Beg_Bal*(Interest_Rate/VLOOKUP(Interval,LoanLookup[],5,FALSE)),"") -> 448.23 ₺ | J108: =IF(scheduled_no_payments=1,"",IF(AND(Pay_Num<>"",Sched_Pay+Extra_Pay<Beg_Bal),Beg_Bal-Princ,IF(Pay_Num<>"",0,""))) -> 107,032.53 ₺ | K108: =IF(scheduled_no_payments=1,"",SUM($I$13:$I108)) -> 52,066.16 ₺
B109: =IF(AND(Values_Entered,scheduled_no_payments<>1),B108+1,"") -> 97 | C109: =IF(Pay_Num<>"",DATE(YEAR(C108)+VLOOKUP(Interval,LoanLookup[],4,FALSE),MONTH(C108)+VLOOKUP(Interval,LoanLookup[],2,FALSE),DAY(C108)+VLOOKUP(Interval,LoanLookup[],3,FALSE)),"") -> 2025-08-11 | D109: 107,032.53 ₺ | E109: 989.93 ₺ | F109: =IF(scheduled_no_payments=1,"",IF(Sched_Pay+Scheduled_Extra_Payments<Beg_Bal,Scheduled_Extra_Payments,IF(AND(Pay_Num<>"",Beg_Bal-Sched_Pay>0),Beg_Bal-Sched_Pay,IF(Pay_Num<>"",0,"")))) -> 0 | G109: =IF(scheduled_no_payments=1,"",IF(Sched_Pay+Extra_Pay<Beg_Bal,Sched_Pay+Extra_Pay,IF(Pay_Num<>"",Beg_Bal,""))) -> 989.93 ₺ | H109: 543.96 ₺ | I109: =IF(Pay_Num<>"",Beg_Bal*(Interest_Rate/VLOOKUP(Interval,LoanLookup[],5,FALSE)),"") -> 445.97 ₺ | J109: =IF(scheduled_no_payments=1,"",IF(AND(Pay_Num<>"",Sched_Pay+Extra_Pay<Beg_Bal),Beg_Bal-Princ,IF(Pay_Num<>"",0,""))) -> 106,488.57 ₺ | K109: =IF(scheduled_no_payments=1,"",SUM($I$13:$I109)) -> 52,512.13 ₺
B110: =IF(AND(Values_Entered,scheduled_no_payments<>1),B109+1,"") -> 98 | C110: =IF(Pay_Num<>"",DATE(YEAR(C109)+VLOOKUP(Interval,LoanLookup[],4,FALSE),MONTH(C109)+VLOOKUP(Interval,LoanLookup[],2,FALSE),DAY(C109)+VLOOKUP(Interval,LoanLookup[],3,FALSE)),"") -> 2025-09-11 | D110: 106,488.57 ₺ | E110: 989.93 ₺ | F110: =IF(scheduled_no_payments=1,"",IF(Sched_Pay+Scheduled_Extra_Payments<Beg_Bal,Scheduled_Extra_Payments,IF(AND(Pay_Num<>"",Beg_Bal-Sched_Pay>0),Beg_Bal-Sched_Pay,IF(Pay_Num<>"",0,"")))) -> 0 | G110: =IF(scheduled_no_payments=1,"",IF(Sched_Pay+Extra_Pay<Beg_Bal,Sched_Pay+Extra_Pay,IF(Pay_Num<>"",Beg_Bal,""))) -> 989.93 ₺ | H110: 546.23 ₺ | I110: =IF(Pay_Num<>"",Beg_Bal*(Interest_Rate/VLOOKUP(Interval,LoanLookup[],5,FALSE)),"") -> 443.70 ₺ | J110: =IF(scheduled_no_payments=1,"",IF(AND(Pay_Num<>"",Sched_Pay+Extra_Pay<Beg_Bal),Beg_Bal-Princ,IF(Pay_Num<>"",0,""))) -> 105,942.33 ₺ | K110: =IF(scheduled_no_payments=1,"",SUM($I$13:$I110)) -> 52,955.83 ₺
B111: =IF(AND(Values_Entered,scheduled_no_payments<>1),B110+1,"") -> 99 | C111: =IF(Pay_Num<>"",DATE(YEAR(C110)+VLOOKUP(Interval,LoanLookup[],4,FALSE),MONTH(C110)+VLOOKUP(Interval,LoanLookup[],2,FALSE),DAY(C110)+VLOOKUP(Interval,LoanLookup[],3,FALSE)),"") -> 2025-10-11 | D111: 105,942.33 ₺ | E111: 989.93 ₺ | F111: =IF(scheduled_no_payments=1,"",IF(Sched_Pay+Scheduled_Extra_Payments<Beg_Bal,Scheduled_Extra_Payments,IF(AND(Pay_Num<>"",Beg_Bal-Sched_Pay>0),Beg_Bal-Sched_Pay,IF(Pay_Num<>"",0,"")))) -> 0 | G111: =IF(scheduled_no_payments=1,"",IF(Sched_Pay+Extra_Pay<Beg_Bal,Sched_Pay+Extra_Pay,IF(Pay_Num<>"",Beg_Bal,""))) -> 989.93 ₺ | H111: 548.51 ₺ | I111: =IF(Pay_Num<>"",Beg_Bal*(Interest_Rate/VLOOKUP(Interval,LoanLookup[],5,FALSE)),"") -> 441.43 ₺ | J111: =IF(scheduled_no_payments=1,"",IF(AND(Pay_Num<>"",Sched_Pay+Extra_Pay<Beg_Bal),Beg_Bal-Princ,IF(Pay_Num<>"",0,""))) -> 105,393.83 ₺ | K111: =IF(scheduled_no_payments=1,"",SUM($I$13:$I111)) -> 53,397.25 ₺
B112: =IF(AND(Values_Entered,scheduled_no_payments<>1),B111+1,"") -> 100 | C112: =IF(Pay_Num<>"",DATE(YEAR(C111)+VLOOKUP(Interval,LoanLookup[],4,FALSE),MONTH(C111)+VLOOKUP(Interval,LoanLookup[],2,FALSE),DAY(C111)+VLOOKUP(Interval,LoanLookup[],3,FALSE)),"") -> 2025-11-11 | D112: 105,393.83 ₺ | E112: 989.93 ₺ | F112: =IF(scheduled_no_payments=1,"",IF(Sched_Pay+Scheduled_Extra_Payments<Beg_Bal,Scheduled_Extra_Payments,IF(AND(Pay_Num<>"",Beg_Bal-Sched_Pay>0),Beg_Bal-Sched_Pay,IF(Pay_Num<>"",0,"")))) -> 0 | G112: =IF(scheduled_no_payments=1,"",IF(Sched_Pay+Extra_Pay<Beg_Bal,Sched_Pay+Extra_Pay,IF(Pay_Num<>"",Beg_Bal,""))) -> 989.93 ₺ | H112: 550.79 ₺ | I112: =IF(Pay_Num<>"",Beg_Bal*(Interest_Rate/VLOOKUP(Interval,LoanLookup[],5,FALSE)),"") -> 439.14 ₺ | J112: =IF(scheduled_no_payments=1,"",IF(AND(Pay_Num<>"",Sched_Pay+Extra_Pay<Beg_Bal),Beg_Bal-Princ,IF(Pay_Num<>"",0,""))) -> 104,843.03 ₺ | K112: =IF(scheduled_no_payments=1,"",SUM($I$13:$I112)) -> 53,836.39 ₺
B113: =IF(AND(Values_Entered,scheduled_no_payments<>1),B112+1,"") -> 101 | C113: =IF(Pay_Num<>"",DATE(YEAR(C112)+VLOOKUP(Interval,LoanLookup[],4,FALSE),MONTH(C112)+VLOOKUP(Interval,LoanLookup[],2,FALSE),DAY(C112)+VLOOKUP(Interval,LoanLookup[],3,FALSE)),"") -> 2025-12-11 | D113: 104,843.03 ₺ | E113: 989.93 ₺ | F113: =IF(scheduled_no_payments=1,"",IF(Sched_Pay+Scheduled_Extra_Payments<Beg_Bal,Scheduled_Extra_Payments,IF(AND(Pay_Num<>"",Beg_Bal-Sched_Pay>0),Beg_Bal-Sched_Pay,IF(Pay_Num<>"",0,"")))) -> 0 | G113: =IF(scheduled_no_payments=1,"",IF(Sched_Pay+Extra_Pay<Beg_Bal,Sched_Pay+Extra_Pay,IF(Pay_Num<>"",Beg_Bal,""))) -> 989.93 ₺ | H113: 553.09 ₺ | I113: =IF(Pay_Num<>"",Beg_Bal*(Interest_Rate/VLOOKUP(Interval,LoanLookup[],5,FALSE)),"") -> 436.85 ₺ | J113: =IF(scheduled_no_payments=1,"",IF(AND(Pay_Num<>"",Sched_Pay+Extra_Pay<Beg_Bal),Beg_Bal-Princ,IF(Pay_Num<>"",0,""))) -> 104,289.95 ₺ | K113: =IF(scheduled_no_payments=1,"",SUM($I$13:$I113)) -> 54,273.24 ₺
B114: =IF(AND(Values_Entered,scheduled_no_payments<>1),B113+1,"") -> 102 | C114: =IF(Pay_Num<>"",DATE(YEAR(C113)+VLOOKUP(Interval,LoanLookup[],4,FALSE),MONTH(C113)+VLOOKUP(Interval,LoanLookup[],2,FALSE),DAY(C113)+VLOOKUP(Interval,LoanLookup[],3,FALSE)),"") -> 2026-01-11 | D114: 104,289.95 ₺ | E114: 989.93 ₺ | F114: =IF(scheduled_no_payments=1,"",IF(Sched_Pay+Scheduled_Extra_Payments<Beg_Bal,Scheduled_Extra_Payments,IF(AND(Pay_Num<>"",Beg_Bal-Sched_Pay>0),Beg_Bal-Sched_Pay,IF(Pay_Num<>"",0,"")))) -> 0 | G114: =IF(scheduled_no_payments=1,"",IF(Sched_Pay+Extra_Pay<Beg_Bal,Sched_Pay+Extra_Pay,IF(Pay_Num<>"",Beg_Bal,""))) -> 989.93 ₺ | H114: 555.39 ₺ | I114: =IF(Pay_Num<>"",Beg_Bal*(Interest_Rate/VLOOKUP(Interval,LoanLookup[],5,FALSE)),"") -> 434.54 ₺ | J114: =IF(scheduled_no_payments=1,"",IF(AND(Pay_Num<>"",Sched_Pay+Extra_Pay<Beg_Bal),Beg_Bal-Princ,IF(Pay_Num<>"",0,""))) -> 103,734.55 ₺ | K114: =IF(scheduled_no_payments=1,"",SUM($I$13:$I114)) -> 54,707.78 ₺
B115: =IF(AND(Values_Entered,scheduled_no_payments<>1),B114+1,"") -> 103 | C115: =IF(Pay_Num<>"",DATE(YEAR(C114)+VLOOKUP(Interval,LoanLookup[],4,FALSE),MONTH(C114)+VLOOKUP(Interval,LoanLookup[],2,FALSE),DAY(C114)+VLOOKUP(Interval,LoanLookup[],3,FALSE)),"") -> 2026-02-11 | D115: 103,734.55 ₺ | E115: 989.93 ₺ | F115: =IF(scheduled_no_payments=1,"",IF(Sched_Pay+Scheduled_Extra_Payments<Beg_Bal,Scheduled_Extra_Payments,IF(AND(Pay_Num<>"",Beg_Bal-Sched_Pay>0),Beg_Bal-Sched_Pay,IF(Pay_Num<>"",0,"")))) -> 0 | G115: =IF(scheduled_no_payments=1,"",IF(Sched_Pay+Extra_Pay<Beg_Bal,Sched_Pay+Extra_Pay,IF(Pay_Num<>"",Beg_Bal,""))) -> 989.93 ₺ | H115: 557.71 ₺ | I115: =IF(Pay_Num<>"",Beg_Bal*(Interest_Rate/VLOOKUP(Interval,LoanLookup[],5,FALSE)),"") -> 432.23 ₺ | J115: =IF(scheduled_no_payments=1,"",IF(AND(Pay_Num<>"",Sched_Pay+Extra_Pay<Beg_Bal),Beg_Bal-Princ,IF(Pay_Num<>"",0,""))) -> 103,176.85 ₺ | K115: =IF(scheduled_no_payments=1,"",SUM($I$13:$I115)) -> 55,140.01 ₺
B116: =IF(AND(Values_Entered,scheduled_no_payments<>1),B115+1,"") -> 104 | C116: =IF(Pay_Num<>"",DATE(YEAR(C115)+VLOOKUP(Interval,LoanLookup[],4,FALSE),MONTH(C115)+VLOOKUP(Interval,LoanLookup[],2,FALSE),DAY(C115)+VLOOKUP(Interval,LoanLookup[],3,FALSE)),"") -> 2026-03-11 | D116: 103,176.85 ₺ | E116: 989.93 ₺ | F116: =IF(scheduled_no_payments=1,"",IF(Sched_Pay+Scheduled_Extra_Payments<Beg_Bal,Scheduled_Extra_Payments,IF(AND(Pay_Num<>"",Beg_Bal-Sched_Pay>0),Beg_Bal-Sched_Pay,IF(Pay_Num<>"",0,"")))) -> 0 | G116: =IF(scheduled_no_payments=1,"",IF(Sched_Pay+Extra_Pay<Beg_Bal,Sched_Pay+Extra_Pay,IF(Pay_Num<>"",Beg_Bal,""))) -> 989.93 ₺ | H116: 560.03 ₺ | I116: =IF(Pay_Num<>"",Beg_Bal*(Interest_Rate/VLOOKUP(Interval,LoanLookup[],5,FALSE)),"") -> 429.90 ₺ | J116: =IF(scheduled_no_payments=1,"",IF(AND(Pay_Num<>"",Sched_Pay+Extra_Pay<Beg_Bal),Beg_Bal-Princ,IF(Pay_Num<>"",0,""))) -> 102,616.82 ₺ | K116: =IF(scheduled_no_payments=1,"",SUM($I$13:$I116)) -> 55,569.91 ₺
B117: =IF(AND(Values_Entered,scheduled_no_payments<>1),B116+1,"") -> 105 | C117: =IF(Pay_Num<>"",DATE(YEAR(C116)+VLOOKUP(Interval,LoanLookup[],4,FALSE),MONTH(C116)+VLOOKUP(Interval,LoanLookup[],2,FALSE),DAY(C116)+VLOOKUP(Interval,LoanLookup[],3,FALSE)),"") -> 2026-04-11 | D117: 102,616.82 ₺ | E117: 989.93 ₺ | F117: =IF(scheduled_no_payments=1,"",IF(Sched_Pay+Scheduled_Extra_Payments<Beg_Bal,Scheduled_Extra_Payments,IF(AND(Pay_Num<>"",Beg_Bal-Sched_Pay>0),Beg_Bal-Sched_Pay,IF(Pay_Num<>"",0,"")))) -> 0 | G117: =IF(scheduled_no_payments=1,"",IF(Sched_Pay+Extra_Pay<Beg_Bal,Sched_Pay+Extra_Pay,IF(Pay_Num<>"",Beg_Bal,""))) -> 989.93 ₺ | H117: 562.36 ₺ | I117: =IF(Pay_Num<>"",Beg_Bal*(Interest_Rate/VLOOKUP(Interval,LoanLookup[],5,FALSE)),"") -> 427.57 ₺ | J117: =IF(scheduled_no_payments=1,"",IF(AND(Pay_Num<>"",Sched_Pay+Extra_Pay<Beg_Bal),Beg_Bal-Princ,IF(Pay_Num<>"",0,""))) -> 102,054.45 ₺ | K117: =IF(scheduled_no_payments=1,"",SUM($I$13:$I117)) -> 55,997.48 ₺
B118: =IF(AND(Values_Entered,scheduled_no_payments<>1),B117+1,"") -> 106 | C118: =IF(Pay_Num<>"",DATE(YEAR(C117)+VLOOKUP(Interval,LoanLookup[],4,FALSE),MONTH(C117)+VLOOKUP(Interval,LoanLookup[],2,FALSE),DAY(C117)+VLOOKUP(Interval,LoanLookup[],3,FALSE)),"") -> 2026-05-11 | D118: 102,054.45 ₺ | E118: 989.93 ₺ | F118: =IF(scheduled_no_payments=1,"",IF(Sched_Pay+Scheduled_Extra_Payments<Beg_Bal,Scheduled_Extra_Payments,IF(AND(Pay_Num<>"",Beg_Bal-Sched_Pay>0),Beg_Bal-Sched_Pay,IF(Pay_Num<>"",0,"")))) -> 0 | G118: =IF(scheduled_no_payments=1,"",IF(Sched_Pay+Extra_Pay<Beg_Bal,Sched_Pay+Extra_Pay,IF(Pay_Num<>"",Beg_Bal,""))) -> 989.93 ₺ | H118: 564.71 ₺ | I118: =IF(Pay_Num<>"",Beg_Bal*(Interest_Rate/VLOOKUP(Interval,LoanLookup[],5,FALSE)),"") -> 425.23 ₺ | J118: =IF(scheduled_no_payments=1,"",IF(AND(Pay_Num<>"",Sched_Pay+Extra_Pay<Beg_Bal),Beg_Bal-Princ,IF(Pay_Num<>"",0,""))) -> 101,489.75 ₺ | K118: =IF(scheduled_no_payments=1,"",SUM($I$13:$I118)) -> 56,422.71 ₺
B119: =IF(AND(Values_Entered,scheduled_no_payments<>1),B118+1,"") -> 107 | C119: =IF(Pay_Num<>"",DATE(YEAR(C118)+VLOOKUP(Interval,LoanLookup[],4,FALSE),MONTH(C118)+VLOOKUP(Interval,LoanLookup[],2,FALSE),DAY(C118)+VLOOKUP(Interval,LoanLookup[],3,FALSE)),"") -> 2026-06-11 | D119: 101,489.75 ₺ | E119: 989.93 ₺ | F119: =IF(scheduled_no_payments=1,"",IF(Sched_Pay+Scheduled_Extra_Payments<Beg_Bal,Scheduled_Extra_Payments,IF(AND(Pay_Num<>"",Beg_Bal-Sched_Pay>0),Beg_Bal-Sched_Pay,IF(Pay_Num<>"",0,"")))) -> 0 | G119: =IF(scheduled_no_payments=1,"",IF(Sched_Pay+Extra_Pay<Beg_Bal,Sched_Pay+Extra_Pay,IF(Pay_Num<>"",Beg_Bal,""))) -> 989.93 ₺ | H119: 567.06 ₺ | I119: =IF(Pay_Num<>"",Beg_Bal*(Interest_Rate/VLOOKUP(Interval,LoanLookup[],5,FALSE)),"") -> 422.87 ₺ | J119: =IF(scheduled_no_payments=1,"",IF(AND(Pay_Num<>"",Sched_Pay+Extra_Pay<Beg_Bal),Beg_Bal-Princ,IF(Pay_Num<>"",0,""))) -> 100,922.69 ₺ | K119: =IF(scheduled_no_payments=1,"",SUM($I$13:$I119)) -> 56,845.58 ₺
B120: =IF(AND(Values_Entered,scheduled_no_payments<>1),B119+1,"") -> 108 | C120: =IF(Pay_Num<>"",DATE(YEAR(C119)+VLOOKUP(Interval,LoanLookup[],4,FALSE),MONTH(C119)+VLOOKUP(Interval,LoanLookup[],2,FALSE),DAY(C119)+VLOOKUP(Interval,LoanLookup[],3,FALSE)),"") -> 2026-07-11 | D120: 100,922.69 ₺ | E120: 989.93 ₺ | F120: =IF(scheduled_no_payments=1,"",IF(Sched_Pay+Scheduled_Extra_Payments<Beg_Bal,Scheduled_Extra_Payments,IF(AND(Pay_Num<>"",Beg_Bal-Sched_Pay>0),Beg_Bal-Sched_Pay,IF(Pay_Num<>"",0,"")))) -> 0 | G120: =IF(scheduled_no_payments=1,"",IF(Sched_Pay+Extra_Pay<Beg_Bal,Sched_Pay+Extra_Pay,IF(Pay_Num<>"",Beg_Bal,""))) -> 989.93 ₺ | H120: 569.42 ₺ | I120: =IF(Pay_Num<>"",Beg_Bal*(Interest_Rate/VLOOKUP(Interval,LoanLookup[],5,FALSE)),"") -> 420.51 ₺ | J120: =IF(scheduled_no_payments=1,"",IF(AND(Pay_Num<>"",Sched_Pay+Extra_Pay<Beg_Bal),Beg_Bal-Princ,IF(Pay_Num<>"",0,""))) -> 100,353.27 ₺ | K120: =IF(scheduled_no_payments=1,"",SUM($I$13:$I120)) -> 57,266.10 ₺
B121: =IF(AND(Values_Entered,scheduled_no_payments<>1),B120+1,"") -> 109 | C121: =IF(Pay_Num<>"",DATE(YEAR(C120)+VLOOKUP(Interval,LoanLookup[],4,FALSE),MONTH(C120)+VLOOKUP(Interval,LoanLookup[],2,FALSE),DAY(C120)+VLOOKUP(Interval,LoanLookup[],3,FALSE)),"") -> 2026-08-11 | D121: 100,353.27 ₺ | E121: 989.93 ₺ | F121: =IF(scheduled_no_payments=1,"",IF(Sched_Pay+Scheduled_Extra_Payments<Beg_Bal,Scheduled_Extra_Payments,IF(AND(Pay_Num<>"",Beg_Bal-Sched_Pay>0),Beg_Bal-Sched_Pay,IF(Pay_Num<>"",0,"")))) -> 0 | G121: =IF(scheduled_no_payments=1,"",IF(Sched_Pay+Extra_Pay<Beg_Bal,Sched_Pay+Extra_Pay,IF(Pay_Num<>"",Beg_Bal,""))) -> 989.93 ₺ | H121: 571.80 ₺ | I121: =IF(Pay_Num<>"",Beg_Bal*(Interest_Rate/VLOOKUP(Interval,LoanLookup[],5,FALSE)),"") -> 418.14 ₺ | J121: =IF(scheduled_no_payments=1,"",IF(AND(Pay_Num<>"",Sched_Pay+Extra_Pay<Beg_Bal),Beg_Bal-Princ,IF(Pay_Num<>"",0,""))) -> 99,781.47 ₺ | K121: =IF(scheduled_no_payments=1,"",SUM($I$13:$I121)) -> 57,684.23 ₺
B122: =IF(AND(Values_Entered,scheduled_no_payments<>1),B121+1,"") -> 110 | C122: =IF(Pay_Num<>"",DATE(YEAR(C121)+VLOOKUP(Interval,LoanLookup[],4,FALSE),MONTH(C121)+VLOOKUP(Interval,LoanLookup[],2,FALSE),DAY(C121)+VLOOKUP(Interval,LoanLookup[],3,FALSE)),"") -> 2026-09-11 | D122: 99,781.47 ₺ | E122: 989.93 ₺ | F122: =IF(scheduled_no_payments=1,"",IF(Sched_Pay+Scheduled_Extra_Payments<Beg_Bal,Scheduled_Extra_Payments,IF(AND(Pay_Num<>"",Beg_Bal-Sched_Pay>0),Beg_Bal-Sched_Pay,IF(Pay_Num<>"",0,"")))) -> 0 | G122: =IF(scheduled_no_payments=1,"",IF(Sched_Pay+Extra_Pay<Beg_Bal,Sched_Pay+Extra_Pay,IF(Pay_Num<>"",Beg_Bal,""))) -> 989.93 ₺ | H122: 574.18 ₺ | I122: =IF(Pay_Num<>"",Beg_Bal*(Interest_Rate/VLOOKUP(Interval,LoanLookup[],5,FALSE)),"") -> 415.76 ₺ | J122: =IF(scheduled_no_payments=1,"",IF(AND(Pay_Num<>"",Sched_Pay+Extra_Pay<Beg_Bal),Beg_Bal-Princ,IF(Pay_Num<>"",0,""))) -> 99,207.29 ₺ | K122: =IF(scheduled_no_payments=1,"",SUM($I$13:$I122)) -> 58,099.99 ₺
B123: =IF(AND(Values_Entered,scheduled_no_payments<>1),B122+1,"") -> 111 | C123: =IF(Pay_Num<>"",DATE(YEAR(C122)+VLOOKUP(Interval,LoanLookup[],4,FALSE),MONTH(C122)+VLOOKUP(Interval,LoanLookup[],2,FALSE),DAY(C122)+VLOOKUP(Interval,LoanLookup[],3,FALSE)),"") -> 2026-10-11 | D123: 99,207.29 ₺ | E123: 989.93 ₺ | F123: =IF(scheduled_no_payments=1,"",IF(Sched_Pay+Scheduled_Extra_Payments<Beg_Bal,Scheduled_Extra_Payments,IF(AND(Pay_Num<>"",Beg_Bal-Sched_Pay>0),Beg_Bal-Sched_Pay,IF(Pay_Num<>"",0,"")))) -> 0 | G123: =IF(scheduled_no_payments=1,"",IF(Sched_Pay+Extra_Pay<Beg_Bal,Sched_Pay+Extra_Pay,IF(Pay_Num<>"",Beg_Bal,""))) -> 989.93 ₺ | H123: 576.57 ₺ | I123: =IF(Pay_Num<>"",Beg_Bal*(Interest_Rate/VLOOKUP(Interval,LoanLookup[],5,FALSE)),"") -> 413.36 ₺ | J123: =IF(scheduled_no_payments=1,"",IF(AND(Pay_Num<>"",Sched_Pay+Extra_Pay<Beg_Bal),Beg_Bal-Princ,IF(Pay_Num<>"",0,""))) -> 98,630.72 ₺ | K123: =IF(scheduled_no_payments=1,"",SUM($I$13:$I123)) -> 58,513.35 ₺
B124: =IF(AND(Values_Entered,scheduled_no_payments<>1),B123+1,"") -> 112 | C124: =IF(Pay_Num<>"",DATE(YEAR(C123)+VLOOKUP(Interval,LoanLookup[],4,FALSE),MONTH(C123)+VLOOKUP(Interval,LoanLookup[],2,FALSE),DAY(C123)+VLOOKUP(Interval,LoanLookup[],3,FALSE)),"") -> 2026-11-11 | D124: 98,630.72 ₺ | E124: 989.93 ₺ | F124: =IF(scheduled_no_payments=1,"",IF(Sched_Pay+Scheduled_Extra_Payments<Beg_Bal,Scheduled_Extra_Payments,IF(AND(Pay_Num<>"",Beg_Bal-Sched_Pay>0),Beg_Bal-Sched_Pay,IF(Pay_Num<>"",0,"")))) -> 0 | G124: =IF(scheduled_no_payments=1,"",IF(Sched_Pay+Extra_Pay<Beg_Bal,Sched_Pay+Extra_Pay,IF(Pay_Num<>"",Beg_Bal,""))) -> 989.93 ₺ | H124: 578.97 ₺ | I124: =IF(Pay_Num<>"",Beg_Bal*(Interest_Rate/VLOOKUP(Interval,LoanLookup[],5,FALSE)),"") -> 410.96 ₺ | J124: =IF(scheduled_no_payments=1,"",IF(AND(Pay_Num<>"",Sched_Pay+Extra_Pay<Beg_Bal),Beg_Bal-Princ,IF(Pay_Num<>"",0,""))) -> 98,051.75 ₺ | K124: =IF(scheduled_no_payments=1,"",SUM($I$13:$I124)) -> 58,924.32 ₺
B125: =IF(AND(Values_Entered,scheduled_no_payments<>1),B124+1,"") -> 113 | C125: =IF(Pay_Num<>"",DATE(YEAR(C124)+VLOOKUP(Interval,LoanLookup[],4,FALSE),MONTH(C124)+VLOOKUP(Interval,LoanLookup[],2,FALSE),DAY(C124)+VLOOKUP(Interval,LoanLookup[],3,FALSE)),"") -> 2026-12-11 | D125: 98,051.75 ₺ | E125: 989.93 ₺ | F125: =IF(scheduled_no_payments=1,"",IF(Sched_Pay+Scheduled_Extra_Payments<Beg_Bal,Scheduled_Extra_Payments,IF(AND(Pay_Num<>"",Beg_Bal-Sched_Pay>0),Beg_Bal-Sched_Pay,IF(Pay_Num<>"",0,"")))) -> 0 | G125: =IF(scheduled_no_payments=1,"",IF(Sched_Pay+Extra_Pay<Beg_Bal,Sched_Pay+Extra_Pay,IF(Pay_Num<>"",Beg_Bal,""))) -> 989.93 ₺ | H125: 581.38 ₺ | I125: =IF(Pay_Num<>"",Beg_Bal*(Interest_Rate/VLOOKUP(Interval,LoanLookup[],5,FALSE)),"") -> 408.55 ₺ | J125: =IF(scheduled_no_payments=1,"",IF(AND(Pay_Num<>"",Sched_Pay+Extra_Pay<Beg_Bal),Beg_Bal-Princ,IF(Pay_Num<>"",0,""))) -> 97,470.37 ₺ | K125: =IF(scheduled_no_payments=1,"",SUM($I$13:$I125)) -> 59,332.86 ₺
B126: =IF(AND(Values_Entered,scheduled_no_payments<>1),B125+1,"") -> 114 | C126: =IF(Pay_Num<>"",DATE(YEAR(C125)+VLOOKUP(Interval,LoanLookup[],4,FALSE),MONTH(C125)+VLOOKUP(Interval,LoanLookup[],2,FALSE),DAY(C125)+VLOOKUP(Interval,LoanLookup[],3,FALSE)),"") -> 2027-01-11 | D126: 97,470.37 ₺ | E126: 989.93 ₺ | F126: =IF(scheduled_no_payments=1,"",IF(Sched_Pay+Scheduled_Extra_Payments<Beg_Bal,Scheduled_Extra_Payments,IF(AND(Pay_Num<>"",Beg_Bal-Sched_Pay>0),Beg_Bal-Sched_Pay,IF(Pay_Num<>"",0,"")))) -> 0 | G126: =IF(scheduled_no_payments=1,"",IF(Sched_Pay+Extra_Pay<Beg_Bal,Sched_Pay+Extra_Pay,IF(Pay_Num<>"",Beg_Bal,""))) -> 989.93 ₺ | H126: 583.81 ₺ | I126: =IF(Pay_Num<>"",Beg_Bal*(Interest_Rate/VLOOKUP(Interval,LoanLookup[],5,FALSE)),"") -> 406.13 ₺ | J126: =IF(scheduled_no_payments=1,"",IF(AND(Pay_Num<>"",Sched_Pay+Extra_Pay<Beg_Bal),Beg_Bal-Princ,IF(Pay_Num<>"",0,""))) -> 96,886.56 ₺ | K126: =IF(scheduled_no_payments=1,"",SUM($I$13:$I126)) -> 59,738.99 ₺
B127: =IF(AND(Values_Entered,scheduled_no_payments<>1),B126+1,"") -> 115 | C127: =IF(Pay_Num<>"",DATE(YEAR(C126)+VLOOKUP(Interval,LoanLookup[],4,FALSE),MONTH(C126)+VLOOKUP(Interval,LoanLookup[],2,FALSE),DAY(C126)+VLOOKUP(Interval,LoanLookup[],3,FALSE)),"") -> 2027-02-11 | D127: 96,886.56 ₺ | E127: 989.93 ₺ | F127: =IF(scheduled_no_payments=1,"",IF(Sched_Pay+Scheduled_Extra_Payments<Beg_Bal,Scheduled_Extra_Payments,IF(AND(Pay_Num<>"",Beg_Bal-Sched_Pay>0),Beg_Bal-Sched_Pay,IF(Pay_Num<>"",0,"")))) -> 0 | G127: =IF(scheduled_no_payments=1,"",IF(Sched_Pay+Extra_Pay<Beg_Bal,Sched_Pay+Extra_Pay,IF(Pay_Num<>"",Beg_Bal,""))) -> 989.93 ₺ | H127: 586.24 ₺ | I127: =IF(Pay_Num<>"",Beg_Bal*(Interest_Rate/VLOOKUP(Interval,LoanLookup[],5,FALSE)),"") -> 403.69 ₺ | J127: =IF(scheduled_no_payments=1,"",IF(AND(Pay_Num<>"",Sched_Pay+Extra_Pay<Beg_Bal),Beg_Bal-Princ,IF(Pay_Num<>"",0,""))) -> 96,300.32 ₺ | K127: =IF(scheduled_no_payments=1,"",SUM($I$13:$I127)) -> 60,142.68 ₺
B128: =IF(AND(Values_Entered,scheduled_no_payments<>1),B127+1,"") -> 116 | C128: =IF(Pay_Num<>"",DATE(YEAR(C127)+VLOOKUP(Interval,LoanLookup[],4,FALSE),MONTH(C127)+VLOOKUP(Interval,LoanLookup[],2,FALSE),DAY(C127)+VLOOKUP(Interval,LoanLookup[],3,FALSE)),"") -> 2027-03-11 | D128: 96,300.32 ₺ | E128: 989.93 ₺ | F128: =IF(scheduled_no_payments=1,"",IF(Sched_Pay+Scheduled_Extra_Payments<Beg_Bal,Scheduled_Extra_Payments,IF(AND(Pay_Num<>"",Beg_Bal-Sched_Pay>0),Beg_Bal-Sched_Pay,IF(Pay_Num<>"",0,"")))) -> 0 | G128: =IF(scheduled_no_payments=1,"",IF(Sched_Pay+Extra_Pay<Beg_Bal,Sched_Pay+Extra_Pay,IF(Pay_Num<>"",Beg_Bal,""))) -> 989.93 ₺ | H128: 588.68 ₺ | I128: =IF(Pay_Num<>"",Beg_Bal*(Interest_Rate/VLOOKUP(Interval,LoanLookup[],5,FALSE)),"") -> 401.25 ₺ | J128: =IF(scheduled_no_payments=1,"",IF(AND(Pay_Num<>"",Sched_Pay+Extra_Pay<Beg_Bal),Beg_Bal-Princ,IF(Pay_Num<>"",0,""))) -> 95,711.64 ₺ | K128: =IF(scheduled_no_payments=1,"",SUM($I$13:$I128)) -> 60,543.94 ₺
B129: =IF(AND(Values_Entered,scheduled_no_payments<>1),B128+1,"") -> 117 | C129: =IF(Pay_Num<>"",DATE(YEAR(C128)+VLOOKUP(Interval,LoanLookup[],4,FALSE),MONTH(C128)+VLOOKUP(Interval,LoanLookup[],2,FALSE),DAY(C128)+VLOOKUP(Interval,LoanLookup[],3,FALSE)),"") -> 2027-04-11 | D129: 95,711.64 ₺ | E129: 989.93 ₺ | F129: =IF(scheduled_no_payments=1,"",IF(Sched_Pay+Scheduled_Extra_Payments<Beg_Bal,Scheduled_Extra_Payments,IF(AND(Pay_Num<>"",Beg_Bal-Sched_Pay>0),Beg_Bal-Sched_Pay,IF(Pay_Num<>"",0,"")))) -> 0 | G129: =IF(scheduled_no_payments=1,"",IF(Sched_Pay+Extra_Pay<Beg_Bal,Sched_Pay+Extra_Pay,IF(Pay_Num<>"",Beg_Bal,""))) -> 989.93 ₺ | H129: 591.14 ₺ | I129: =IF(Pay_Num<>"",Beg_Bal*(Interest_Rate/VLOOKUP(Interval,LoanLookup[],5,FALSE)),"") -> 398.80 ₺ | J129: =IF(scheduled_no_payments=1,"",IF(AND(Pay_Num<>"",Sched_Pay+Extra_Pay<Beg_Bal),Beg_Bal-Princ,IF(Pay_Num<>"",0,""))) -> 95,120.50 ₺ | K129: =IF(scheduled_no_payments=1,"",SUM($I$13:$I129)) -> 60,942.73 ₺
B130: =IF(AND(Values_Entered,scheduled_no_payments<>1),B129+1,"") -> 118 | C130: =IF(Pay_Num<>"",DATE(YEAR(C129)+VLOOKUP(Interval,LoanLookup[],4,FALSE),MONTH(C129)+VLOOKUP(Interval,LoanLookup[],2,FALSE),DAY(C129)+VLOOKUP(Interval,LoanLookup[],3,FALSE)),"") -> 2027-05-11 | D130: 95,120.50 ₺ | E130: 989.93 ₺ | F130: =IF(scheduled_no_payments=1,"",IF(Sched_Pay+Scheduled_Extra_Payments<Beg_Bal,Scheduled_Extra_Payments,IF(AND(Pay_Num<>"",Beg_Bal-Sched_Pay>0),Beg_Bal-Sched_Pay,IF(Pay_Num<>"",0,"")))) -> 0 | G130: =IF(scheduled_no_payments=1,"",IF(Sched_Pay+Extra_Pay<Beg_Bal,Sched_Pay+Extra_Pay,IF(Pay_Num<>"",Beg_Bal,""))) -> 989.93 ₺ | H130: 593.60 ₺ | I130: =IF(Pay_Num<>"",Beg_Bal*(Interest_Rate/VLOOKUP(Interval,LoanLookup[],5,FALSE)),"") -> 396.34 ₺ | J130: =IF(scheduled_no_payments=1,"",IF(AND(Pay_Num<>"",Sched_Pay+Extra_Pay<Beg_Bal),Beg_Bal-Princ,IF(Pay_Num<>"",0,""))) -> 94,526.90 ₺ | K130: =IF(scheduled_no_payments=1,"",SUM($I$13:$I130)) -> 61,339.07 ₺
B131: =IF(AND(Values_Entered,scheduled_no_payments<>1),B130+1,"") -> 119 | C131: =IF(Pay_Num<>"",DATE(YEAR(C130)+VLOOKUP(Interval,LoanLookup[],4,FALSE),MONTH(C130)+VLOOKUP(Interval,LoanLookup[],2,FALSE),DAY(C130)+VLOOKUP(Interval,LoanLookup[],3,FALSE)),"") -> 2027-06-11 | D131: 94,526.90 ₺ | E131: 989.93 ₺ | F131: =IF(scheduled_no_payments=1,"",IF(Sched_Pay+Scheduled_Extra_Payments<Beg_Bal,Scheduled_Extra_Payments,IF(AND(Pay_Num<>"",Beg_Bal-Sched_Pay>0),Beg_Bal-Sched_Pay,IF(Pay_Num<>"",0,"")))) -> 0 | G131: =IF(scheduled_no_payments=1,"",IF(Sched_Pay+Extra_Pay<Beg_Bal,Sched_Pay+Extra_Pay,IF(Pay_Num<>"",Beg_Bal,""))) -> 989.93 ₺ | H131: 596.07 ₺ | I131: =IF(Pay_Num<>"",Beg_Bal*(Interest_Rate/VLOOKUP(Interval,LoanLookup[],5,FALSE)),"") -> 393.86 ₺ | J131: =IF(scheduled_no_payments=1,"",IF(AND(Pay_Num<>"",Sched_Pay+Extra_Pay<Beg_Bal),Beg_Bal-Princ,IF(Pay_Num<>"",0,""))) -> 93,930.83 ₺ | K131: =IF(scheduled_no_payments=1,"",SUM($I$13:$I131)) -> 61,732.93 ₺
B132: =IF(AND(Values_Entered,scheduled_no_payments<>1),B131+1,"") -> 120 | C132: =IF(Pay_Num<>"",DATE(YEAR(C131)+VLOOKUP(Interval,LoanLookup[],4,FALSE),MONTH(C131)+VLOOKUP(Interval,LoanLookup[],2,FALSE),DAY(C131)+VLOOKUP(Interval,LoanLookup[],3,FALSE)),"") -> 2027-07-11 | D132: 93,930.83 ₺ | E132: 989.93 ₺ | F132: =IF(scheduled_no_payments=1,"",IF(Sched_Pay+Scheduled_Extra_Payments<Beg_Bal,Scheduled_Extra_Payments,IF(AND(Pay_Num<>"",Beg_Bal-Sched_Pay>0),Beg_Bal-Sched_Pay,IF(Pay_Num<>"",0,"")))) -> 0 | G132: =IF(scheduled_no_payments=1,"",IF(Sched_Pay+Extra_Pay<Beg_Bal,Sched_Pay+Extra_Pay,IF(Pay_Num<>"",Beg_Bal,""))) -> 989.93 ₺ | H132: 598.56 ₺ | I132: =IF(Pay_Num<>"",Beg_Bal*(Interest_Rate/VLOOKUP(Interval,LoanLookup[],5,FALSE)),"") -> 391.38 ₺ | J132: =IF(scheduled_no_payments=1,"",IF(AND(Pay_Num<>"",Sched_Pay+Extra_Pay<Beg_Bal),Beg_Bal-Princ,IF(Pay_Num<>"",0,""))) -> 93,332.28 ₺ | K132: =IF(scheduled_no_payments=1,"",SUM($I$13:$I132)) -> 62,124.31 ₺
B133: =IF(AND(Values_Entered,scheduled_no_payments<>1),B132+1,"") -> 121 | C133: =IF(Pay_Num<>"",DATE(YEAR(C132)+VLOOKUP(Interval,LoanLookup[],4,FALSE),MONTH(C132)+VLOOKUP(Interval,LoanLookup[],2,FALSE),DAY(C132)+VLOOKUP(Interval,LoanLookup[],3,FALSE)),"") -> 2027-08-11 | D133: 93,332.28 ₺ | E133: 989.93 ₺ | F133: =IF(scheduled_no_payments=1,"",IF(Sched_Pay+Scheduled_Extra_Payments<Beg_Bal,Scheduled_Extra_Payments,IF(AND(Pay_Num<>"",Beg_Bal-Sched_Pay>0),Beg_Bal-Sched_Pay,IF(Pay_Num<>"",0,"")))) -> 0 | G133: =IF(scheduled_no_payments=1,"",IF(Sched_Pay+Extra_Pay<Beg_Bal,Sched_Pay+Extra_Pay,IF(Pay_Num<>"",Beg_Bal,""))) -> 989.93 ₺ | H133: 601.05 ₺ | I133: =IF(Pay_Num<>"",Beg_Bal*(Interest_Rate/VLOOKUP(Interval,LoanLookup[],5,FALSE)),"") -> 388.88 ₺ | J133: =IF(scheduled_no_payments=1,"",IF(AND(Pay_Num<>"",Sched_Pay+Extra_Pay<Beg_Bal),Beg_Bal-Princ,IF(Pay_Num<>"",0,""))) -> 92,731.23 ₺ | K133: =IF(scheduled_no_payments=1,"",SUM($I$13:$I133)) -> 62,513.19 ₺
B134: =IF(AND(Values_Entered,scheduled_no_payments<>1),B133+1,"") -> 122 | C134: =IF(Pay_Num<>"",DATE(YEAR(C133)+VLOOKUP(Interval,LoanLookup[],4,FALSE),MONTH(C133)+VLOOKUP(Interval,LoanLookup[],2,FALSE),DAY(C133)+VLOOKUP(Interval,LoanLookup[],3,FALSE)),"") -> 2027-09-11 | D134: 92,731.23 ₺ | E134: 989.93 ₺ | F134: =IF(scheduled_no_payments=1,"",IF(Sched_Pay+Scheduled_Extra_Payments<Beg_Bal,Scheduled_Extra_Payments,IF(AND(Pay_Num<>"",Beg_Bal-Sched_Pay>0),Beg_Bal-Sched_Pay,IF(Pay_Num<>"",0,"")))) -> 0 | G134: =IF(scheduled_no_payments=1,"",IF(Sched_Pay+Extra_Pay<Beg_Bal,Sched_Pay+Extra_Pay,IF(Pay_Num<>"",Beg_Bal,""))) -> 989.93 ₺ | H134: 603.55 ₺ | I134: =IF(Pay_Num<>"",Beg_Bal*(Interest_Rate/VLOOKUP(Interval,LoanLookup[],5,FALSE)),"") -> 386.38 ₺ | J134: =IF(scheduled_no_payments=1,"",IF(AND(Pay_Num<>"",Sched_Pay+Extra_Pay<Beg_Bal),Beg_Bal-Princ,IF(Pay_Num<>"",0,""))) -> 92,127.67 ₺ | K134: =IF(scheduled_no_payments=1,"",SUM($I$13:$I134)) -> 62,899.58 ₺
B135: =IF(AND(Values_Entered,scheduled_no_payments<>1),B134+1,"") -> 123 | C135: =IF(Pay_Num<>"",DATE(YEAR(C134)+VLOOKUP(Interval,LoanLookup[],4,FALSE),MONTH(C134)+VLOOKUP(Interval,LoanLookup[],2,FALSE),DAY(C134)+VLOOKUP(Interval,LoanLookup[],3,FALSE)),"") -> 2027-10-11 | D135: 92,127.67 ₺ | E135: 989.93 ₺ | F135: =IF(scheduled_no_payments=1,"",IF(Sched_Pay+Scheduled_Extra_Payments<Beg_Bal,Scheduled_Extra_Payments,IF(AND(Pay_Num<>"",Beg_Bal-Sched_Pay>0),Beg_Bal-Sched_Pay,IF(Pay_Num<>"",0,"")))) -> 0 | G135: =IF(scheduled_no_payments=1,"",IF(Sched_Pay+Extra_Pay<Beg_Bal,Sched_Pay+Extra_Pay,IF(Pay_Num<>"",Beg_Bal,""))) -> 989.93 ₺ | H135: 606.07 ₺ | I135: =IF(Pay_Num<>"",Beg_Bal*(Interest_Rate/VLOOKUP(Interval,LoanLookup[],5,FALSE)),"") -> 383.87 ₺ | J135: =IF(scheduled_no_payments=1,"",IF(AND(Pay_Num<>"",Sched_Pay+Extra_Pay<Beg_Bal),Beg_Bal-Princ,IF(Pay_Num<>"",0,""))) -> 91,521.61 ₺ | K135: =IF(scheduled_no_payments=1,"",SUM($I$13:$I135)) -> 63,283.44 ₺
B136: =IF(AND(Values_Entered,scheduled_no_payments<>1),B135+1,"") -> 124 | C136: =IF(Pay_Num<>"",DATE(YEAR(C135)+VLOOKUP(Interval,LoanLookup[],4,FALSE),MONTH(C135)+VLOOKUP(Interval,LoanLookup[],2,FALSE),DAY(C135)+VLOOKUP(Interval,LoanLookup[],3,FALSE)),"") -> 2027-11-11 | D136: 91,521.61 ₺ | E136: 989.93 ₺ | F136: =IF(scheduled_no_payments=1,"",IF(Sched_Pay+Scheduled_Extra_Payments<Beg_Bal,Scheduled_Extra_Payments,IF(AND(Pay_Num<>"",Beg_Bal-Sched_Pay>0),Beg_Bal-Sched_Pay,IF(Pay_Num<>"",0,"")))) -> 0 | G136: =IF(scheduled_no_payments=1,"",IF(Sched_Pay+Extra_Pay<Beg_Bal,Sched_Pay+Extra_Pay,IF(Pay_Num<>"",Beg_Bal,""))) -> 989.93 ₺ | H136: 608.59 ₺ | I136: =IF(Pay_Num<>"",Beg_Bal*(Interest_Rate/VLOOKUP(Interval,LoanLookup[],5,FALSE)),"") -> 381.34 ₺ | J136: =IF(scheduled_no_payments=1,"",IF(AND(Pay_Num<>"",Sched_Pay+Extra_Pay<Beg_Bal),Beg_Bal-Princ,IF(Pay_Num<>"",0,""))) -> 90,913.01 ₺ | K136: =IF(scheduled_no_payments=1,"",SUM($I$13:$I136)) -> 63,664.78 ₺
B137: =IF(AND(Values_Entered,scheduled_no_payments<>1),B136+1,"") -> 125 | C137: =IF(Pay_Num<>"",DATE(YEAR(C136)+VLOOKUP(Interval,LoanLookup[],4,FALSE),MONTH(C136)+VLOOKUP(Interval,LoanLookup[],2,FALSE),DAY(C136)+VLOOKUP(Interval,LoanLookup[],3,FALSE)),"") -> 2027-12-11 | D137: 90,913.01 ₺ | E137: 989.93 ₺ | F137: =IF(scheduled_no_payments=1,"",IF(Sched_Pay+Scheduled_Extra_Payments<Beg_Bal,Scheduled_Extra_Payments,IF(AND(Pay_Num<>"",Beg_Bal-Sched_Pay>0),Beg_Bal-Sched_Pay,IF(Pay_Num<>"",0,"")))) -> 0 | G137: =IF(scheduled_no_payments=1,"",IF(Sched_Pay+Extra_Pay<Beg_Bal,Sched_Pay+Extra_Pay,IF(Pay_Num<>"",Beg_Bal,""))) -> 989.93 ₺ | H137: 611.13 ₺ | I137: =IF(Pay_Num<>"",Beg_Bal*(Interest_Rate/VLOOKUP(Interval,LoanLookup[],5,FALSE)),"") -> 378.80 ₺ | J137: =IF(scheduled_no_payments=1,"",IF(AND(Pay_Num<>"",Sched_Pay+Extra_Pay<Beg_Bal),Beg_Bal-Princ,IF(Pay_Num<>"",0,""))) -> 90,301.88 ₺ | K137: =IF(scheduled_no_payments=1,"",SUM($I$13:$I137)) -> 64,043.58 ₺
B138: =IF(AND(Values_Entered,scheduled_no_payments<>1),B137+1,"") -> 126 | C138: =IF(Pay_Num<>"",DATE(YEAR(C137)+VLOOKUP(Interval,LoanLookup[],4,FALSE),MONTH(C137)+VLOOKUP(Interval,LoanLookup[],2,FALSE),DAY(C137)+VLOOKUP(Interval,LoanLookup[],3,FALSE)),"") -> 2028-01-11 | D138: 90,301.88 ₺ | E138: 989.93 ₺ | F138: =IF(scheduled_no_payments=1,"",IF(Sched_Pay+Scheduled_Extra_Payments<Beg_Bal,Scheduled_Extra_Payments,IF(AND(Pay_Num<>"",Beg_Bal-Sched_Pay>0),Beg_Bal-Sched_Pay,IF(Pay_Num<>"",0,"")))) -> 0 | G138: =IF(scheduled_no_payments=1,"",IF(Sched_Pay+Extra_Pay<Beg_Bal,Sched_Pay+Extra_Pay,IF(Pay_Num<>"",Beg_Bal,""))) -> 989.93 ₺ | H138: 613.68 ₺ | I138: =IF(Pay_Num<>"",Beg_Bal*(Interest_Rate/VLOOKUP(Interval,LoanLookup[],5,FALSE)),"") -> 376.26 ₺ | J138: =IF(scheduled_no_payments=1,"",IF(AND(Pay_Num<>"",Sched_Pay+Extra_Pay<Beg_Bal),Beg_Bal-Princ,IF(Pay_Num<>"",0,""))) -> 89,688.21 ₺ | K138: =IF(scheduled_no_payments=1,"",SUM($I$13:$I138)) -> 64,419.84 ₺
B139: =IF(AND(Values_Entered,scheduled_no_payments<>1),B138+1,"") -> 127 | C139: =IF(Pay_Num<>"",DATE(YEAR(C138)+VLOOKUP(Interval,LoanLookup[],4,FALSE),MONTH(C138)+VLOOKUP(Interval,LoanLookup[],2,FALSE),DAY(C138)+VLOOKUP(Interval,LoanLookup[],3,FALSE)),"") -> 2028-02-11 | D139: 89,688.21 ₺ | E139: 989.93 ₺ | F139: =IF(scheduled_no_payments=1,"",IF(Sched_Pay+Scheduled_Extra_Payments<Beg_Bal,Scheduled_Extra_Payments,IF(AND(Pay_Num<>"",Beg_Bal-Sched_Pay>0),Beg_Bal-Sched_Pay,IF(Pay_Num<>"",0,"")))) -> 0 | G139: =IF(scheduled_no_payments=1,"",IF(Sched_Pay+Extra_Pay<Beg_Bal,Sched_Pay+Extra_Pay,IF(Pay_Num<>"",Beg_Bal,""))) -> 989.93 ₺ | H139: 616.23 ₺ | I139: =IF(Pay_Num<>"",Beg_Bal*(Interest_Rate/VLOOKUP(Interval,LoanLookup[],5,FALSE)),"") -> 373.70 ₺ | J139: =IF(scheduled_no_payments=1,"",IF(AND(Pay_Num<>"",Sched_Pay+Extra_Pay<Beg_Bal),Beg_Bal-Princ,IF(Pay_Num<>"",0,""))) -> 89,071.97 ₺ | K139: =IF(scheduled_no_payments=1,"",SUM($I$13:$I139)) -> 64,793.54 ₺
B140: =IF(AND(Values_Entered,scheduled_no_payments<>1),B139+1,"") -> 128 | C140: =IF(Pay_Num<>"",DATE(YEAR(C139)+VLOOKUP(Interval,LoanLookup[],4,FALSE),MONTH(C139)+VLOOKUP(Interval,LoanLookup[],2,FALSE),DAY(C139)+VLOOKUP(Interval,LoanLookup[],3,FALSE)),"") -> 2028-03-11 | D140: 89,071.97 ₺ | E140: 989.93 ₺ | F140: =IF(scheduled_no_payments=1,"",IF(Sched_Pay+Scheduled_Extra_Payments<Beg_Bal,Scheduled_Extra_Payments,IF(AND(Pay_Num<>"",Beg_Bal-Sched_Pay>0),Beg_Bal-Sched_Pay,IF(Pay_Num<>"",0,"")))) -> 0 | G140: =IF(scheduled_no_payments=1,"",IF(Sched_Pay+Extra_Pay<Beg_Bal,Sched_Pay+Extra_Pay,IF(Pay_Num<>"",Beg_Bal,""))) -> 989.93 ₺ | H140: 618.80 ₺ | I140: =IF(Pay_Num<>"",Beg_Bal*(Interest_Rate/VLOOKUP(Interval,LoanLookup[],5,FALSE)),"") -> 371.13 ₺ | J140: =IF(scheduled_no_payments=1,"",IF(AND(Pay_Num<>"",Sched_Pay+Extra_Pay<Beg_Bal),Beg_Bal-Princ,IF(Pay_Num<>"",0,""))) -> 88,453.17 ₺ | K140: =IF(scheduled_no_payments=1,"",SUM($I$13:$I140)) -> 65,164.68 ₺
B141: =IF(AND(Values_Entered,scheduled_no_payments<>1),B140+1,"") -> 129 | C141: =IF(Pay_Num<>"",DATE(YEAR(C140)+VLOOKUP(Interval,LoanLookup[],4,FALSE),MONTH(C140)+VLOOKUP(Interval,LoanLookup[],2,FALSE),DAY(C140)+VLOOKUP(Interval,LoanLookup[],3,FALSE)),"") -> 2028-04-11 | D141: 88,453.17 ₺ | E141: 989.93 ₺ | F141: =IF(scheduled_no_payments=1,"",IF(Sched_Pay+Scheduled_Extra_Payments<Beg_Bal,Scheduled_Extra_Payments,IF(AND(Pay_Num<>"",Beg_Bal-Sched_Pay>0),Beg_Bal-Sched_Pay,IF(Pay_Num<>"",0,"")))) -> 0 | G141: =IF(scheduled_no_payments=1,"",IF(Sched_Pay+Extra_Pay<Beg_Bal,Sched_Pay+Extra_Pay,IF(Pay_Num<>"",Beg_Bal,""))) -> 989.93 ₺ | H141: 621.38 ₺ | I141: =IF(Pay_Num<>"",Beg_Bal*(Interest_Rate/VLOOKUP(Interval,LoanLookup[],5,FALSE)),"") -> 368.55 ₺ | J141: =IF(scheduled_no_payments=1,"",IF(AND(Pay_Num<>"",Sched_Pay+Extra_Pay<Beg_Bal),Beg_Bal-Princ,IF(Pay_Num<>"",0,""))) -> 87,831.80 ₺ | K141: =IF(scheduled_no_payments=1,"",SUM($I$13:$I141)) -> 65,533.23 ₺
B142: =IF(AND(Values_Entered,scheduled_no_payments<>1),B141+1,"") -> 130 | C142: =IF(Pay_Num<>"",DATE(YEAR(C141)+VLOOKUP(Interval,LoanLookup[],4,FALSE),MONTH(C141)+VLOOKUP(Interval,LoanLookup[],2,FALSE),DAY(C141)+VLOOKUP(Interval,LoanLookup[],3,FALSE)),"") -> 2028-05-11 | D142: =IF(Pay_Num<>"",J141,"") -> 87,831.80 ₺ | E142: 989.93 ₺ | F142: =IF(scheduled_no_payments=1,"",IF(Sched_Pay+Scheduled_Extra_Payments<Beg_Bal,Scheduled_Extra_Payments,IF(AND(Pay_Num<>"",Beg_Bal-Sched_Pay>0),Beg_Bal-Sched_Pay,IF(Pay_Num<>"",0,"")))) -> 0 | G142: =IF(scheduled_no_payments=1,"",IF(Sched_Pay+Extra_Pay<Beg_Bal,Sched_Pay+Extra_Pay,IF(Pay_Num<>"",Beg_Bal,""))) -> 989.93 ₺ | H142: =IF(Pay_Num<>"",Total_Pay-Int,"") -> 623.97 ₺ | I142: =IF(Pay_Num<>"",Beg_Bal*(Interest_Rate/VLOOKUP(Interval,LoanLookup[],5,FALSE)),"") -> 365.97 ₺ | J142: =IF(scheduled_no_payments=1,"",IF(AND(Pay_Num<>"",Sched_Pay+Extra_Pay<Beg_Bal),Beg_Bal-Princ,IF(Pay_Num<>"",0,""))) -> 87,207.83 ₺ | K142: =IF(scheduled_no_payments=1,"",SUM($I$13:$I142)) -> 65,899.20 ₺
B143: =IF(AND(Values_Entered,scheduled_no_payments<>1),B142+1,"") -> 131 | C143: =IF(Pay_Num<>"",DATE(YEAR(C142)+VLOOKUP(Interval,LoanLookup[],4,FALSE),MONTH(C142)+VLOOKUP(Interval,LoanLookup[],2,FALSE),DAY(C142)+VLOOKUP(Interval,LoanLookup[],3,FALSE)),"") -> 2028-06-11 | D143: 87,207.83 ₺ | E143: =IF(Pay_Num<>"",Scheduled_Monthly_Payment,"") -> 989.93 ₺ | F143: =IF(scheduled_no_payments=1,"",IF(Sched_Pay+Scheduled_Extra_Payments<Beg_Bal,Scheduled_Extra_Payments,IF(AND(Pay_Num<>"",Beg_Bal-Sched_Pay>0),Beg_Bal-Sched_Pay,IF(Pay_Num<>"",0,"")))) -> 0 | G143: =IF(scheduled_no_payments=1,"",IF(Sched_Pay+Extra_Pay<Beg_Bal,Sched_Pay+Extra_Pay,IF(Pay_Num<>"",Beg_Bal,""))) -> 989.93 ₺ | H143: 626.57 ₺ | I143: =IF(Pay_Num<>"",Beg_Bal*(Interest_Rate/VLOOKUP(Interval,LoanLookup[],5,FALSE)),"") -> 363.37 ₺ | J143: =IF(scheduled_no_payments=1,"",IF(AND(Pay_Num<>"",Sched_Pay+Extra_Pay<Beg_Bal),Beg_Bal-Princ,IF(Pay_Num<>"",0,""))) -> 86,581.26 ₺ | K143: =IF(scheduled_no_payments=1,"",SUM($I$13:$I143)) -> 66,262.56 ₺
B144: =IF(AND(Values_Entered,scheduled_no_payments<>1),B143+1,"") -> 132 | C144: =IF(Pay_Num<>"",DATE(YEAR(C143)+VLOOKUP(Interval,LoanLookup[],4,FALSE),MONTH(C143)+VLOOKUP(Interval,LoanLookup[],2,FALSE),DAY(C143)+VLOOKUP(Interval,LoanLookup[],3,FALSE)),"") -> 2028-07-11 | D144: 86,581.26 ₺ | E144: 989.93 ₺ | F144: =IF(scheduled_no_payments=1,"",IF(Sched_Pay+Scheduled_Extra_Payments<Beg_Bal,Scheduled_Extra_Payments,IF(AND(Pay_Num<>"",Beg_Bal-Sched_Pay>0),Beg_Bal-Sched_Pay,IF(Pay_Num<>"",0,"")))) -> 0 | G144: =IF(scheduled_no_payments=1,"",IF(Sched_Pay+Extra_Pay<Beg_Bal,Sched_Pay+Extra_Pay,IF(Pay_Num<>"",Beg_Bal,""))) -> 989.93 ₺ | H144: 629.18 ₺ | I144: =IF(Pay_Num<>"",Beg_Bal*(Interest_Rate/VLOOKUP(Interval,LoanLookup[],5,FALSE)),"") -> 360.76 ₺ | J144: =IF(scheduled_no_payments=1,"",IF(AND(Pay_Num<>"",Sched_Pay+Extra_Pay<Beg_Bal),Beg_Bal-Princ,IF(Pay_Num<>"",0,""))) -> 85,952.08 ₺ | K144: =IF(scheduled_no_payments=1,"",SUM($I$13:$I144)) -> 66,623.32 ₺
B145: =IF(AND(Values_Entered,scheduled_no_payments<>1),B144+1,"") -> 133 | C145: =IF(Pay_Num<>"",DATE(YEAR(C144)+VLOOKUP(Interval,LoanLookup[],4,FALSE),MONTH(C144)+VLOOKUP(Interval,LoanLookup[],2,FALSE),DAY(C144)+VLOOKUP(Interval,LoanLookup[],3,FALSE)),"") -> 2028-08-11 | D145: 85,952.08 ₺ | E145: 989.93 ₺ | F145: =IF(scheduled_no_payments=1,"",IF(Sched_Pay+Scheduled_Extra_Payments<Beg_Bal,Scheduled_Extra_Payments,IF(AND(Pay_Num<>"",Beg_Bal-Sched_Pay>0),Beg_Bal-Sched_Pay,IF(Pay_Num<>"",0,"")))) -> 0 | G145: =IF(scheduled_no_payments=1,"",IF(Sched_Pay+Extra_Pay<Beg_Bal,Sched_Pay+Extra_Pay,IF(Pay_Num<>"",Beg_Bal,""))) -> 989.93 ₺ | H145: 631.80 ₺ | I145: =IF(Pay_Num<>"",Beg_Bal*(Interest_Rate/VLOOKUP(Interval,LoanLookup[],5,FALSE)),"") -> 358.13 ₺ | J145: =IF(scheduled_no_payments=1,"",IF(AND(Pay_Num<>"",Sched_Pay+Extra_Pay<Beg_Bal),Beg_Bal-Princ,IF(Pay_Num<>"",0,""))) -> 85,320.28 ₺ | K145: =IF(scheduled_no_payments=1,"",SUM($I$13:$I145)) -> 66,981.45 ₺
B146: =IF(AND(Values_Entered,scheduled_no_payments<>1),B145+1,"") -> 134 | C146: =IF(Pay_Num<>"",DATE(YEAR(C145)+VLOOKUP(Interval,LoanLookup[],4,FALSE),MONTH(C145)+VLOOKUP(Interval,LoanLookup[],2,FALSE),DAY(C145)+VLOOKUP(Interval,LoanLookup[],3,FALSE)),"") -> 2028-09-11 | D146: 85,320.28 ₺ | E146: 989.93 ₺ | F146: =IF(scheduled_no_payments=1,"",IF(Sched_Pay+Scheduled_Extra_Payments<Beg_Bal,Scheduled_Extra_Payments,IF(AND(Pay_Num<>"",Beg_Bal-Sched_Pay>0),Beg_Bal-Sched_Pay,IF(Pay_Num<>"",0,"")))) -> 0 | G146: =IF(scheduled_no_payments=1,"",IF(Sched_Pay+Extra_Pay<Beg_Bal,Sched_Pay+Extra_Pay,IF(Pay_Num<>"",Beg_Bal,""))) -> 989.93 ₺ | H146: 634.43 ₺ | I146: =IF(Pay_Num<>"",Beg_Bal*(Interest_Rate/VLOOKUP(Interval,LoanLookup[],5,FALSE)),"") -> 355.50 ₺ | J146: =IF(scheduled_no_payments=1,"",IF(AND(Pay_Num<>"",Sched_Pay+Extra_Pay<Beg_Bal),Beg_Bal-Princ,IF(Pay_Num<>"",0,""))) -> 84,685.85 ₺ | K146: =IF(scheduled_no_payments=1,"",SUM($I$13:$I146)) -> 67,336.95 ₺
B147: =IF(AND(Values_Entered,scheduled_no_payments<>1),B146+1,"") -> 135 | C147: =IF(Pay_Num<>"",DATE(YEAR(C146)+VLOOKUP(Interval,LoanLookup[],4,FALSE),MONTH(C146)+VLOOKUP(Interval,LoanLookup[],2,FALSE),DAY(C146)+VLOOKUP(Interval,LoanLookup[],3,FALSE)),"") -> 2028-10-11 | D147: 84,685.85 ₺ | E147: 989.93 ₺ | F147: =IF(scheduled_no_payments=1,"",IF(Sched_Pay+Scheduled_Extra_Payments<Beg_Bal,Scheduled_Extra_Payments,IF(AND(Pay_Num<>"",Beg_Bal-Sched_Pay>0),Beg_Bal-Sched_Pay,IF(Pay_Num<>"",0,"")))) -> 0 | G147: =IF(scheduled_no_payments=1,"",IF(Sched_Pay+Extra_Pay<Beg_Bal,Sched_Pay+Extra_Pay,IF(Pay_Num<>"",Beg_Bal,""))) -> 989.93 ₺ | H147: 637.08 ₺ | I147: =IF(Pay_Num<>"",Beg_Bal*(Interest_Rate/VLOOKUP(Interval,LoanLookup[],5,FALSE)),"") -> 352.86 ₺ | J147: =IF(scheduled_no_payments=1,"",IF(AND(Pay_Num<>"",Sched_Pay+Extra_Pay<Beg_Bal),Beg_Bal-Princ,IF(Pay_Num<>"",0,""))) -> 84,048.77 ₺ | K147: =IF(scheduled_no_payments=1,"",SUM($I$13:$I147)) -> 67,689.81 ₺
B148: =IF(AND(Values_Entered,scheduled_no_payments<>1),B147+1,"") -> 136 | C148: =IF(Pay_Num<>"",DATE(YEAR(C147)+VLOOKUP(Interval,LoanLookup[],4,FALSE),MONTH(C147)+VLOOKUP(Interval,LoanLookup[],2,FALSE),DAY(C147)+VLOOKUP(Interval,LoanLookup[],3,FALSE)),"") -> 2028-11-11 | D148: 84,048.77 ₺ | E148: 989.93 ₺ | F148: =IF(scheduled_no_payments=1,"",IF(Sched_Pay+Scheduled_Extra_Payments<Beg_Bal,Scheduled_Extra_Payments,IF(AND(Pay_Num<>"",Beg_Bal-Sched_Pay>0),Beg_Bal-Sched_Pay,IF(Pay_Num<>"",0,"")))) -> 0 | G148: =IF(scheduled_no_payments=1,"",IF(Sched_Pay+Extra_Pay<Beg_Bal,Sched_Pay+Extra_Pay,IF(Pay_Num<>"",Beg_Bal,""))) -> 989.93 ₺ | H148: 639.73 ₺ | I148: =IF(Pay_Num<>"",Beg_Bal*(Interest_Rate/VLOOKUP(Interval,LoanLookup[],5,FALSE)),"") -> 350.20 ₺ | J148: =IF(scheduled_no_payments=1,"",IF(AND(Pay_Num<>"",Sched_Pay+Extra_Pay<Beg_Bal),Beg_Bal-Princ,IF(Pay_Num<>"",0,""))) -> 83,409.04 ₺ | K148: =IF(scheduled_no_payments=1,"",SUM($I$13:$I148)) -> 68,040.01 ₺
B149: =IF(AND(Values_Entered,scheduled_no_payments<>1),B148+1,"") -> 137 | C149: =IF(Pay_Num<>"",DATE(YEAR(C148)+VLOOKUP(Interval,LoanLookup[],4,FALSE),MONTH(C148)+VLOOKUP(Interval,LoanLookup[],2,FALSE),DAY(C148)+VLOOKUP(Interval,LoanLookup[],3,FALSE)),"") -> 2028-12-11 | D149: 83,409.04 ₺ | E149: 989.93 ₺ | F149: =IF(scheduled_no_payments=1,"",IF(Sched_Pay+Scheduled_Extra_Payments<Beg_Bal,Scheduled_Extra_Payments,IF(AND(Pay_Num<>"",Beg_Bal-Sched_Pay>0),Beg_Bal-Sched_Pay,IF(Pay_Num<>"",0,"")))) -> 0 | G149: =IF(scheduled_no_payments=1,"",IF(Sched_Pay+Extra_Pay<Beg_Bal,Sched_Pay+Extra_Pay,IF(Pay_Num<>"",Beg_Bal,""))) -> 989.93 ₺ | H149: 642.40 ₺ | I149: =IF(Pay_Num<>"",Beg_Bal*(Interest_Rate/VLOOKUP(Interval,LoanLookup[],5,FALSE)),"") -> 347.54 ₺ | J149: =IF(scheduled_no_payments=1,"",IF(AND(Pay_Num<>"",Sched_Pay+Extra_Pay<Beg_Bal),Beg_Bal-Princ,IF(Pay_Num<>"",0,""))) -> 82,766.65 ₺ | K149: =IF(scheduled_no_payments=1,"",SUM($I$13:$I149)) -> 68,387.55 ₺
B150: =IF(AND(Values_Entered,scheduled_no_payments<>1),B149+1,"") -> 138 | C150: =IF(Pay_Num<>"",DATE(YEAR(C149)+VLOOKUP(Interval,LoanLookup[],4,FALSE),MONTH(C149)+VLOOKUP(Interval,LoanLookup[],2,FALSE),DAY(C149)+VLOOKUP(Interval,LoanLookup[],3,FALSE)),"") -> 2029-01-11 | D150: 82,766.65 ₺ | E150: 989.93 ₺ | F150: =IF(scheduled_no_payments=1,"",IF(Sched_Pay+Scheduled_Extra_Payments<Beg_Bal,Scheduled_Extra_Payments,IF(AND(Pay_Num<>"",Beg_Bal-Sched_Pay>0),Beg_Bal-Sched_Pay,IF(Pay_Num<>"",0,"")))) -> 0 | G150: =IF(scheduled_no_payments=1,"",IF(Sched_Pay+Extra_Pay<Beg_Bal,Sched_Pay+Extra_Pay,IF(Pay_Num<>"",Beg_Bal,""))) -> 989.93 ₺ | H150: 645.07 ₺ | I150: =IF(Pay_Num<>"",Beg_Bal*(Interest_Rate/VLOOKUP(Interval,LoanLookup[],5,FALSE)),"") -> 344.86 ₺ | J150: =IF(scheduled_no_payments=1,"",IF(AND(Pay_Num<>"",Sched_Pay+Extra_Pay<Beg_Bal),Beg_Bal-Princ,IF(Pay_Num<>"",0,""))) -> 82,121.57 ₺ | K150: =IF(scheduled_no_payments=1,"",SUM($I$13:$I150)) -> 68,732.41 ₺
B151: =IF(AND(Values_Entered,scheduled_no_payments<>1),B150+1,"") -> 139 | C151: =IF(Pay_Num<>"",DATE(YEAR(C150)+VLOOKUP(Interval,LoanLookup[],4,FALSE),MONTH(C150)+VLOOKUP(Interval,LoanLookup[],2,FALSE),DAY(C150)+VLOOKUP(Interval,LoanLookup[],3,FALSE)),"") -> 2029-02-11 | D151: 82,121.57 ₺ | E151: 989.93 ₺ | F151: =IF(scheduled_no_payments=1,"",IF(Sched_Pay+Scheduled_Extra_Payments<Beg_Bal,Scheduled_Extra_Payments,IF(AND(Pay_Num<>"",Beg_Bal-Sched_Pay>0),Beg_Bal-Sched_Pay,IF(Pay_Num<>"",0,"")))) -> 0 | G151: =IF(scheduled_no_payments=1,"",IF(Sched_Pay+Extra_Pay<Beg_Bal,Sched_Pay+Extra_Pay,IF(Pay_Num<>"",Beg_Bal,""))) -> 989.93 ₺ | H151: 647.76 ₺ | I151: =IF(Pay_Num<>"",Beg_Bal*(Interest_Rate/VLOOKUP(Interval,LoanLookup[],5,FALSE)),"") -> 342.17 ₺ | J151: =IF(scheduled_no_payments=1,"",IF(AND(Pay_Num<>"",Sched_Pay+Extra_Pay<Beg_Bal),Beg_Bal-Princ,IF(Pay_Num<>"",0,""))) -> 81,473.81 ₺ | K151: =IF(scheduled_no_payments=1,"",SUM($I$13:$I151)) -> 69,074.59 ₺
B152: =IF(AND(Values_Entered,scheduled_no_payments<>1),B151+1,"") -> 140 | C152: =IF(Pay_Num<>"",DATE(YEAR(C151)+VLOOKUP(Interval,LoanLookup[],4,FALSE),MONTH(C151)+VLOOKUP(Interval,LoanLookup[],2,FALSE),DAY(C151)+VLOOKUP(Interval,LoanLookup[],3,FALSE)),"") -> 2029-03-11 | D152: 81,473.81 ₺ | E152: 989.93 ₺ | F152: =IF(scheduled_no_payments=1,"",IF(Sched_Pay+Scheduled_Extra_Payments<Beg_Bal,Scheduled_Extra_Payments,IF(AND(Pay_Num<>"",Beg_Bal-Sched_Pay>0),Beg_Bal-Sched_Pay,IF(Pay_Num<>"",0,"")))) -> 0 | G152: =IF(scheduled_no_payments=1,"",IF(Sched_Pay+Extra_Pay<Beg_Bal,Sched_Pay+Extra_Pay,IF(Pay_Num<>"",Beg_Bal,""))) -> 989.93 ₺ | H152: 650.46 ₺ | I152: =IF(Pay_Num<>"",Beg_Bal*(Interest_Rate/VLOOKUP(Interval,LoanLookup[],5,FALSE)),"") -> 339.47 ₺ | J152: =IF(scheduled_no_payments=1,"",IF(AND(Pay_Num<>"",Sched_Pay+Extra_Pay<Beg_Bal),Beg_Bal-Princ,IF(Pay_Num<>"",0,""))) -> 80,823.36 ₺ | K152: =IF(scheduled_no_payments=1,"",SUM($I$13:$I152)) -> 69,414.06 ₺
B153: =IF(AND(Values_Entered,scheduled_no_payments<>1),B152+1,"") -> 141 | C153: =IF(Pay_Num<>"",DATE(YEAR(C152)+VLOOKUP(Interval,LoanLookup[],4,FALSE),MONTH(C152)+VLOOKUP(Interval,LoanLookup[],2,FALSE),DAY(C152)+VLOOKUP(Interval,LoanLookup[],3,FALSE)),"") -> 2029-04-11 | D153: 80,823.36 ₺ | E153: 989.93 ₺ | F153: =IF(scheduled_no_payments=1,"",IF(Sched_Pay+Scheduled_Extra_Payments<Beg_Bal,Scheduled_Extra_Payments,IF(AND(Pay_Num<>"",Beg_Bal-Sched_Pay>0),Beg_Bal-Sched_Pay,IF(Pay_Num<>"",0,"")))) -> 0 | G153: =IF(scheduled_no_payments=1,"",IF(Sched_Pay+Extra_Pay<Beg_Bal,Sched_Pay+Extra_Pay,IF(Pay_Num<>"",Beg_Bal,""))) -> 989.93 ₺ | H153: 653.17 ₺ | I153: =IF(Pay_Num<>"",Beg_Bal*(Interest_Rate/VLOOKUP(Interval,LoanLookup[],5,FALSE)),"") -> 336.76 ₺ | J153: =IF(scheduled_no_payments=1,"",IF(AND(Pay_Num<>"",Sched_Pay+Extra_Pay<Beg_Bal),Beg_Bal-Princ,IF(Pay_Num<>"",0,""))) -> 80,170.19 ₺ | K153: =IF(scheduled_no_payments=1,"",SUM($I$13:$I153)) -> 69,750.82 ₺
B154: =IF(AND(Values_Entered,scheduled_no_payments<>1),B153+1,"") -> 142 | C154: =IF(Pay_Num<>"",DATE(YEAR(C153)+VLOOKUP(Interval,LoanLookup[],4,FALSE),MONTH(C153)+VLOOKUP(Interval,LoanLookup[],2,FALSE),DAY(C153)+VLOOKUP(Interval,LoanLookup[],3,FALSE)),"") -> 2029-05-11 | D154: 80,170.19 ₺ | E154: 989.93 ₺ | F154: =IF(scheduled_no_payments=1,"",IF(Sched_Pay+Scheduled_Extra_Payments<Beg_Bal,Scheduled_Extra_Payments,IF(AND(Pay_Num<>"",Beg_Bal-Sched_Pay>0),Beg_Bal-Sched_Pay,IF(Pay_Num<>"",0,"")))) -> 0 | G154: =IF(scheduled_no_payments=1,"",IF(Sched_Pay+Extra_Pay<Beg_Bal,Sched_Pay+Extra_Pay,IF(Pay_Num<>"",Beg_Bal,""))) -> 989.93 ₺ | H154: 655.89 ₺ | I154: =IF(Pay_Num<>"",Beg_Bal*(Interest_Rate/VLOOKUP(Interval,LoanLookup[],5,FALSE)),"") -> 334.04 ₺ | J154: =IF(scheduled_no_payments=1,"",IF(AND(Pay_Num<>"",Sched_Pay+Extra_Pay<Beg_Bal),Beg_Bal-Princ,IF(Pay_Num<>"",0,""))) -> 79,514.29 ₺ | K154: =IF(scheduled_no_payments=1,"",SUM($I$13:$I154)) -> 70,084.87 ₺
B155: =IF(AND(Values_Entered,scheduled_no_payments<>1),B154+1,"") -> 143 | C155: =IF(Pay_Num<>"",DATE(YEAR(C154)+VLOOKUP(Interval,LoanLookup[],4,FALSE),MONTH(C154)+VLOOKUP(Interval,LoanLookup[],2,FALSE),DAY(C154)+VLOOKUP(Interval,LoanLookup[],3,FALSE)),"") -> 2029-06-11 | D155: 79,514.29 ₺ | E155: 989.93 ₺ | F155: =IF(scheduled_no_payments=1,"",IF(Sched_Pay+Scheduled_Extra_Payments<Beg_Bal,Scheduled_Extra_Payments,IF(AND(Pay_Num<>"",Beg_Bal-Sched_Pay>0),Beg_Bal-Sched_Pay,IF(Pay_Num<>"",0,"")))) -> 0 | G155: =IF(scheduled_no_payments=1,"",IF(Sched_Pay+Extra_Pay<Beg_Bal,Sched_Pay+Extra_Pay,IF(Pay_Num<>"",Beg_Bal,""))) -> 989.93 ₺ | H155: 658.62 ₺ | I155: =IF(Pay_Num<>"",Beg_Bal*(Interest_Rate/VLOOKUP(Interval,LoanLookup[],5,FALSE)),"") -> 331.31 ₺ | J155: =IF(scheduled_no_payments=1,"",IF(AND(Pay_Num<>"",Sched_Pay+Extra_Pay<Beg_Bal),Beg_Bal-Princ,IF(Pay_Num<>"",0,""))) -> 78,855.67 ₺ | K155: =IF(scheduled_no_payments=1,"",SUM($I$13:$I155)) -> 70,416.18 ₺
B156: =IF(AND(Values_Entered,scheduled_no_payments<>1),B155+1,"") -> 144 | C156: =IF(Pay_Num<>"",DATE(YEAR(C155)+VLOOKUP(Interval,LoanLookup[],4,FALSE),MONTH(C155)+VLOOKUP(Interval,LoanLookup[],2,FALSE),DAY(C155)+VLOOKUP(Interval,LoanLookup[],3,FALSE)),"") -> 2029-07-11 | D156: 78,855.67 ₺ | E156: 989.93 ₺ | F156: =IF(scheduled_no_payments=1,"",IF(Sched_Pay+Scheduled_Extra_Payments<Beg_Bal,Scheduled_Extra_Payments,IF(AND(Pay_Num<>"",Beg_Bal-Sched_Pay>0),Beg_Bal-Sched_Pay,IF(Pay_Num<>"",0,"")))) -> 0 | G156: =IF(scheduled_no_payments=1,"",IF(Sched_Pay+Extra_Pay<Beg_Bal,Sched_Pay+Extra_Pay,IF(Pay_Num<>"",Beg_Bal,""))) -> 989.93 ₺ | H156: 661.37 ₺ | I156: =IF(Pay_Num<>"",Beg_Bal*(Interest_Rate/VLOOKUP(Interval,LoanLookup[],5,FALSE)),"") -> 328.57 ₺ | J156: =IF(scheduled_no_payments=1,"",IF(AND(Pay_Num<>"",Sched_Pay+Extra_Pay<Beg_Bal),Beg_Bal-Princ,IF(Pay_Num<>"",0,""))) -> 78,194.30 ₺ | K156: =IF(scheduled_no_payments=1,"",SUM($I$13:$I156)) -> 70,744.74 ₺
B157: =IF(AND(Values_Entered,scheduled_no_payments<>1),B156+1,"") -> 145 | C157: =IF(Pay_Num<>"",DATE(YEAR(C156)+VLOOKUP(Interval,LoanLookup[],4,FALSE),MONTH(C156)+VLOOKUP(Interval,LoanLookup[],2,FALSE),DAY(C156)+VLOOKUP(Interval,LoanLookup[],3,FALSE)),"") -> 2029-08-11 | D157: 78,194.30 ₺ | E157: 989.93 ₺ | F157: =IF(scheduled_no_payments=1,"",IF(Sched_Pay+Scheduled_Extra_Payments<Beg_Bal,Scheduled_Extra_Payments,IF(AND(Pay_Num<>"",Beg_Bal-Sched_Pay>0),Beg_Bal-Sched_Pay,IF(Pay_Num<>"",0,"")))) -> 0 | G157: =IF(scheduled_no_payments=1,"",IF(Sched_Pay+Extra_Pay<Beg_Bal,Sched_Pay+Extra_Pay,IF(Pay_Num<>"",Beg_Bal,""))) -> 989.93 ₺ | H157: 664.12 ₺ | I157: =IF(Pay_Num<>"",Beg_Bal*(Interest_Rate/VLOOKUP(Interval,LoanLookup[],5,FALSE)),"") -> 325.81 ₺ | J157: =IF(scheduled_no_payments=1,"",IF(AND(Pay_Num<>"",Sched_Pay+Extra_Pay<Beg_Bal),Beg_Bal-Princ,IF(Pay_Num<>"",0,""))) -> 77,530.18 ₺ | K157: =IF(scheduled_no_payments=1,"",SUM($I$13:$I157)) -> 71,070.55 ₺
B158: =IF(AND(Values_Entered,scheduled_no_payments<>1),B157+1,"") -> 146 | C158: =IF(Pay_Num<>"",DATE(YEAR(C157)+VLOOKUP(Interval,LoanLookup[],4,FALSE),MONTH(C157)+VLOOKUP(Interval,LoanLookup[],2,FALSE),DAY(C157)+VLOOKUP(Interval,LoanLookup[],3,FALSE)),"") -> 2029-09-11 | D158: 77,530.18 ₺ | E158: 989.93 ₺ | F158: =IF(scheduled_no_payments=1,"",IF(Sched_Pay+Scheduled_Extra_Payments<Beg_Bal,Scheduled_Extra_Payments,IF(AND(Pay_Num<>"",Beg_Bal-Sched_Pay>0),Beg_Bal-Sched_Pay,IF(Pay_Num<>"",0,"")))) -> 0 | G158: =IF(scheduled_no_payments=1,"",IF(Sched_Pay+Extra_Pay<Beg_Bal,Sched_Pay+Extra_Pay,IF(Pay_Num<>"",Beg_Bal,""))) -> 989.93 ₺ | H158: 666.89 ₺ | I158: =IF(Pay_Num<>"",Beg_Bal*(Interest_Rate/VLOOKUP(Interval,LoanLookup[],5,FALSE)),"") -> 323.04 ₺ | J158: =IF(scheduled_no_payments=1,"",IF(AND(Pay_Num<>"",Sched_Pay+Extra_Pay<Beg_Bal),Beg_Bal-Princ,IF(Pay_Num<>"",0,""))) -> 76,863.29 ₺ | K158: =IF(scheduled_no_payments=1,"",SUM($I$13:$I158)) -> 71,393.59 ₺
B159: =IF(AND(Values_Entered,scheduled_no_payments<>1),B158+1,"") -> 147 | C159: =IF(Pay_Num<>"",DATE(YEAR(C158)+VLOOKUP(Interval,LoanLookup[],4,FALSE),MONTH(C158)+VLOOKUP(Interval,LoanLookup[],2,FALSE),DAY(C158)+VLOOKUP(Interval,LoanLookup[],3,FALSE)),"") -> 2029-10-11 | D159: 76,863.29 ₺ | E159: 989.93 ₺ | F159: =IF(scheduled_no_payments=1,"",IF(Sched_Pay+Scheduled_Extra_Payments<Beg_Bal,Scheduled_Extra_Payments,IF(AND(Pay_Num<>"",Beg_Bal-Sched_Pay>0),Beg_Bal-Sched_Pay,IF(Pay_Num<>"",0,"")))) -> 0 | G159: =IF(scheduled_no_payments=1,"",IF(Sched_Pay+Extra_Pay<Beg_Bal,Sched_Pay+Extra_Pay,IF(Pay_Num<>"",Beg_Bal,""))) -> 989.93 ₺ | H159: 669.67 ₺ | I159: =IF(Pay_Num<>"",Beg_Bal*(Interest_Rate/VLOOKUP(Interval,LoanLookup[],5,FALSE)),"") -> 320.26 ₺ | J159: =IF(scheduled_no_payments=1,"",IF(AND(Pay_Num<>"",Sched_Pay+Extra_Pay<Beg_Bal),Beg_Bal-Princ,IF(Pay_Num<>"",0,""))) -> 76,193.62 ₺ | K159: =IF(scheduled_no_payments=1,"",SUM($I$13:$I159)) -> 71,713.86 ₺
B160: =IF(AND(Values_Entered,scheduled_no_payments<>1),B159+1,"") -> 148 | C160: =IF(Pay_Num<>"",DATE(YEAR(C159)+VLOOKUP(Interval,LoanLookup[],4,FALSE),MONTH(C159)+VLOOKUP(Interval,LoanLookup[],2,FALSE),DAY(C159)+VLOOKUP(Interval,LoanLookup[],3,FALSE)),"") -> 2029-11-11 | D160: 76,193.62 ₺ | E160: 989.93 ₺ | F160: =IF(scheduled_no_payments=1,"",IF(Sched_Pay+Scheduled_Extra_Payments<Beg_Bal,Scheduled_Extra_Payments,IF(AND(Pay_Num<>"",Beg_Bal-Sched_Pay>0),Beg_Bal-Sched_Pay,IF(Pay_Num<>"",0,"")))) -> 0 | G160: =IF(scheduled_no_payments=1,"",IF(Sched_Pay+Extra_Pay<Beg_Bal,Sched_Pay+Extra_Pay,IF(Pay_Num<>"",Beg_Bal,""))) -> 989.93 ₺ | H160: 672.46 ₺ | I160: =IF(Pay_Num<>"",Beg_Bal*(Interest_Rate/VLOOKUP(Interval,LoanLookup[],5,FALSE)),"") -> 317.47 ₺ | J160: =IF(scheduled_no_payments=1,"",IF(AND(Pay_Num<>"",Sched_Pay+Extra_Pay<Beg_Bal),Beg_Bal-Princ,IF(Pay_Num<>"",0,""))) -> 75,521.16 ₺ | K160: =IF(scheduled_no_payments=1,"",SUM($I$13:$I160)) -> 72,031.33 ₺
B161: =IF(AND(Values_Entered,scheduled_no_payments<>1),B160+1,"") -> 149 | C161: =IF(Pay_Num<>"",DATE(YEAR(C160)+VLOOKUP(Interval,LoanLookup[],4,FALSE),MONTH(C160)+VLOOKUP(Interval,LoanLookup[],2,FALSE),DAY(C160)+VLOOKUP(Interval,LoanLookup[],3,FALSE)),"") -> 2029-12-11 | D161: 75,521.16 ₺ | E161: 989.93 ₺ | F161: =IF(scheduled_no_payments=1,"",IF(Sched_Pay+Scheduled_Extra_Payments<Beg_Bal,Scheduled_Extra_Payments,IF(AND(Pay_Num<>"",Beg_Bal-Sched_Pay>0),Beg_Bal-Sched_Pay,IF(Pay_Num<>"",0,"")))) -> 0 | G161: =IF(scheduled_no_payments=1,"",IF(Sched_Pay+Extra_Pay<Beg_Bal,Sched_Pay+Extra_Pay,IF(Pay_Num<>"",Beg_Bal,""))) -> 989.93 ₺ | H161: 675.26 ₺ | I161: =IF(Pay_Num<>"",Beg_Bal*(Interest_Rate/VLOOKUP(Interval,LoanLookup[],5,FALSE)),"") -> 314.67 ₺ | J161: =IF(scheduled_no_payments=1,"",IF(AND(Pay_Num<>"",Sched_Pay+Extra_Pay<Beg_Bal),Beg_Bal-Princ,IF(Pay_Num<>"",0,""))) -> 74,845.89 ₺ | K161: =IF(scheduled_no_payments=1,"",SUM($I$13:$I161)) -> 72,346.00 ₺
B162: =IF(AND(Values_Entered,scheduled_no_payments<>1),B161+1,"") -> 150 | C162: =IF(Pay_Num<>"",DATE(YEAR(C161)+VLOOKUP(Interval,LoanLookup[],4,FALSE),MONTH(C161)+VLOOKUP(Interval,LoanLookup[],2,FALSE),DAY(C161)+VLOOKUP(Interval,LoanLookup[],3,FALSE)),"") -> 2030-01-11 | D162: 74,845.89 ₺ | E162: 989.93 ₺ | F162: =IF(scheduled_no_payments=1,"",IF(Sched_Pay+Scheduled_Extra_Payments<Beg_Bal,Scheduled_Extra_Payments,IF(AND(Pay_Num<>"",Beg_Bal-Sched_Pay>0),Beg_Bal-Sched_Pay,IF(Pay_Num<>"",0,"")))) -> 0 | G162: =IF(scheduled_no_payments=1,"",IF(Sched_Pay+Extra_Pay<Beg_Bal,Sched_Pay+Extra_Pay,IF(Pay_Num<>"",Beg_Bal,""))) -> 989.93 ₺ | H162: 678.08 ₺ | I162: =IF(Pay_Num<>"",Beg_Bal*(Interest_Rate/VLOOKUP(Interval,LoanLookup[],5,FALSE)),"") -> 311.86 ₺ | J162: =IF(scheduled_no_payments=1,"",IF(AND(Pay_Num<>"",Sched_Pay+Extra_Pay<Beg_Bal),Beg_Bal-Princ,IF(Pay_Num<>"",0,""))) -> 74,167.82 ₺ | K162: =IF(scheduled_no_payments=1,"",SUM($I$13:$I162)) -> 72,657.86 ₺
B163: =IF(AND(Values_Entered,scheduled_no_payments<>1),B162+1,"") -> 151 | C163: =IF(Pay_Num<>"",DATE(YEAR(C162)+VLOOKUP(Interval,LoanLookup[],4,FALSE),MONTH(C162)+VLOOKUP(Interval,LoanLookup[],2,FALSE),DAY(C162)+VLOOKUP(Interval,LoanLookup[],3,FALSE)),"") -> 2030-02-11 | D163: 74,167.82 ₺ | E163: 989.93 ₺ | F163: =IF(scheduled_no_payments=1,"",IF(Sched_Pay+Scheduled_Extra_Payments<Beg_Bal,Scheduled_Extra_Payments,IF(AND(Pay_Num<>"",Beg_Bal-Sched_Pay>0),Beg_Bal-Sched_Pay,IF(Pay_Num<>"",0,"")))) -> 0 | G163: =IF(scheduled_no_payments=1,"",IF(Sched_Pay+Extra_Pay<Beg_Bal,Sched_Pay+Extra_Pay,IF(Pay_Num<>"",Beg_Bal,""))) -> 989.93 ₺ | H163: 680.90 ₺ | I163: =IF(Pay_Num<>"",Beg_Bal*(Interest_Rate/VLOOKUP(Interval,LoanLookup[],5,FALSE)),"") -> 309.03 ₺ | J163: =IF(scheduled_no_payments=1,"",IF(AND(Pay_Num<>"",Sched_Pay+Extra_Pay<Beg_Bal),Beg_Bal-Princ,IF(Pay_Num<>"",0,""))) -> 73,486.92 ₺ | K163: =IF(scheduled_no_payments=1,"",SUM($I$13:$I163)) -> 72,966.89 ₺
B164: =IF(AND(Values_Entered,scheduled_no_payments<>1),B163+1,"") -> 152 | C164: =IF(Pay_Num<>"",DATE(YEAR(C163)+VLOOKUP(Interval,LoanLookup[],4,FALSE),MONTH(C163)+VLOOKUP(Interval,LoanLookup[],2,FALSE),DAY(C163)+VLOOKUP(Interval,LoanLookup[],3,FALSE)),"") -> 2030-03-11 | D164: 73,486.92 ₺ | E164: 989.93 ₺ | F164: =IF(scheduled_no_payments=1,"",IF(Sched_Pay+Scheduled_Extra_Payments<Beg_Bal,Scheduled_Extra_Payments,IF(AND(Pay_Num<>"",Beg_Bal-Sched_Pay>0),Beg_Bal-Sched_Pay,IF(Pay_Num<>"",0,"")))) -> 0 | G164: =IF(scheduled_no_payments=1,"",IF(Sched_Pay+Extra_Pay<Beg_Bal,Sched_Pay+Extra_Pay,IF(Pay_Num<>"",Beg_Bal,""))) -> 989.93 ₺ | H164: 683.74 ₺ | I164: =IF(Pay_Num<>"",Beg_Bal*(Interest_Rate/VLOOKUP(Interval,LoanLookup[],5,FALSE)),"") -> 306.20 ₺ | J164: =IF(scheduled_no_payments=1,"",IF(AND(Pay_Num<>"",Sched_Pay+Extra_Pay<Beg_Bal),Beg_Bal-Princ,IF(Pay_Num<>"",0,""))) -> 72,803.18 ₺ | K164: =IF(scheduled_no_payments=1,"",SUM($I$13:$I164)) -> 73,273.09 ₺
B165: =IF(AND(Values_Entered,scheduled_no_payments<>1),B164+1,"") -> 153 | C165: =IF(Pay_Num<>"",DATE(YEAR(C164)+VLOOKUP(Interval,LoanLookup[],4,FALSE),MONTH(C164)+VLOOKUP(Interval,LoanLookup[],2,FALSE),DAY(C164)+VLOOKUP(Interval,LoanLookup[],3,FALSE)),"") -> 2030-04-11 | D165: 72,803.18 ₺ | E165: 989.93 ₺ | F165: =IF(scheduled_no_payments=1,"",IF(Sched_Pay+Scheduled_Extra_Payments<Beg_Bal,Scheduled_Extra_Payments,IF(AND(Pay_Num<>"",Beg_Bal-Sched_Pay>0),Beg_Bal-Sched_Pay,IF(Pay_Num<>"",0,"")))) -> 0 | G165: =IF(scheduled_no_payments=1,"",IF(Sched_Pay+Extra_Pay<Beg_Bal,Sched_Pay+Extra_Pay,IF(Pay_Num<>"",Beg_Bal,""))) -> 989.93 ₺ | H165: 686.59 ₺ | I165: =IF(Pay_Num<>"",Beg_Bal*(Interest_Rate/VLOOKUP(Interval,LoanLookup[],5,FALSE)),"") -> 303.35 ₺ | J165: =IF(scheduled_no_payments=1,"",IF(AND(Pay_Num<>"",Sched_Pay+Extra_Pay<Beg_Bal),Beg_Bal-Princ,IF(Pay_Num<>"",0,""))) -> 72,116.59 ₺ | K165: =IF(scheduled_no_payments=1,"",SUM($I$13:$I165)) -> 73,576.43 ₺
B166: =IF(AND(Values_Entered,scheduled_no_payments<>1),B165+1,"") -> 154 | C166: =IF(Pay_Num<>"",DATE(YEAR(C165)+VLOOKUP(Interval,LoanLookup[],4,FALSE),MONTH(C165)+VLOOKUP(Interval,LoanLookup[],2,FALSE),DAY(C165)+VLOOKUP(Interval,LoanLookup[],3,FALSE)),"") -> 2030-05-11 | D166: 72,116.59 ₺ | E166: 989.93 ₺ | F166: =IF(scheduled_no_payments=1,"",IF(Sched_Pay+Scheduled_Extra_Payments<Beg_Bal,Scheduled_Extra_Payments,IF(AND(Pay_Num<>"",Beg_Bal-Sched_Pay>0),Beg_Bal-Sched_Pay,IF(Pay_Num<>"",0,"")))) -> 0 | G166: =IF(scheduled_no_payments=1,"",IF(Sched_Pay+Extra_Pay<Beg_Bal,Sched_Pay+Extra_Pay,IF(Pay_Num<>"",Beg_Bal,""))) -> 989.93 ₺ | H166: 689.45 ₺ | I166: =IF(Pay_Num<>"",Beg_Bal*(Interest_Rate/VLOOKUP(Interval,LoanLookup[],5,FALSE)),"") -> 300.49 ₺ | J166: =IF(scheduled_no_payments=1,"",IF(AND(Pay_Num<>"",Sched_Pay+Extra_Pay<Beg_Bal),Beg_Bal-Princ,IF(Pay_Num<>"",0,""))) -> 71,427.14 ₺ | K166: =IF(scheduled_no_payments=1,"",SUM($I$13:$I166)) -> 73,876.92 ₺
B167: =IF(AND(Values_Entered,scheduled_no_payments<>1),B166+1,"") -> 155 | C167: =IF(Pay_Num<>"",DATE(YEAR(C166)+VLOOKUP(Interval,LoanLookup[],4,FALSE),MONTH(C166)+VLOOKUP(Interval,LoanLookup[],2,FALSE),DAY(C166)+VLOOKUP(Interval,LoanLookup[],3,FALSE)),"") -> 2030-06-11 | D167: 71,427.14 ₺ | E167: 989.93 ₺ | F167: =IF(scheduled_no_payments=1,"",IF(Sched_Pay+Scheduled_Extra_Payments<Beg_Bal,Scheduled_Extra_Payments,IF(AND(Pay_Num<>"",Beg_Bal-Sched_Pay>0),Beg_Bal-Sched_Pay,IF(Pay_Num<>"",0,"")))) -> 0 | G167: =IF(scheduled_no_payments=1,"",IF(Sched_Pay+Extra_Pay<Beg_Bal,Sched_Pay+Extra_Pay,IF(Pay_Num<>"",Beg_Bal,""))) -> 989.93 ₺ | H167: 692.32 ₺ | I167: =IF(Pay_Num<>"",Beg_Bal*(Interest_Rate/VLOOKUP(Interval,LoanLookup[],5,FALSE)),"") -> 297.61 ₺ | J167: =IF(scheduled_no_payments=1,"",IF(AND(Pay_Num<>"",Sched_Pay+Extra_Pay<Beg_Bal),Beg_Bal-Princ,IF(Pay_Num<>"",0,""))) -> 70,734.82 ₺ | K167: =IF(scheduled_no_payments=1,"",SUM($I$13:$I167)) -> 74,174.53 ₺
B168: =IF(AND(Values_Entered,scheduled_no_payments<>1),B167+1,"") -> 156 | C168: =IF(Pay_Num<>"",DATE(YEAR(C167)+VLOOKUP(Interval,LoanLookup[],4,FALSE),MONTH(C167)+VLOOKUP(Interval,LoanLookup[],2,FALSE),DAY(C167)+VLOOKUP(Interval,LoanLookup[],3,FALSE)),"") -> 2030-07-11 | D168: 70,734.82 ₺ | E168: 989.93 ₺ | F168: =IF(scheduled_no_payments=1,"",IF(Sched_Pay+Scheduled_Extra_Payments<Beg_Bal,Scheduled_Extra_Payments,IF(AND(Pay_Num<>"",Beg_Bal-Sched_Pay>0),Beg_Bal-Sched_Pay,IF(Pay_Num<>"",0,"")))) -> 0 | G168: =IF(scheduled_no_payments=1,"",IF(Sched_Pay+Extra_Pay<Beg_Bal,Sched_Pay+Extra_Pay,IF(Pay_Num<>"",Beg_Bal,""))) -> 989.93 ₺ | H168: 695.21 ₺ | I168: =IF(Pay_Num<>"",Beg_Bal*(Interest_Rate/VLOOKUP(Interval,LoanLookup[],5,FALSE)),"") -> 294.73 ₺ | J168: =IF(scheduled_no_payments=1,"",IF(AND(Pay_Num<>"",Sched_Pay+Extra_Pay<Beg_Bal),Beg_Bal-Princ,IF(Pay_Num<>"",0,""))) -> 70,039.62 ₺ | K168: =IF(scheduled_no_payments=1,"",SUM($I$13:$I168)) -> 74,469.26 ₺
B169: =IF(AND(Values_Entered,scheduled_no_payments<>1),B168+1,"") -> 157 | C169: =IF(Pay_Num<>"",DATE(YEAR(C168)+VLOOKUP(Interval,LoanLookup[],4,FALSE),MONTH(C168)+VLOOKUP(Interval,LoanLookup[],2,FALSE),DAY(C168)+VLOOKUP(Interval,LoanLookup[],3,FALSE)),"") -> 2030-08-11 | D169: 70,039.62 ₺ | E169: 989.93 ₺ | F169: =IF(scheduled_no_payments=1,"",IF(Sched_Pay+Scheduled_Extra_Payments<Beg_Bal,Scheduled_Extra_Payments,IF(AND(Pay_Num<>"",Beg_Bal-Sched_Pay>0),Beg_Bal-Sched_Pay,IF(Pay_Num<>"",0,"")))) -> 0 | G169: =IF(scheduled_no_payments=1,"",IF(Sched_Pay+Extra_Pay<Beg_Bal,Sched_Pay+Extra_Pay,IF(Pay_Num<>"",Beg_Bal,""))) -> 989.93 ₺ | H169: 698.10 ₺ | I169: =IF(Pay_Num<>"",Beg_Bal*(Interest_Rate/VLOOKUP(Interval,LoanLookup[],5,FALSE)),"") -> 291.83 ₺ | J169: =IF(scheduled_no_payments=1,"",IF(AND(Pay_Num<>"",Sched_Pay+Extra_Pay<Beg_Bal),Beg_Bal-Princ,IF(Pay_Num<>"",0,""))) -> 69,341.52 ₺ | K169: =IF(scheduled_no_payments=1,"",SUM($I$13:$I169)) -> 74,761.09 ₺
B170: =IF(AND(Values_Entered,scheduled_no_payments<>1),B169+1,"") -> 158 | C170: =IF(Pay_Num<>"",DATE(YEAR(C169)+VLOOKUP(Interval,LoanLookup[],4,FALSE),MONTH(C169)+VLOOKUP(Interval,LoanLookup[],2,FALSE),DAY(C169)+VLOOKUP(Interval,LoanLookup[],3,FALSE)),"") -> 2030-09-11 | D170: 69,341.52 ₺ | E170: 989.93 ₺ | F170: =IF(scheduled_no_payments=1,"",IF(Sched_Pay+Scheduled_Extra_Payments<Beg_Bal,Scheduled_Extra_Payments,IF(AND(Pay_Num<>"",Beg_Bal-Sched_Pay>0),Beg_Bal-Sched_Pay,IF(Pay_Num<>"",0,"")))) -> 0 | G170: =IF(scheduled_no_payments=1,"",IF(Sched_Pay+Extra_Pay<Beg_Bal,Sched_Pay+Extra_Pay,IF(Pay_Num<>"",Beg_Bal,""))) -> 989.93 ₺ | H170: 701.01 ₺ | I170: =IF(Pay_Num<>"",Beg_Bal*(Interest_Rate/VLOOKUP(Interval,LoanLookup[],5,FALSE)),"") -> 288.92 ₺ | J170: =IF(scheduled_no_payments=1,"",IF(AND(Pay_Num<>"",Sched_Pay+Extra_Pay<Beg_Bal),Beg_Bal-Princ,IF(Pay_Num<>"",0,""))) -> 68,640.51 ₺ | K170: =IF(scheduled_no_payments=1,"",SUM($I$13:$I170)) -> 75,050.02 ₺
B171: =IF(AND(Values_Entered,scheduled_no_payments<>1),B170+1,"") -> 159 | C171: =IF(Pay_Num<>"",DATE(YEAR(C170)+VLOOKUP(Interval,LoanLookup[],4,FALSE),MONTH(C170)+VLOOKUP(Interval,LoanLookup[],2,FALSE),DAY(C170)+VLOOKUP(Interval,LoanLookup[],3,FALSE)),"") -> 2030-10-11 | D171: 68,640.51 ₺ | E171: 989.93 ₺ | F171: =IF(scheduled_no_payments=1,"",IF(Sched_Pay+Scheduled_Extra_Payments<Beg_Bal,Scheduled_Extra_Payments,IF(AND(Pay_Num<>"",Beg_Bal-Sched_Pay>0),Beg_Bal-Sched_Pay,IF(Pay_Num<>"",0,"")))) -> 0 | G171: =IF(scheduled_no_payments=1,"",IF(Sched_Pay+Extra_Pay<Beg_Bal,Sched_Pay+Extra_Pay,IF(Pay_Num<>"",Beg_Bal,""))) -> 989.93 ₺ | H171: 703.93 ₺ | I171: =IF(Pay_Num<>"",Beg_Bal*(Interest_Rate/VLOOKUP(Interval,LoanLookup[],5,FALSE)),"") -> 286.00 ₺ | J171: =IF(scheduled_no_payments=1,"",IF(AND(Pay_Num<>"",Sched_Pay+Extra_Pay<Beg_Bal),Beg_Bal-Princ,IF(Pay_Num<>"",0,""))) -> 67,936.58 ₺ | K171: =IF(scheduled_no_payments=1,"",SUM($I$13:$I171)) -> 75,336.02 ₺
B172: =IF(AND(Values_Entered,scheduled_no_payments<>1),B171+1,"") -> 160 | C172: =IF(Pay_Num<>"",DATE(YEAR(C171)+VLOOKUP(Interval,LoanLookup[],4,FALSE),MONTH(C171)+VLOOKUP(Interval,LoanLookup[],2,FALSE),DAY(C171)+VLOOKUP(Interval,LoanLookup[],3,FALSE)),"") -> 2030-11-11 | D172: 67,936.58 ₺ | E172: 989.93 ₺ | F172: =IF(scheduled_no_payments=1,"",IF(Sched_Pay+Scheduled_Extra_Payments<Beg_Bal,Scheduled_Extra_Payments,IF(AND(Pay_Num<>"",Beg_Bal-Sched_Pay>0),Beg_Bal-Sched_Pay,IF(Pay_Num<>"",0,"")))) -> 0 | G172: =IF(scheduled_no_payments=1,"",IF(Sched_Pay+Extra_Pay<Beg_Bal,Sched_Pay+Extra_Pay,IF(Pay_Num<>"",Beg_Bal,""))) -> 989.93 ₺ | H172: 706.86 ₺ | I172: =IF(Pay_Num<>"",Beg_Bal*(Interest_Rate/VLOOKUP(Interval,LoanLookup[],5,FALSE)),"") -> 283.07 ₺ | J172: =IF(scheduled_no_payments=1,"",IF(AND(Pay_Num<>"",Sched_Pay+Extra_Pay<Beg_Bal),Beg_Bal-Princ,IF(Pay_Num<>"",0,""))) -> 67,229.71 ₺ | K172: =IF(scheduled_no_payments=1,"",SUM($I$13:$I172)) -> 75,619.09 ₺
B173: =IF(AND(Values_Entered,scheduled_no_payments<>1),B172+1,"") -> 161 | C173: =IF(Pay_Num<>"",DATE(YEAR(C172)+VLOOKUP(Interval,LoanLookup[],4,FALSE),MONTH(C172)+VLOOKUP(Interval,LoanLookup[],2,FALSE),DAY(C172)+VLOOKUP(Interval,LoanLookup[],3,FALSE)),"") -> 2030-12-11 | D173: 67,229.71 ₺ | E173: 989.93 ₺ | F173: =IF(scheduled_no_payments=1,"",IF(Sched_Pay+Scheduled_Extra_Payments<Beg_Bal,Scheduled_Extra_Payments,IF(AND(Pay_Num<>"",Beg_Bal-Sched_Pay>0),Beg_Bal-Sched_Pay,IF(Pay_Num<>"",0,"")))) -> 0 | G173: =IF(scheduled_no_payments=1,"",IF(Sched_Pay+Extra_Pay<Beg_Bal,Sched_Pay+Extra_Pay,IF(Pay_Num<>"",Beg_Bal,""))) -> 989.93 ₺ | H173: 709.81 ₺ | I173: =IF(Pay_Num<>"",Beg_Bal*(Interest_Rate/VLOOKUP(Interval,LoanLookup[],5,FALSE)),"") -> 280.12 ₺ | J173: =IF(scheduled_no_payments=1,"",IF(AND(Pay_Num<>"",Sched_Pay+Extra_Pay<Beg_Bal),Beg_Bal-Princ,IF(Pay_Num<>"",0,""))) -> 66,519.90 ₺ | K173: =IF(scheduled_no_payments=1,"",SUM($I$13:$I173)) -> 75,899.21 ₺
B174: =IF(AND(Values_Entered,scheduled_no_payments<>1),B173+1,"") -> 162 | C174: =IF(Pay_Num<>"",DATE(YEAR(C173)+VLOOKUP(Interval,LoanLookup[],4,FALSE),MONTH(C173)+VLOOKUP(Interval,LoanLookup[],2,FALSE),DAY(C173)+VLOOKUP(Interval,LoanLookup[],3,FALSE)),"") -> 2031-01-11 | D174: 66,519.90 ₺ | E174: 989.93 ₺ | F174: =IF(scheduled_no_payments=1,"",IF(Sched_Pay+Scheduled_Extra_Payments<Beg_Bal,Scheduled_Extra_Payments,IF(AND(Pay_Num<>"",Beg_Bal-Sched_Pay>0),Beg_Bal-Sched_Pay,IF(Pay_Num<>"",0,"")))) -> 0 | G174: =IF(scheduled_no_payments=1,"",IF(Sched_Pay+Extra_Pay<Beg_Bal,Sched_Pay+Extra_Pay,IF(Pay_Num<>"",Beg_Bal,""))) -> 989.93 ₺ | H174: 712.77 ₺ | I174: =IF(Pay_Num<>"",Beg_Bal*(Interest_Rate/VLOOKUP(Interval,LoanLookup[],5,FALSE)),"") -> 277.17 ₺ | J174: =IF(scheduled_no_payments=1,"",IF(AND(Pay_Num<>"",Sched_Pay+Extra_Pay<Beg_Bal),Beg_Bal-Princ,IF(Pay_Num<>"",0,""))) -> 65,807.13 ₺ | K174: =IF(scheduled_no_payments=1,"",SUM($I$13:$I174)) -> 76,176.38 ₺
B175: =IF(AND(Values_Entered,scheduled_no_payments<>1),B174+1,"") -> 163 | C175: =IF(Pay_Num<>"",DATE(YEAR(C174)+VLOOKUP(Interval,LoanLookup[],4,FALSE),MONTH(C174)+VLOOKUP(Interval,LoanLookup[],2,FALSE),DAY(C174)+VLOOKUP(Interval,LoanLookup[],3,FALSE)),"") -> 2031-02-11 | D175: 65,807.13 ₺ | E175: 989.93 ₺ | F175: =IF(scheduled_no_payments=1,"",IF(Sched_Pay+Scheduled_Extra_Payments<Beg_Bal,Scheduled_Extra_Payments,IF(AND(Pay_Num<>"",Beg_Bal-Sched_Pay>0),Beg_Bal-Sched_Pay,IF(Pay_Num<>"",0,"")))) -> 0 | G175: =IF(scheduled_no_payments=1,"",IF(Sched_Pay+Extra_Pay<Beg_Bal,Sched_Pay+Extra_Pay,IF(Pay_Num<>"",Beg_Bal,""))) -> 989.93 ₺ | H175: 715.74 ₺ | I175: =IF(Pay_Num<>"",Beg_Bal*(Interest_Rate/VLOOKUP(Interval,LoanLookup[],5,FALSE)),"") -> 274.20 ₺ | J175: =IF(scheduled_no_payments=1,"",IF(AND(Pay_Num<>"",Sched_Pay+Extra_Pay<Beg_Bal),Beg_Bal-Princ,IF(Pay_Num<>"",0,""))) -> 65,091.40 ₺ | K175: =IF(scheduled_no_payments=1,"",SUM($I$13:$I175)) -> 76,450.57 ₺
B176: =IF(AND(Values_Entered,scheduled_no_payments<>1),B175+1,"") -> 164 | C176: =IF(Pay_Num<>"",DATE(YEAR(C175)+VLOOKUP(Interval,LoanLookup[],4,FALSE),MONTH(C175)+VLOOKUP(Interval,LoanLookup[],2,FALSE),DAY(C175)+VLOOKUP(Interval,LoanLookup[],3,FALSE)),"") -> 2031-03-11 | D176: 65,091.40 ₺ | E176: 989.93 ₺ | F176: =IF(scheduled_no_payments=1,"",IF(Sched_Pay+Scheduled_Extra_Payments<Beg_Bal,Scheduled_Extra_Payments,IF(AND(Pay_Num<>"",Beg_Bal-Sched_Pay>0),Beg_Bal-Sched_Pay,IF(Pay_Num<>"",0,"")))) -> 0 | G176: =IF(scheduled_no_payments=1,"",IF(Sched_Pay+Extra_Pay<Beg_Bal,Sched_Pay+Extra_Pay,IF(Pay_Num<>"",Beg_Bal,""))) -> 989.93 ₺ | H176: 718.72 ₺ | I176: =IF(Pay_Num<>"",Beg_Bal*(Interest_Rate/VLOOKUP(Interval,LoanLookup[],5,FALSE)),"") -> 271.21 ₺ | J176: =IF(scheduled_no_payments=1,"",IF(AND(Pay_Num<>"",Sched_Pay+Extra_Pay<Beg_Bal),Beg_Bal-Princ,IF(Pay_Num<>"",0,""))) -> 64,372.68 ₺ | K176: =IF(scheduled_no_payments=1,"",SUM($I$13:$I176)) -> 76,721.79 ₺
B177: =IF(AND(Values_Entered,scheduled_no_payments<>1),B176+1,"") -> 165 | C177: =IF(Pay_Num<>"",DATE(YEAR(C176)+VLOOKUP(Interval,LoanLookup[],4,FALSE),MONTH(C176)+VLOOKUP(Interval,LoanLookup[],2,FALSE),DAY(C176)+VLOOKUP(Interval,LoanLookup[],3,FALSE)),"") -> 2031-04-11 | D177: 64,372.68 ₺ | E177: 989.93 ₺ | F177: =IF(scheduled_no_payments=1,"",IF(Sched_Pay+Scheduled_Extra_Payments<Beg_Bal,Scheduled_Extra_Payments,IF(AND(Pay_Num<>"",Beg_Bal-Sched_Pay>0),Beg_Bal-Sched_Pay,IF(Pay_Num<>"",0,"")))) -> 0 | G177: =IF(scheduled_no_payments=1,"",IF(Sched_Pay+Extra_Pay<Beg_Bal,Sched_Pay+Extra_Pay,IF(Pay_Num<>"",Beg_Bal,""))) -> 989.93 ₺ | H177: 721.71 ₺ | I177: =IF(Pay_Num<>"",Beg_Bal*(Interest_Rate/VLOOKUP(Interval,LoanLookup[],5,FALSE)),"") -> 268.22 ₺ | J177: =IF(scheduled_no_payments=1,"",IF(AND(Pay_Num<>"",Sched_Pay+Extra_Pay<Beg_Bal),Beg_Bal-Princ,IF(Pay_Num<>"",0,""))) -> 63,650.96 ₺ | K177: =IF(scheduled_no_payments=1,"",SUM($I$13:$I177)) -> 76,990.01 ₺
B178: =IF(AND(Values_Entered,scheduled_no_payments<>1),B177+1,"") -> 166 | C178: =IF(Pay_Num<>"",DATE(YEAR(C177)+VLOOKUP(Interval,LoanLookup[],4,FALSE),MONTH(C177)+VLOOKUP(Interval,LoanLookup[],2,FALSE),DAY(C177)+VLOOKUP(Interval,LoanLookup[],3,FALSE)),"") -> 2031-05-11 | D178: 63,650.96 ₺ | E178: 989.93 ₺ | F178: =IF(scheduled_no_payments=1,"",IF(Sched_Pay+Scheduled_Extra_Payments<Beg_Bal,Scheduled_Extra_Payments,IF(AND(Pay_Num<>"",Beg_Bal-Sched_Pay>0),Beg_Bal-Sched_Pay,IF(Pay_Num<>"",0,"")))) -> 0 | G178: =IF(scheduled_no_payments=1,"",IF(Sched_Pay+Extra_Pay<Beg_Bal,Sched_Pay+Extra_Pay,IF(Pay_Num<>"",Beg_Bal,""))) -> 989.93 ₺ | H178: 724.72 ₺ | I178: =IF(Pay_Num<>"",Beg_Bal*(Interest_Rate/VLOOKUP(Interval,LoanLookup[],5,FALSE)),"") -> 265.21 ₺ | J178: =IF(scheduled_no_payments=1,"",IF(AND(Pay_Num<>"",Sched_Pay+Extra_Pay<Beg_Bal),Beg_Bal-Princ,IF(Pay_Num<>"",0,""))) -> 62,926.24 ₺ | K178: =IF(scheduled_no_payments=1,"",SUM($I$13:$I178)) -> 77,255.22 ₺
B179: =IF(AND(Values_Entered,scheduled_no_payments<>1),B178+1,"") -> 167 | C179: =IF(Pay_Num<>"",DATE(YEAR(C178)+VLOOKUP(Interval,LoanLookup[],4,FALSE),MONTH(C178)+VLOOKUP(Interval,LoanLookup[],2,FALSE),DAY(C178)+VLOOKUP(Interval,LoanLookup[],3,FALSE)),"") -> 2031-06-11 | D179: 62,926.24 ₺ | E179: 989.93 ₺ | F179: =IF(scheduled_no_payments=1,"",IF(Sched_Pay+Scheduled_Extra_Payments<Beg_Bal,Scheduled_Extra_Payments,IF(AND(Pay_Num<>"",Beg_Bal-Sched_Pay>0),Beg_Bal-Sched_Pay,IF(Pay_Num<>"",0,"")))) -> 0 | G179: =IF(scheduled_no_payments=1,"",IF(Sched_Pay+Extra_Pay<Beg_Bal,Sched_Pay+Extra_Pay,IF(Pay_Num<>"",Beg_Bal,""))) -> 989.93 ₺ | H179: 727.74 ₺ | I179: =IF(Pay_Num<>"",Beg_Bal*(Interest_Rate/VLOOKUP(Interval,LoanLookup[],5,FALSE)),"") -> 262.19 ₺ | J179: =IF(scheduled_no_payments=1,"",IF(AND(Pay_Num<>"",Sched_Pay+Extra_Pay<Beg_Bal),Beg_Bal-Princ,IF(Pay_Num<>"",0,""))) -> 62,198.50 ₺ | K179: =IF(scheduled_no_payments=1,"",SUM($I$13:$I179)) -> 77,517.41 ₺
B180: =IF(AND(Values_Entered,scheduled_no_payments<>1),B179+1,"") -> 168 | C180: =IF(Pay_Num<>"",DATE(YEAR(C179)+VLOOKUP(Interval,LoanLookup[],4,FALSE),MONTH(C179)+VLOOKUP(Interval,LoanLookup[],2,FALSE),DAY(C179)+VLOOKUP(Interval,LoanLookup[],3,FALSE)),"") -> 2031-07-11 | D180: 62,198.50 ₺ | E180: 989.93 ₺ | F180: =IF(scheduled_no_payments=1,"",IF(Sched_Pay+Scheduled_Extra_Payments<Beg_Bal,Scheduled_Extra_Payments,IF(AND(Pay_Num<>"",Beg_Bal-Sched_Pay>0),Beg_Bal-Sched_Pay,IF(Pay_Num<>"",0,"")))) -> 0 | G180: =IF(scheduled_no_payments=1,"",IF(Sched_Pay+Extra_Pay<Beg_Bal,Sched_Pay+Extra_Pay,IF(Pay_Num<>"",Beg_Bal,""))) -> 989.93 ₺ | H180: 730.77 ₺ | I180: =IF(Pay_Num<>"",Beg_Bal*(Interest_Rate/VLOOKUP(Interval,LoanLookup[],5,FALSE)),"") -> 259.16 ₺ | J180: =IF(scheduled_no_payments=1,"",IF(AND(Pay_Num<>"",Sched_Pay+Extra_Pay<Beg_Bal),Beg_Bal-Princ,IF(Pay_Num<>"",0,""))) -> 61,467.73 ₺ | K180: =IF(scheduled_no_payments=1,"",SUM($I$13:$I180)) -> 77,776.57 ₺
B181: =IF(AND(Values_Entered,scheduled_no_payments<>1),B180+1,"") -> 169 | C181: =IF(Pay_Num<>"",DATE(YEAR(C180)+VLOOKUP(Interval,LoanLookup[],4,FALSE),MONTH(C180)+VLOOKUP(Interval,LoanLookup[],2,FALSE),DAY(C180)+VLOOKUP(Interval,LoanLookup[],3,FALSE)),"") -> 2031-08-11 | D181: 61,467.73 ₺ | E181: 989.93 ₺ | F181: =IF(scheduled_no_payments=1,"",IF(Sched_Pay+Scheduled_Extra_Payments<Beg_Bal,Scheduled_Extra_Payments,IF(AND(Pay_Num<>"",Beg_Bal-Sched_Pay>0),Beg_Bal-Sched_Pay,IF(Pay_Num<>"",0,"")))) -> 0 | G181: =IF(scheduled_no_payments=1,"",IF(Sched_Pay+Extra_Pay<Beg_Bal,Sched_Pay+Extra_Pay,IF(Pay_Num<>"",Beg_Bal,""))) -> 989.93 ₺ | H181: 733.82 ₺ | I181: =IF(Pay_Num<>"",Beg_Bal*(Interest_Rate/VLOOKUP(Interval,LoanLookup[],5,FALSE)),"") -> 256.12 ₺ | J181: =IF(scheduled_no_payments=1,"",IF(AND(Pay_Num<>"",Sched_Pay+Extra_Pay<Beg_Bal),Beg_Bal-Princ,IF(Pay_Num<>"",0,""))) -> 60,733.91 ₺ | K181: =IF(scheduled_no_payments=1,"",SUM($I$13:$I181)) -> 78,032.69 ₺
B182: =IF(AND(Values_Entered,scheduled_no_payments<>1),B181+1,"") -> 170 | C182: =IF(Pay_Num<>"",DATE(YEAR(C181)+VLOOKUP(Interval,LoanLookup[],4,FALSE),MONTH(C181)+VLOOKUP(Interval,LoanLookup[],2,FALSE),DAY(C181)+VLOOKUP(Interval,LoanLookup[],3,FALSE)),"") -> 2031-09-11 | D182: 60,733.91 ₺ | E182: 989.93 ₺ | F182: =IF(scheduled_no_payments=1,"",IF(Sched_Pay+Scheduled_Extra_Payments<Beg_Bal,Scheduled_Extra_Payments,IF(AND(Pay_Num<>"",Beg_Bal-Sched_Pay>0),Beg_Bal-Sched_Pay,IF(Pay_Num<>"",0,"")))) -> 0 | G182: =IF(scheduled_no_payments=1,"",IF(Sched_Pay+Extra_Pay<Beg_Bal,Sched_Pay+Extra_Pay,IF(Pay_Num<>"",Beg_Bal,""))) -> 989.93 ₺ | H182: 736.88 ₺ | I182: =IF(Pay_Num<>"",Beg_Bal*(Interest_Rate/VLOOKUP(Interval,LoanLookup[],5,FALSE)),"") -> 253.06 ₺ | J182: =IF(scheduled_no_payments=1,"",IF(AND(Pay_Num<>"",Sched_Pay+Extra_Pay<Beg_Bal),Beg_Bal-Princ,IF(Pay_Num<>"",0,""))) -> 59,997.03 ₺ | K182: =IF(scheduled_no_payments=1,"",SUM($I$13:$I182)) -> 78,285.75 ₺
B183: =IF(AND(Values_Entered,scheduled_no_payments<>1),B182+1,"") -> 171 | C183: =IF(Pay_Num<>"",DATE(YEAR(C182)+VLOOKUP(Interval,LoanLookup[],4,FALSE),MONTH(C182)+VLOOKUP(Interval,LoanLookup[],2,FALSE),DAY(C182)+VLOOKUP(Interval,LoanLookup[],3,FALSE)),"") -> 2031-10-11 | D183: 59,997.03 ₺ | E183: 989.93 ₺ | F183: =IF(scheduled_no_payments=1,"",IF(Sched_Pay+Scheduled_Extra_Payments<Beg_Bal,Scheduled_Extra_Payments,IF(AND(Pay_Num<>"",Beg_Bal-Sched_Pay>0),Beg_Bal-Sched_Pay,IF(Pay_Num<>"",0,"")))) -> 0 | G183: =IF(scheduled_no_payments=1,"",IF(Sched_Pay+Extra_Pay<Beg_Bal,Sched_Pay+Extra_Pay,IF(Pay_Num<>"",Beg_Bal,""))) -> 989.93 ₺ | H183: 739.95 ₺ | I183: =IF(Pay_Num<>"",Beg_Bal*(Interest_Rate/VLOOKUP(Interval,LoanLookup[],5,FALSE)),"") -> 249.99 ₺ | J183: =IF(scheduled_no_payments=1,"",IF(AND(Pay_Num<>"",Sched_Pay+Extra_Pay<Beg_Bal),Beg_Bal-Princ,IF(Pay_Num<>"",0,""))) -> 59,257.09 ₺ | K183: =IF(scheduled_no_payments=1,"",SUM($I$13:$I183)) -> 78,535.73 ₺
B184: =IF(AND(Values_Entered,scheduled_no_payments<>1),B183+1,"") -> 172 | C184: =IF(Pay_Num<>"",DATE(YEAR(C183)+VLOOKUP(Interval,LoanLookup[],4,FALSE),MONTH(C183)+VLOOKUP(Interval,LoanLookup[],2,FALSE),DAY(C183)+VLOOKUP(Interval,LoanLookup[],3,FALSE)),"") -> 2031-11-11 | D184: 59,257.09 ₺ | E184: 989.93 ₺ | F184: =IF(scheduled_no_payments=1,"",IF(Sched_Pay+Scheduled_Extra_Payments<Beg_Bal,Scheduled_Extra_Payments,IF(AND(Pay_Num<>"",Beg_Bal-Sched_Pay>0),Beg_Bal-Sched_Pay,IF(Pay_Num<>"",0,"")))) -> 0 | G184: =IF(scheduled_no_payments=1,"",IF(Sched_Pay+Extra_Pay<Beg_Bal,Sched_Pay+Extra_Pay,IF(Pay_Num<>"",Beg_Bal,""))) -> 989.93 ₺ | H184: 743.03 ₺ | I184: =IF(Pay_Num<>"",Beg_Bal*(Interest_Rate/VLOOKUP(Interval,LoanLookup[],5,FALSE)),"") -> 246.90 ₺ | J184: =IF(scheduled_no_payments=1,"",IF(AND(Pay_Num<>"",Sched_Pay+Extra_Pay<Beg_Bal),Beg_Bal-Princ,IF(Pay_Num<>"",0,""))) -> 58,514.06 ₺ | K184: =IF(scheduled_no_payments=1,"",SUM($I$13:$I184)) -> 78,782.64 ₺
B185: =IF(AND(Values_Entered,scheduled_no_payments<>1),B184+1,"") -> 173 | C185: =IF(Pay_Num<>"",DATE(YEAR(C184)+VLOOKUP(Interval,LoanLookup[],4,FALSE),MONTH(C184)+VLOOKUP(Interval,LoanLookup[],2,FALSE),DAY(C184)+VLOOKUP(Interval,LoanLookup[],3,FALSE)),"") -> 2031-12-11 | D185: 58,514.06 ₺ | E185: 989.93 ₺ | F185: =IF(scheduled_no_payments=1,"",IF(Sched_Pay+Scheduled_Extra_Payments<Beg_Bal,Scheduled_Extra_Payments,IF(AND(Pay_Num<>"",Beg_Bal-Sched_Pay>0),Beg_Bal-Sched_Pay,IF(Pay_Num<>"",0,"")))) -> 0 | G185: =IF(scheduled_no_payments=1,"",IF(Sched_Pay+Extra_Pay<Beg_Bal,Sched_Pay+Extra_Pay,IF(Pay_Num<>"",Beg_Bal,""))) -> 989.93 ₺ | H185: 746.13 ₺ | I185: =IF(Pay_Num<>"",Beg_Bal*(Interest_Rate/VLOOKUP(Interval,LoanLookup[],5,FALSE)),"") -> 243.81 ₺ | J185: =IF(scheduled_no_payments=1,"",IF(AND(Pay_Num<>"",Sched_Pay+Extra_Pay<Beg_Bal),Beg_Bal-Princ,IF(Pay_Num<>"",0,""))) -> 57,767.93 ₺ | K185: =IF(scheduled_no_payments=1,"",SUM($I$13:$I185)) -> 79,026.45 ₺
B186: =IF(AND(Values_Entered,scheduled_no_payments<>1),B185+1,"") -> 174 | C186: =IF(Pay_Num<>"",DATE(YEAR(C185)+VLOOKUP(Interval,LoanLookup[],4,FALSE),MONTH(C185)+VLOOKUP(Interval,LoanLookup[],2,FALSE),DAY(C185)+VLOOKUP(Interval,LoanLookup[],3,FALSE)),"") -> 2032-01-11 | D186: 57,767.93 ₺ | E186: 989.93 ₺ | F186: =IF(scheduled_no_payments=1,"",IF(Sched_Pay+Scheduled_Extra_Payments<Beg_Bal,Scheduled_Extra_Payments,IF(AND(Pay_Num<>"",Beg_Bal-Sched_Pay>0),Beg_Bal-Sched_Pay,IF(Pay_Num<>"",0,"")))) -> 0 | G186: =IF(scheduled_no_payments=1,"",IF(Sched_Pay+Extra_Pay<Beg_Bal,Sched_Pay+Extra_Pay,IF(Pay_Num<>"",Beg_Bal,""))) -> 989.93 ₺ | H186: 749.23 ₺ | I186: =IF(Pay_Num<>"",Beg_Bal*(Interest_Rate/VLOOKUP(Interval,LoanLookup[],5,FALSE)),"") -> 240.70 ₺ | J186: =IF(scheduled_no_payments=1,"",IF(AND(Pay_Num<>"",Sched_Pay+Extra_Pay<Beg_Bal),Beg_Bal-Princ,IF(Pay_Num<>"",0,""))) -> 57,018.70 ₺ | K186: =IF(scheduled_no_payments=1,"",SUM($I$13:$I186)) -> 79,267.15 ₺
B187: =IF(AND(Values_Entered,scheduled_no_payments<>1),B186+1,"") -> 175 | C187: =IF(Pay_Num<>"",DATE(YEAR(C186)+VLOOKUP(Interval,LoanLookup[],4,FALSE),MONTH(C186)+VLOOKUP(Interval,LoanLookup[],2,FALSE),DAY(C186)+VLOOKUP(Interval,LoanLookup[],3,FALSE)),"") -> 2032-02-11 | D187: 57,018.70 ₺ | E187: 989.93 ₺ | F187: =IF(scheduled_no_payments=1,"",IF(Sched_Pay+Scheduled_Extra_Payments<Beg_Bal,Scheduled_Extra_Payments,IF(AND(Pay_Num<>"",Beg_Bal-Sched_Pay>0),Beg_Bal-Sched_Pay,IF(Pay_Num<>"",0,"")))) -> 0 | G187: =IF(scheduled_no_payments=1,"",IF(Sched_Pay+Extra_Pay<Beg_Bal,Sched_Pay+Extra_Pay,IF(Pay_Num<>"",Beg_Bal,""))) -> 989.93 ₺ | H187: 752.36 ₺ | I187: =IF(Pay_Num<>"",Beg_Bal*(Interest_Rate/VLOOKUP(Interval,LoanLookup[],5,FALSE)),"") -> 237.58 ₺ | J187: =IF(scheduled_no_payments=1,"",IF(AND(Pay_Num<>"",Sched_Pay+Extra_Pay<Beg_Bal),Beg_Bal-Princ,IF(Pay_Num<>"",0,""))) -> 56,266.34 ₺ | K187: =IF(scheduled_no_payments=1,"",SUM($I$13:$I187)) -> 79,504.73 ₺
B188: =IF(AND(Values_Entered,scheduled_no_payments<>1),B187+1,"") -> 176 | C188: =IF(Pay_Num<>"",DATE(YEAR(C187)+VLOOKUP(Interval,LoanLookup[],4,FALSE),MONTH(C187)+VLOOKUP(Interval,LoanLookup[],2,FALSE),DAY(C187)+VLOOKUP(Interval,LoanLookup[],3,FALSE)),"") -> 2032-03-11 | D188: 56,266.34 ₺ | E188: 989.93 ₺ | F188: =IF(scheduled_no_payments=1,"",IF(Sched_Pay+Scheduled_Extra_Payments<Beg_Bal,Scheduled_Extra_Payments,IF(AND(Pay_Num<>"",Beg_Bal-Sched_Pay>0),Beg_Bal-Sched_Pay,IF(Pay_Num<>"",0,"")))) -> 0 | G188: =IF(scheduled_no_payments=1,"",IF(Sched_Pay+Extra_Pay<Beg_Bal,Sched_Pay+Extra_Pay,IF(Pay_Num<>"",Beg_Bal,""))) -> 989.93 ₺ | H188: 755.49 ₺ | I188: =IF(Pay_Num<>"",Beg_Bal*(Interest_Rate/VLOOKUP(Interval,LoanLookup[],5,FALSE)),"") -> 234.44 ₺ | J188: =IF(scheduled_no_payments=1,"",IF(AND(Pay_Num<>"",Sched_Pay+Extra_Pay<Beg_Bal),Beg_Bal-Princ,IF(Pay_Num<>"",0,""))) -> 55,510.85 ₺ | K188: =IF(scheduled_no_payments=1,"",SUM($I$13:$I188)) -> 79,739.17 ₺
B189: =IF(AND(Values_Entered,scheduled_no_payments<>1),B188+1,"") -> 177 | C189: =IF(Pay_Num<>"",DATE(YEAR(C188)+VLOOKUP(Interval,LoanLookup[],4,FALSE),MONTH(C188)+VLOOKUP(Interval,LoanLookup[],2,FALSE),DAY(C188)+VLOOKUP(Interval,LoanLookup[],3,FALSE)),"") -> 2032-04-11 | D189: 55,510.85 ₺ | E189: 989.93 ₺ | F189: =IF(scheduled_no_payments=1,"",IF(Sched_Pay+Scheduled_Extra_Payments<Beg_Bal,Scheduled_Extra_Payments,IF(AND(Pay_Num<>"",Beg_Bal-Sched_Pay>0),Beg_Bal-Sched_Pay,IF(Pay_Num<>"",0,"")))) -> 0 | G189: =IF(scheduled_no_payments=1,"",IF(Sched_Pay+Extra_Pay<Beg_Bal,Sched_Pay+Extra_Pay,IF(Pay_Num<>"",Beg_Bal,""))) -> 989.93 ₺ | H189: 758.64 ₺ | I189: =IF(Pay_Num<>"",Beg_Bal*(Interest_Rate/VLOOKUP(Interval,LoanLookup[],5,FALSE)),"") -> 231.30 ₺ | J189: =IF(scheduled_no_payments=1,"",IF(AND(Pay_Num<>"",Sched_Pay+Extra_Pay<Beg_Bal),Beg_Bal-Princ,IF(Pay_Num<>"",0,""))) -> 54,752.22 ₺ | K189: =IF(scheduled_no_payments=1,"",SUM($I$13:$I189)) -> 79,970.46 ₺
B190: =IF(AND(Values_Entered,scheduled_no_payments<>1),B189+1,"") -> 178 | C190: =IF(Pay_Num<>"",DATE(YEAR(C189)+VLOOKUP(Interval,LoanLookup[],4,FALSE),MONTH(C189)+VLOOKUP(Interval,LoanLookup[],2,FALSE),DAY(C189)+VLOOKUP(Interval,LoanLookup[],3,FALSE)),"") -> 2032-05-11 | D190: 54,752.22 ₺ | E190: 989.93 ₺ | F190: =IF(scheduled_no_payments=1,"",IF(Sched_Pay+Scheduled_Extra_Payments<Beg_Bal,Scheduled_Extra_Payments,IF(AND(Pay_Num<>"",Beg_Bal-Sched_Pay>0),Beg_Bal-Sched_Pay,IF(Pay_Num<>"",0,"")))) -> 0 | G190: =IF(scheduled_no_payments=1,"",IF(Sched_Pay+Extra_Pay<Beg_Bal,Sched_Pay+Extra_Pay,IF(Pay_Num<>"",Beg_Bal,""))) -> 989.93 ₺ | H190: 761.80 ₺ | I190: =IF(Pay_Num<>"",Beg_Bal*(Interest_Rate/VLOOKUP(Interval,LoanLookup[],5,FALSE)),"") -> 228.13 ₺ | J190: =IF(scheduled_no_payments=1,"",IF(AND(Pay_Num<>"",Sched_Pay+Extra_Pay<Beg_Bal),Beg_Bal-Princ,IF(Pay_Num<>"",0,""))) -> 53,990.42 ₺ | K190: =IF(scheduled_no_payments=1,"",SUM($I$13:$I190)) -> 80,198.60 ₺
B191: =IF(AND(Values_Entered,scheduled_no_payments<>1),B190+1,"") -> 179 | C191: =IF(Pay_Num<>"",DATE(YEAR(C190)+VLOOKUP(Interval,LoanLookup[],4,FALSE),MONTH(C190)+VLOOKUP(Interval,LoanLookup[],2,FALSE),DAY(C190)+VLOOKUP(Interval,LoanLookup[],3,FALSE)),"") -> 2032-06-11 | D191: 53,990.42 ₺ | E191: 989.93 ₺ | F191: =IF(scheduled_no_payments=1,"",IF(Sched_Pay+Scheduled_Extra_Payments<Beg_Bal,Scheduled_Extra_Payments,IF(AND(Pay_Num<>"",Beg_Bal-Sched_Pay>0),Beg_Bal-Sched_Pay,IF(Pay_Num<>"",0,"")))) -> 0 | G191: =IF(scheduled_no_payments=1,"",IF(Sched_Pay+Extra_Pay<Beg_Bal,Sched_Pay+Extra_Pay,IF(Pay_Num<>"",Beg_Bal,""))) -> 989.93 ₺ | H191: 764.97 ₺ | I191: =IF(Pay_Num<>"",Beg_Bal*(Interest_Rate/VLOOKUP(Interval,LoanLookup[],5,FALSE)),"") -> 224.96 ₺ | J191: =IF(scheduled_no_payments=1,"",IF(AND(Pay_Num<>"",Sched_Pay+Extra_Pay<Beg_Bal),Beg_Bal-Princ,IF(Pay_Num<>"",0,""))) -> 53,225.44 ₺ | K191: =IF(scheduled_no_payments=1,"",SUM($I$13:$I191)) -> 80,423.56 ₺
B192: =IF(AND(Values_Entered,scheduled_no_payments<>1),B191+1,"") -> 180 | C192: =IF(Pay_Num<>"",DATE(YEAR(C191)+VLOOKUP(Interval,LoanLookup[],4,FALSE),MONTH(C191)+VLOOKUP(Interval,LoanLookup[],2,FALSE),DAY(C191)+VLOOKUP(Interval,LoanLookup[],3,FALSE)),"") -> 2032-07-11 | D192: 53,225.44 ₺ | E192: 989.93 ₺ | F192: =IF(scheduled_no_payments=1,"",IF(Sched_Pay+Scheduled_Extra_Payments<Beg_Bal,Scheduled_Extra_Payments,IF(AND(Pay_Num<>"",Beg_Bal-Sched_Pay>0),Beg_Bal-Sched_Pay,IF(Pay_Num<>"",0,"")))) -> 0 | G192: =IF(scheduled_no_payments=1,"",IF(Sched_Pay+Extra_Pay<Beg_Bal,Sched_Pay+Extra_Pay,IF(Pay_Num<>"",Beg_Bal,""))) -> 989.93 ₺ | H192: 768.16 ₺ | I192: =IF(Pay_Num<>"",Beg_Bal*(Interest_Rate/VLOOKUP(Interval,LoanLookup[],5,FALSE)),"") -> 221.77 ₺ | J192: =IF(scheduled_no_payments=1,"",IF(AND(Pay_Num<>"",Sched_Pay+Extra_Pay<Beg_Bal),Beg_Bal-Princ,IF(Pay_Num<>"",0,""))) -> 52,457.28 ₺ | K192: =IF(scheduled_no_payments=1,"",SUM($I$13:$I192)) -> 80,645.33 ₺
B193: =IF(AND(Values_Entered,scheduled_no_payments<>1),B192+1,"") -> 181 | C193: =IF(Pay_Num<>"",DATE(YEAR(C192)+VLOOKUP(Interval,LoanLookup[],4,FALSE),MONTH(C192)+VLOOKUP(Interval,LoanLookup[],2,FALSE),DAY(C192)+VLOOKUP(Interval,LoanLookup[],3,FALSE)),"") -> 2032-08-11 | D193: 52,457.28 ₺ | E193: 989.93 ₺ | F193: =IF(scheduled_no_payments=1,"",IF(Sched_Pay+Scheduled_Extra_Payments<Beg_Bal,Scheduled_Extra_Payments,IF(AND(Pay_Num<>"",Beg_Bal-Sched_Pay>0),Beg_Bal-Sched_Pay,IF(Pay_Num<>"",0,"")))) -> 0 | G193: =IF(scheduled_no_payments=1,"",IF(Sched_Pay+Extra_Pay<Beg_Bal,Sched_Pay+Extra_Pay,IF(Pay_Num<>"",Beg_Bal,""))) -> 989.93 ₺ | H193: 771.36 ₺ | I193: =IF(Pay_Num<>"",Beg_Bal*(Interest_Rate/VLOOKUP(Interval,LoanLookup[],5,FALSE)),"") -> 218.57 ₺ | J193: =IF(scheduled_no_payments=1,"",IF(AND(Pay_Num<>"",Sched_Pay+Extra_Pay<Beg_Bal),Beg_Bal-Princ,IF(Pay_Num<>"",0,""))) -> 51,685.92 ₺ | K193: =IF(scheduled_no_payments=1,"",SUM($I$13:$I193)) -> 80,863.90 ₺
B194: =IF(AND(Values_Entered,scheduled_no_payments<>1),B193+1,"") -> 182 | C194: =IF(Pay_Num<>"",DATE(YEAR(C193)+VLOOKUP(Interval,LoanLookup[],4,FALSE),MONTH(C193)+VLOOKUP(Interval,LoanLookup[],2,FALSE),DAY(C193)+VLOOKUP(Interval,LoanLookup[],3,FALSE)),"") -> 2032-09-11 | D194: 51,685.92 ₺ | E194: 989.93 ₺ | F194: =IF(scheduled_no_payments=1,"",IF(Sched_Pay+Scheduled_Extra_Payments<Beg_Bal,Scheduled_Extra_Payments,IF(AND(Pay_Num<>"",Beg_Bal-Sched_Pay>0),Beg_Bal-Sched_Pay,IF(Pay_Num<>"",0,"")))) -> 0 | G194: =IF(scheduled_no_payments=1,"",IF(Sched_Pay+Extra_Pay<Beg_Bal,Sched_Pay+Extra_Pay,IF(Pay_Num<>"",Beg_Bal,""))) -> 989.93 ₺ | H194: 774.58 ₺ | I194: =IF(Pay_Num<>"",Beg_Bal*(Interest_Rate/VLOOKUP(Interval,LoanLookup[],5,FALSE)),"") -> 215.36 ₺ | J194: =IF(scheduled_no_payments=1,"",IF(AND(Pay_Num<>"",Sched_Pay+Extra_Pay<Beg_Bal),Beg_Bal-Princ,IF(Pay_Num<>"",0,""))) -> 50,911.34 ₺ | K194: =IF(scheduled_no_payments=1,"",SUM($I$13:$I194)) -> 81,079.26 ₺
B195: =IF(AND(Values_Entered,scheduled_no_payments<>1),B194+1,"") -> 183 | C195: =IF(Pay_Num<>"",DATE(YEAR(C194)+VLOOKUP(Interval,LoanLookup[],4,FALSE),MONTH(C194)+VLOOKUP(Interval,LoanLookup[],2,FALSE),DAY(C194)+VLOOKUP(Interval,LoanLookup[],3,FALSE)),"") -> 2032-10-11 | D195: 50,911.34 ₺ | E195: 989.93 ₺ | F195: =IF(scheduled_no_payments=1,"",IF(Sched_Pay+Scheduled_Extra_Payments<Beg_Bal,Scheduled_Extra_Payments,IF(AND(Pay_Num<>"",Beg_Bal-Sched_Pay>0),Beg_Bal-Sched_Pay,IF(Pay_Num<>"",0,"")))) -> 0 | G195: =IF(scheduled_no_payments=1,"",IF(Sched_Pay+Extra_Pay<Beg_Bal,Sched_Pay+Extra_Pay,IF(Pay_Num<>"",Beg_Bal,""))) -> 989.93 ₺ | H195: 777.80 ₺ | I195: =IF(Pay_Num<>"",Beg_Bal*(Interest_Rate/VLOOKUP(Interval,LoanLookup[],5,FALSE)),"") -> 212.13 ₺ | J195: =IF(scheduled_no_payments=1,"",IF(AND(Pay_Num<>"",Sched_Pay+Extra_Pay<Beg_Bal),Beg_Bal-Princ,IF(Pay_Num<>"",0,""))) -> 50,133.54 ₺ | K195: =IF(scheduled_no_payments=1,"",SUM($I$13:$I195)) -> 81,291.39 ₺
B196: =IF(AND(Values_Entered,scheduled_no_payments<>1),B195+1,"") -> 184 | C196: =IF(Pay_Num<>"",DATE(YEAR(C195)+VLOOKUP(Interval,LoanLookup[],4,FALSE),MONTH(C195)+VLOOKUP(Interval,LoanLookup[],2,FALSE),DAY(C195)+VLOOKUP(Interval,LoanLookup[],3,FALSE)),"") -> 2032-11-11 | D196: 50,133.54 ₺ | E196: 989.93 ₺ | F196: =IF(scheduled_no_payments=1,"",IF(Sched_Pay+Scheduled_Extra_Payments<Beg_Bal,Scheduled_Extra_Payments,IF(AND(Pay_Num<>"",Beg_Bal-Sched_Pay>0),Beg_Bal-Sched_Pay,IF(Pay_Num<>"",0,"")))) -> 0 | G196: =IF(scheduled_no_payments=1,"",IF(Sched_Pay+Extra_Pay<Beg_Bal,Sched_Pay+Extra_Pay,IF(Pay_Num<>"",Beg_Bal,""))) -> 989.93 ₺ | H196: 781.04 ₺ | I196: =IF(Pay_Num<>"",Beg_Bal*(Interest_Rate/VLOOKUP(Interval,LoanLookup[],5,FALSE)),"") -> 208.89 ₺ | J196: =IF(scheduled_no_payments=1,"",IF(AND(Pay_Num<>"",Sched_Pay+Extra_Pay<Beg_Bal),Beg_Bal-Princ,IF(Pay_Num<>"",0,""))) -> 49,352.50 ₺ | K196: =IF(scheduled_no_payments=1,"",SUM($I$13:$I196)) -> 81,500.28 ₺
B197: =IF(AND(Values_Entered,scheduled_no_payments<>1),B196+1,"") -> 185 | C197: =IF(Pay_Num<>"",DATE(YEAR(C196)+VLOOKUP(Interval,LoanLookup[],4,FALSE),MONTH(C196)+VLOOKUP(Interval,LoanLookup[],2,FALSE),DAY(C196)+VLOOKUP(Interval,LoanLookup[],3,FALSE)),"") -> 2032-12-11 | D197: 49,352.50 ₺ | E197: 989.93 ₺ | F197: =IF(scheduled_no_payments=1,"",IF(Sched_Pay+Scheduled_Extra_Payments<Beg_Bal,Scheduled_Extra_Payments,IF(AND(Pay_Num<>"",Beg_Bal-Sched_Pay>0),Beg_Bal-Sched_Pay,IF(Pay_Num<>"",0,"")))) -> 0 | G197: =IF(scheduled_no_payments=1,"",IF(Sched_Pay+Extra_Pay<Beg_Bal,Sched_Pay+Extra_Pay,IF(Pay_Num<>"",Beg_Bal,""))) -> 989.93 ₺ | H197: 784.30 ₺ | I197: =IF(Pay_Num<>"",Beg_Bal*(Interest_Rate/VLOOKUP(Interval,LoanLookup[],5,FALSE)),"") -> 205.64 ₺ | J197: =IF(scheduled_no_payments=1,"",IF(AND(Pay_Num<>"",Sched_Pay+Extra_Pay<Beg_Bal),Beg_Bal-Princ,IF(Pay_Num<>"",0,""))) -> 48,568.20 ₺ | K197: =IF(scheduled_no_payments=1,"",SUM($I$13:$I197)) -> 81,705.92 ₺
B198: =IF(AND(Values_Entered,scheduled_no_payments<>1),B197+1,"") -> 186 | C198: =IF(Pay_Num<>"",DATE(YEAR(C197)+VLOOKUP(Interval,LoanLookup[],4,FALSE),MONTH(C197)+VLOOKUP(Interval,LoanLookup[],2,FALSE),DAY(C197)+VLOOKUP(Interval,LoanLookup[],3,FALSE)),"") -> 2033-01-11 | D198: 48,568.20 ₺ | E198: 989.93 ₺ | F198: =IF(scheduled_no_payments=1,"",IF(Sched_Pay+Scheduled_Extra_Payments<Beg_Bal,Scheduled_Extra_Payments,IF(AND(Pay_Num<>"",Beg_Bal-Sched_Pay>0),Beg_Bal-Sched_Pay,IF(Pay_Num<>"",0,"")))) -> 0 | G198: =IF(scheduled_no_payments=1,"",IF(Sched_Pay+Extra_Pay<Beg_Bal,Sched_Pay+Extra_Pay,IF(Pay_Num<>"",Beg_Bal,""))) -> 989.93 ₺ | H198: 787.57 ₺ | I198: =IF(Pay_Num<>"",Beg_Bal*(Interest_Rate/VLOOKUP(Interval,LoanLookup[],5,FALSE)),"") -> 202.37 ₺ | J198: =IF(scheduled_no_payments=1,"",IF(AND(Pay_Num<>"",Sched_Pay+Extra_Pay<Beg_Bal),Beg_Bal-Princ,IF(Pay_Num<>"",0,""))) -> 47,780.63 ₺ | K198: =IF(scheduled_no_payments=1,"",SUM($I$13:$I198)) -> 81,908.28 ₺
B199: =IF(AND(Values_Entered,scheduled_no_payments<>1),B198+1,"") -> 187 | C199: =IF(Pay_Num<>"",DATE(YEAR(C198)+VLOOKUP(Interval,LoanLookup[],4,FALSE),MONTH(C198)+VLOOKUP(Interval,LoanLookup[],2,FALSE),DAY(C198)+VLOOKUP(Interval,LoanLookup[],3,FALSE)),"") -> 2033-02-11 | D199: 47,780.63 ₺ | E199: 989.93 ₺ | F199: =IF(scheduled_no_payments=1,"",IF(Sched_Pay+Scheduled_Extra_Payments<Beg_Bal,Scheduled_Extra_Payments,IF(AND(Pay_Num<>"",Beg_Bal-Sched_Pay>0),Beg_Bal-Sched_Pay,IF(Pay_Num<>"",0,"")))) -> 0 | G199: =IF(scheduled_no_payments=1,"",IF(Sched_Pay+Extra_Pay<Beg_Bal,Sched_Pay+Extra_Pay,IF(Pay_Num<>"",Beg_Bal,""))) -> 989.93 ₺ | H199: 790.85 ₺ | I199: =IF(Pay_Num<>"",Beg_Bal*(Interest_Rate/VLOOKUP(Interval,LoanLookup[],5,FALSE)),"") -> 199.09 ₺ | J199: =IF(scheduled_no_payments=1,"",IF(AND(Pay_Num<>"",Sched_Pay+Extra_Pay<Beg_Bal),Beg_Bal-Princ,IF(Pay_Num<>"",0,""))) -> 46,989.79 ₺ | K199: =IF(scheduled_no_payments=1,"",SUM($I$13:$I199)) -> 82,107.37 ₺
B200: =IF(AND(Values_Entered,scheduled_no_payments<>1),B199+1,"") -> 188 | C200: =IF(Pay_Num<>"",DATE(YEAR(C199)+VLOOKUP(Interval,LoanLookup[],4,FALSE),MONTH(C199)+VLOOKUP(Interval,LoanLookup[],2,FALSE),DAY(C199)+VLOOKUP(Interval,LoanLookup[],3,FALSE)),"") -> 2033-03-11 | D200: 46,989.79 ₺ | E200: 989.93 ₺ | F200: =IF(scheduled_no_payments=1,"",IF(Sched_Pay+Scheduled_Extra_Payments<Beg_Bal,Scheduled_Extra_Payments,IF(AND(Pay_Num<>"",Beg_Bal-Sched_Pay>0),Beg_Bal-Sched_Pay,IF(Pay_Num<>"",0,"")))) -> 0 | G200: =IF(scheduled_no_payments=1,"",IF(Sched_Pay+Extra_Pay<Beg_Bal,Sched_Pay+Extra_Pay,IF(Pay_Num<>"",Beg_Bal,""))) -> 989.93 ₺ | H200: 794.14 ₺ | I200: =IF(Pay_Num<>"",Beg_Bal*(Interest_Rate/VLOOKUP(Interval,LoanLookup[],5,FALSE)),"") -> 195.79 ₺ | J200: =IF(scheduled_no_payments=1,"",IF(AND(Pay_Num<>"",Sched_Pay+Extra_Pay<Beg_Bal),Beg_Bal-Princ,IF(Pay_Num<>"",0,""))) -> 46,195.64 ₺ | K200: =IF(scheduled_no_payments=1,"",SUM($I$13:$I200)) -> 82,303.16 ₺
B201: =IF(AND(Values_Entered,scheduled_no_payments<>1),B200+1,"") -> 189 | C201: =IF(Pay_Num<>"",DATE(YEAR(C200)+VLOOKUP(Interval,LoanLookup[],4,FALSE),MONTH(C200)+VLOOKUP(Interval,LoanLookup[],2,FALSE),DAY(C200)+VLOOKUP(Interval,LoanLookup[],3,FALSE)),"") -> 2033-04-11 | D201: 46,195.64 ₺ | E201: 989.93 ₺ | F201: =IF(scheduled_no_payments=1,"",IF(Sched_Pay+Scheduled_Extra_Payments<Beg_Bal,Scheduled_Extra_Payments,IF(AND(Pay_Num<>"",Beg_Bal-Sched_Pay>0),Beg_Bal-Sched_Pay,IF(Pay_Num<>"",0,"")))) -> 0 | G201: =IF(scheduled_no_payments=1,"",IF(Sched_Pay+Extra_Pay<Beg_Bal,Sched_Pay+Extra_Pay,IF(Pay_Num<>"",Beg_Bal,""))) -> 989.93 ₺ | H201: 797.45 ₺ | I201: =IF(Pay_Num<>"",Beg_Bal*(Interest_Rate/VLOOKUP(Interval,LoanLookup[],5,FALSE)),"") -> 192.48 ₺ | J201: =IF(scheduled_no_payments=1,"",IF(AND(Pay_Num<>"",Sched_Pay+Extra_Pay<Beg_Bal),Beg_Bal-Princ,IF(Pay_Num<>"",0,""))) -> 45,398.19 ₺ | K201: =IF(scheduled_no_payments=1,"",SUM($I$13:$I201)) -> 82,495.64 ₺
B202: =IF(AND(Values_Entered,scheduled_no_payments<>1),B201+1,"") -> 190 | C202: =IF(Pay_Num<>"",DATE(YEAR(C201)+VLOOKUP(Interval,LoanLookup[],4,FALSE),MONTH(C201)+VLOOKUP(Interval,LoanLookup[],2,FALSE),DAY(C201)+VLOOKUP(Interval,LoanLookup[],3,FALSE)),"") -> 2033-05-11 | D202: 45,398.19 ₺ | E202: 989.93 ₺ | F202: =IF(scheduled_no_payments=1,"",IF(Sched_Pay+Scheduled_Extra_Payments<Beg_Bal,Scheduled_Extra_Payments,IF(AND(Pay_Num<>"",Beg_Bal-Sched_Pay>0),Beg_Bal-Sched_Pay,IF(Pay_Num<>"",0,"")))) -> 0 | G202: =IF(scheduled_no_payments=1,"",IF(Sched_Pay+Extra_Pay<Beg_Bal,Sched_Pay+Extra_Pay,IF(Pay_Num<>"",Beg_Bal,""))) -> 989.93 ₺ | H202: 800.77 ₺ | I202: =IF(Pay_Num<>"",Beg_Bal*(Interest_Rate/VLOOKUP(Interval,LoanLookup[],5,FALSE)),"") -> 189.16 ₺ | J202: =IF(scheduled_no_payments=1,"",IF(AND(Pay_Num<>"",Sched_Pay+Extra_Pay<Beg_Bal),Beg_Bal-Princ,IF(Pay_Num<>"",0,""))) -> 44,597.42 ₺ | K202: =IF(scheduled_no_payments=1,"",SUM($I$13:$I202)) -> 82,684.80 ₺
... 530 more rows

Sheet Kredi Hesaplayicisi Verileri
B1: KREDİ HESAPLAYICISI VERİLERİ
B2: Bu çalışma sayfasında, kredi hesaplamalarında ve açılan listeleri doldurmada kullanılan veriler bulunur. Buradaki bilgilerin değiştirilmesi yanlış kredi ödemesi hesaplamalarına neden olabilir.
B3: Ödeme Sıklığı Araması
B4: SIKLIK | C4: AY ARALIĞI | D4: GÜN ARALIĞI | E4: YIL ARALIĞI | F4: YILLIK ÖDEME SAYISI
B5: Ayda iki kez | C5: 0 | D5: 15 | E5: 0 | F5: 24
B6: Aylık | C6: 1 | D6: 0 | E6: 0 | F6: 12
B7: Üç aylık | C7: 4 | D7: 0 | E7: 0 | F7: 4
B8: Yıllık | C8: 0 | D8: 0 | E8: 1 | F8: 1
